{"text_format":"3","workbook":"xlsx","n_sheets":5,"sheets":["INICIO","GASTOS PLANIFICADOS","GASTOS REALES","DESVIACIONES DE GASTOS","ANÁLISIS DE GASTOS"],"not_rendered":{"charts":3,"images":2,"defined_names":4},"read":"whole","date_system":"1900"}

{"sheet":"INICIO","index":0,"n_rows":7,"n_cols":2,"rows_kept":7}
[null,"INFORMACIÓN SOBRE ESTA PLANTILLA"]
[null,"Use el libro Presupuesto de gastos empresariales para realizar un seguimiento de los gastos planificados, los gastos reales y las desviaciones."]
[null,"- Introduzca el nombre de la empresa y agregue el logotipo."]
[null,"- Escriba la información en las tablas de las hojas de cálculo Gastos planificados y Gastos reales."]
[null,"- Las tablas de la hoja de cálculo Desviaciones de gastos y los gráficos de Análisis de gastos se actualizan automáticamente."]
[]
[null,"Para obtener más información sobre las tablas, presione las teclas MAYÚS y F10 dentro de una tabla, seleccione la opción TABLA y, a continuación, TEXTO ALTERNATIVO."]

{"sheet":"GASTOS PLANIFICADOS","index":1,"n_rows":37,"n_cols":15,"rows_kept":37,"merged":[[0,1,2,14],[8,1,8,2],[19,1,19,2],[33,1,33,2]]}
[]
[]
[]
[null,"GASTOS PLANIFICADOS","ENE","FEB","MAR","ABR","MAY","JUN","JUL","AGO","SEP","OCT","NOV","DIC","AÑO"]
[null,"COSTES POR EMPLEADO","Ene","Feb","Mar","Abr","Mayo","Jun","Jul","Ago","Sep","Oct","Nov","Dic","AÑO"]
[null,"Salarios",{"v":85000,"d":"85,000.00 €"},{"v":85000,"d":"85,000.00 €"},{"v":85000,"d":"85,000.00 €"},{"v":87500,"d":"87,500.00 €"},{"v":87500,"d":"87,500.00 €"},{"v":87500,"d":"87,500.00 €"},{"v":87500,"d":"87,500.00 €"},{"v":92400,"d":"92,400.00 €"},{"v":92400,"d":"92,400.00 €"},{"v":92400,"d":"92,400.00 €"},{"v":92400,"d":"92,400.00 €"},{"v":92400,"d":"92,400.00 €"},{"$f":"SUM(C6:N6)","v":{"v":1067000,"d":"1,067,000.00 €"}}]
[null,"Beneficios",{"$f":"C6*0.27","v":{"v":22950,"d":"22,950.00 €"}},{"v":22950,"d":"22,950.00 €"},{"v":22950,"d":"22,950.00 €"},{"v":23625,"d":"23,625.00 €"},{"v":23625,"d":"23,625.00 €"},{"v":23625,"d":"23,625.00 €"},{"v":23625,"d":"23,625.00 €"},{"v":24948,"d":"24,948.00 €"},{"v":24948,"d":"24,948.00 €"},{"v":24948,"d":"24,948.00 €"},{"v":24948,"d":"24,948.00 €"},{"v":24948,"d":"24,948.00 €"},{"$f":"SUM(C7:N7)","v":{"v":288090,"d":"288,090.00 €"}}]
[null,"Subtotal",{"$f":"SUBTOTAL(109,PlanEmpleado[Ene])","v":{"v":107950,"d":"107,950.00 €"}},{"$f":"SUBTOTAL(109,PlanEmpleado[Feb])","v":{"v":107950,"d":"107,950.00 €"}},{"$f":"SUBTOTAL(109,PlanEmpleado[Mar])","v":{"v":107950,"d":"107,950.00 €"}},{"$f":"SUBTOTAL(109,PlanEmpleado[Abr])","v":{"v":111125,"d":"111,125.00 €"}},{"$f":"SUBTOTAL(109,PlanEmpleado[Mayo])","v":{"v":111125,"d":"111,125.00 €"}},{"$f":"SUBTOTAL(109,PlanEmpleado[Jun])","v":{"v":111125,"d":"111,125.00 €"}},{"$f":"SUBTOTAL(109,PlanEmpleado[Jul])","v":{"v":111125,"d":"111,125.00 €"}},{"$f":"SUBTOTAL(109,PlanEmpleado[Ago])","v":{"v":117348,"d":"117,348.00 €"}},{"$f":"SUBTOTAL(109,PlanEmpleado[Sep])","v":{"v":117348,"d":"117,348.00 €"}},{"$f":"SUBTOTAL(109,PlanEmpleado[Oct])","v":{"v":117348,"d":"117,348.00 €"}},{"$f":"SUBTOTAL(109,PlanEmpleado[Nov])","v":{"v":117348,"d":"117,348.00 €"}},{"$f":"SUBTOTAL(109,PlanEmpleado[Dic])","v":{"v":117348,"d":"117,348.00 €"}},{"$f":"SUBTOTAL(109,PlanEmpleado[AÑO])","v":{"v":1355090,"d":"1,355,090.00 €"}}]
[]
[null,"COSTES DE LA OFICINA","Ene","Feb","Mar","Abr","Mayo","Jun","Jul","Ago","Sep","Oct","Nov","Dic","AÑO"]
[null,"Alquiler de la oficina",{"v":9800,"d":"9,800.00 €"},{"v":9800,"d":"9,800.00 €"},{"v":9800,"d":"9,800.00 €"},{"v":9800,"d":"9,800.00 €"},{"v":9800,"d":"9,800.00 €"},{"v":9800,"d":"9,800.00 €"},{"v":9800,"d":"9,800.00 €"},{"v":9800,"d":"9,800.00 €"},{"v":9800,"d":"9,800.00 €"},{"v":9800,"d":"9,800.00 €"},{"v":9800,"d":"9,800.00 €"},{"v":9800,"d":"9,800.00 €"},{"$f":"SUM(C11:N11)","v":{"v":117600,"d":"117,600.00 €"}}]
[null,"Gas",null,{"v":400,"d":"400.00 €"},{"v":400,"d":"400.00 €"},{"v":100,"d":"100.00 €"},{"v":100,"d":"100.00 €"},{"v":100,"d":"100.00 €"},{"v":100,"d":"100.00 €"},{"v":100,"d":"100.00 €"},{"v":100,"d":"100.00 €"},{"v":100,"d":"100.00 €"},{"v":400,"d":"400.00 €"},{"v":400,"d":"400.00 €"},{"v":2300,"d":"2,300.00 €"}]
[null,"Electricidad",{"v":300,"d":"300.00 €"},{"v":300,"d":"300.00 €"},{"v":300,"d":"300.00 €"},{"v":300,"d":"300.00 €"},{"v":300,"d":"300.00 €"},{"v":300,"d":"300.00 €"},{"v":300,"d":"300.00 €"},{"v":300,"d":"300.00 €"},{"v":300,"d":"300.00 €"},{"v":300,"d":"300.00 €"},{"v":300,"d":"300.00 €"},{"v":300,"d":"300.00 €"},{"v":3600,"d":"3,600.00 €"}]
[null,"Agua",{"v":40,"d":"40.00 €"},{"v":40,"d":"40.00 €"},{"v":40,"d":"40.00 €"},{"v":40,"d":"40.00 €"},{"v":40,"d":"40.00 €"},{"v":40,"d":"40.00 €"},{"v":40,"d":"40.00 €"},{"v":40,"d":"40.00 €"},{"v":40,"d":"40.00 €"},{"v":40,"d":"40.00 €"},{"v":40,"d":"40.00 €"},{"v":40,"d":"40.00 €"},{"v":480,"d":"480.00 €"}]
[null,"Teléfono",{"v":250,"d":"250.00 €"},{"v":250,"d":"250.00 €"},{"v":250,"d":"250.00 €"},{"v":250,"d":"250.00 €"},{"v":250,"d":"250.00 €"},{"v":250,"d":"250.00 €"},{"v":250,"d":"250.00 €"},{"v":250,"d":"250.00 €"},{"v":250,"d":"250.00 €"},{"v":250,"d":"250.00 €"},{"v":250,"d":"250.00 €"},{"v":250,"d":"250.00 €"},{"v":3000,"d":"3,000.00 €"}]
[null,"Acceso a Internet",{"v":180,"d":"180.00 €"},{"v":180,"d":"180.00 €"},{"v":180,"d":"180.00 €"},{"v":180,"d":"180.00 €"},{"v":180,"d":"180.00 €"},{"v":180,"d":"180.00 €"},{"v":180,"d":"180.00 €"},{"v":180,"d":"180.00 €"},{"v":180,"d":"180.00 €"},{"v":180,"d":"180.00 €"},{"v":180,"d":"180.00 €"},{"v":180,"d":"180.00 €"},{"v":2160,"d":"2,160.00 €"}]
[null,"Material de oficina",{"v":200,"d":"200.00 €"},{"v":200,"d":"200.00 €"},{"v":200,"d":"200.00 €"},{"v":200,"d":"200.00 €"},{"v":200,"d":"200.00 €"},{"v":200,"d":"200.00 €"},{"v":200,"d":"200.00 €"},{"v":200,"d":"200.00 €"},{"v":200,"d":"200.00 €"},{"v":200,"d":"200.00 €"},{"v":200,"d":"200.00 €"},{"v":200,"d":"200.00 €"},{"v":2400,"d":"2,400.00 €"}]
[null,"Seguridad",{"v":600,"d":"600.00 €"},{"v":600,"d":"600.00 €"},{"v":600,"d":"600.00 €"},{"v":600,"d":"600.00 €"},{"v":600,"d":"600.00 €"},{"v":600,"d":"600.00 €"},{"v":600,"d":"600.00 €"},{"v":600,"d":"600.00 €"},{"v":600,"d":"600.00 €"},{"v":600,"d":"600.00 €"},{"v":600,"d":"600.00 €"},{"v":600,"d":"600.00 €"},{"v":7200,"d":"7,200.00 €"}]
[null,"Subtotal",{"$f":"SUBTOTAL(109,PlanOficina[Ene])","v":{"v":11370,"d":"11,370.00 €"}},{"$f":"SUBTOTAL(109,PlanOficina[Feb])","v":{"v":11770,"d":"11,770.00 €"}},{"$f":"SUBTOTAL(109,PlanOficina[Mar])","v":{"v":11770,"d":"11,770.00 €"}},{"$f":"SUBTOTAL(109,PlanOficina[Abr])","v":{"v":11470,"d":"11,470.00 €"}},{"$f":"SUBTOTAL(109,PlanOficina[Mayo])","v":{"v":11470,"d":"11,470.00 €"}},{"$f":"SUBTOTAL(109,PlanOficina[Jun])","v":{"v":11470,"d":"11,470.00 €"}},{"$f":"SUBTOTAL(109,PlanOficina[Jul])","v":{"v":11470,"d":"11,470.00 €"}},{"$f":"SUBTOTAL(109,PlanOficina[Ago])","v":{"v":11470,"d":"11,470.00 €"}},{"$f":"SUBTOTAL(109,PlanOficina[Sep])","v":{"v":11470,"d":"11,470.00 €"}},{"$f":"SUBTOTAL(109,PlanOficina[Oct])","v":{"v":11470,"d":"11,470.00 €"}},{"$f":"SUBTOTAL(109,PlanOficina[Nov])","v":{"v":11770,"d":"11,770.00 €"}},{"$f":"SUBTOTAL(109,PlanOficina[Dic])","v":{"v":11770,"d":"11,770.00 €"}},{"$f":"SUBTOTAL(109,PlanOficina[AÑO])","v":{"v":138740,"d":"138,740.00 €"}}]
[]
[null,"COSTES DE MARKETING","Ene","Feb","Mar","Abr","Mayo","Jun","Jul","Ago","Sep","Oct","Nov","Dic","AÑO"]
[null,"Hospedaje del sitio web",{"v":500,"d":"500.00 €"},{"v":500,"d":"500.00 €"},{"v":500,"d":"500.00 €"},{"v":500,"d":"500.00 €"},{"v":500,"d":"500.00 €"},{"v":500,"d":"500.00 €"},{"v":500,"d":"500.00 €"},{"v":500,"d":"500.00 €"},{"v":500,"d":"500.00 €"},{"v":500,"d":"500.00 €"},{"v":500,"d":"500.00 €"},{"v":500,"d":"500.00 €"},{"$f":"SUM(C22:N22)","v":{"v":6000,"d":"6,000.00 €"}}]
[null,"Actualizaciones del sitio web",{"v":200,"d":"200.00 €"},{"v":200,"d":"200.00 €"},{"v":200,"d":"200.00 €"},{"v":200,"d":"200.00 €"},{"v":200,"d":"200.00 €"},{"v":1000,"d":"1,000.00 €"},{"v":200,"d":"200.00 €"},{"v":200,"d":"200.00 €"},{"v":200,"d":"200.00 €"},{"v":200,"d":"200.00 €"},{"v":200,"d":"200.00 €"},{"v":1000,"d":"1,000.00 €"},{"v":4000,"d":"4,000.00 €"}]
[null,"Preparación de material",{"v":5000,"d":"5,000.00 €"},{"v":0,"d":"0.00 €"},{"v":0,"d":"0.00 €"},{"v":5000,"d":"5,000.00 €"},{"v":0,"d":"0.00 €"},{"v":0,"d":"0.00 €"},{"v":5000,"d":"5,000.00 €"},{"v":0,"d":"0.00 €"},{"v":0,"d":"0.00 €"},{"v":5000,"d":"5,000.00 €"},{"v":0,"d":"0.00 €"},{"v":0,"d":"0.00 €"},{"v":20000,"d":"20,000.00 €"}]
[null,"Impresión de material",{"v":200,"d":"200.00 €"},{"v":200,"d":"200.00 €"},{"v":200,"d":"200.00 €"},{"v":200,"d":"200.00 €"},{"v":200,"d":"200.00 €"},{"v":200,"d":"200.00 €"},{"v":200,"d":"200.00 €"},{"v":200,"d":"200.00 €"},{"v":200,"d":"200.00 €"},{"v":200,"d":"200.00 €"},{"v":200,"d":"200.00 €"},{"v":200,"d":"200.00 €"},{"v":2400,"d":"2,400.00 €"}]
[null,"Eventos de marketing",{"v":2000,"d":"2,000.00 €"},{"v":2000,"d":"2,000.00 €"},{"v":2000,"d":"2,000.00 €"},{"v":5000,"d":"5,000.00 €"},{"v":2000,"d":"2,000.00 €"},{"v":2000,"d":"2,000.00 €"},{"v":2000,"d":"2,000.00 €"},{"v":5000,"d":"5,000.00 €"},{"v":2000,"d":"2,000.00 €"},{"v":2000,"d":"2,000.00 €"},{"v":2000,"d":"2,000.00 €"},{"v":5000,"d":"5,000.00 €"},{"v":33000,"d":"33,000.00 €"}]
[null,"Gastos varios",{"v":200,"d":"200.00 €"},{"v":200,"d":"200.00 €"},{"v":200,"d":"200.00 €"},{"v":200,"d":"200.00 €"},{"v":200,"d":"200.00 €"},{"v":200,"d":"200.00 €"},{"v":200,"d":"200.00 €"},{"v":200,"d":"200.00 €"},{"v":200,"d":"200.00 €"},{"v":200,"d":"200.00 €"},{"v":200,"d":"200.00 €"},{"v":200,"d":"200.00 €"},{"v":2400,"d":"2,400.00 €"}]
[null,"Subtotal",{"$f":"SUBTOTAL(109,PlanMarketing[Ene])","v":{"v":8100,"d":"8,100.00 €"}},{"$f":"SUBTOTAL(109,PlanMarketing[Feb])","v":{"v":3100,"d":"3,100.00 €"}},{"$f":"SUBTOTAL(109,PlanMarketing[Mar])","v":{"v":3100,"d":"3,100.00 €"}},{"$f":"SUBTOTAL(109,PlanMarketing[Abr])","v":{"v":11100,"d":"11,100.00 €"}},{"$f":"SUBTOTAL(109,PlanMarketing[Mayo])","v":{"v":3100,"d":"3,100.00 €"}},{"$f":"SUBTOTAL(109,PlanMarketing[Jun])","v":{"v":3900,"d":"3,900.00 €"}},{"$f":"SUBTOTAL(109,PlanMarketing[Jul])","v":{"v":8100,"d":"8,100.00 €"}},{"$f":"SUBTOTAL(109,PlanMarketing[Ago])","v":{"v":6100,"d":"6,100.00 €"}},{"$f":"SUBTOTAL(109,PlanMarketing[Sep])","v":{"v":3100,"d":"3,100.00 €"}},{"$f":"SUBTOTAL(109,PlanMarketing[Oct])","v":{"v":8100,"d":"8,100.00 €"}},{"$f":"SUBTOTAL(109,PlanMarketing[Nov])","v":{"v":3100,"d":"3,100.00 €"}},{"$f":"SUBTOTAL(109,PlanMarketing[Dic])","v":{"v":6900,"d":"6,900.00 €"}},{"$f":"SUBTOTAL(109,PlanMarketing[AÑO])","v":{"v":67800,"d":"67,800.00 €"}}]
[]
[null,"FORMACIÓN/VIAJES","Ene","Feb","Mar","Abr","Mayo","Jun","Jul","Ago","Sep","Oct","Nov","Dic","AÑO"]
[null,"Cursos de aprendizaje",{"v":2000,"d":"2,000.00 €"},{"v":2000,"d":"2,000.00 €"},{"v":2000,"d":"2,000.00 €"},{"v":2000,"d":"2,000.00 €"},{"v":2000,"d":"2,000.00 €"},{"v":2000,"d":"2,000.00 €"},{"v":2000,"d":"2,000.00 €"},{"v":2000,"d":"2,000.00 €"},{"v":2000,"d":"2,000.00 €"},{"v":2000,"d":"2,000.00 €"},{"v":2000,"d":"2,000.00 €"},{"v":2000,"d":"2,000.00 €"},{"$f":"SUM(C31:N31)","v":{"v":24000,"d":"24,000.00 €"}}]
[null,"Costos de viajes de aprendizaje",{"v":2000,"d":"2,000.00 €"},{"v":2000,"d":"2,000.00 €"},{"v":2000,"d":"2,000.00 €"},{"v":2000,"d":"2,000.00 €"},{"v":2000,"d":"2,000.00 €"},{"v":2000,"d":"2,000.00 €"},{"v":2000,"d":"2,000.00 €"},{"v":2000,"d":"2,000.00 €"},{"v":2000,"d":"2,000.00 €"},{"v":2000,"d":"2,000.00 €"},{"v":2000,"d":"2,000.00 €"},{"v":2000,"d":"2,000.00 €"},{"$f":"SUM(C32:N32)","v":{"v":24000,"d":"24,000.00 €"}}]
[null,"Subtotal",{"$f":"SUBTOTAL(109,PlanFormacionYViajes[Ene])","v":{"v":4000,"d":"4,000.00 €"}},{"$f":"SUBTOTAL(109,PlanFormacionYViajes[Feb])","v":{"v":4000,"d":"4,000.00 €"}},{"$f":"SUBTOTAL(109,PlanFormacionYViajes[Mar])","v":{"v":4000,"d":"4,000.00 €"}},{"$f":"SUBTOTAL(109,PlanFormacionYViajes[Abr])","v":{"v":4000,"d":"4,000.00 €"}},{"$f":"SUBTOTAL(109,PlanFormacionYViajes[Mayo])","v":{"v":4000,"d":"4,000.00 €"}},{"$f":"SUBTOTAL(109,PlanFormacionYViajes[Jun])","v":{"v":4000,"d":"4,000.00 €"}},{"$f":"SUBTOTAL(109,PlanFormacionYViajes[Jul])","v":{"v":4000,"d":"4,000.00 €"}},{"$f":"SUBTOTAL(109,PlanFormacionYViajes[Ago])","v":{"v":4000,"d":"4,000.00 €"}},{"$f":"SUBTOTAL(109,PlanFormacionYViajes[Sep])","v":{"v":4000,"d":"4,000.00 €"}},{"$f":"SUBTOTAL(109,PlanFormacionYViajes[Oct])","v":{"v":4000,"d":"4,000.00 €"}},{"$f":"SUBTOTAL(109,PlanFormacionYViajes[Nov])","v":{"v":4000,"d":"4,000.00 €"}},{"$f":"SUBTOTAL(109,PlanFormacionYViajes[Dic])","v":{"v":4000,"d":"4,000.00 €"}},{"$f":"SUBTOTAL(109,PlanFormacionYViajes[AÑO])","v":{"v":48000,"d":"48,000.00 €"}}]
[]
[null,"GASTOS TOTALES PLANIFICADOS","Ene","Feb","Mar","Abr","May","Jun","Jul","Ago","Sep","Oct","Nov","Dic","Año"]
[null,"Gastos planificados mensuales",{"$f":"PlanFormacionYViajes[[#Totals],[Ene]]+PlanMarketing[[#Totals],[Ene]]+PlanOficina[[#Totals],[Ene]]+PlanEmpleado[[#Totals],[Ene]]","v":{"v":131420,"d":"131,420.00 €"}},{"$f":"PlanFormacionYViajes[[#Totals],[Feb]]+PlanMarketing[[#Totals],[Feb]]+PlanOficina[[#Totals],[Feb]]+PlanEmpleado[[#Totals],[Feb]]","v":{"v":126820,"d":"126,820.00 €"}},{"$f":"PlanFormacionYViajes[[#Totals],[Mar]]+PlanMarketing[[#Totals],[Mar]]+PlanOficina[[#Totals],[Mar]]+PlanEmpleado[[#Totals],[Mar]]","v":{"v":126820,"d":"126,820.00 €"}},{"$f":"PlanFormacionYViajes[[#Totals],[Abr]]+PlanMarketing[[#Totals],[Abr]]+PlanOficina[[#Totals],[Abr]]+PlanEmpleado[[#Totals],[Abr]]","v":{"v":137695,"d":"137,695.00 €"}},{"$f":"PlanFormacionYViajes[[#Totals],[Mayo]]+PlanMarketing[[#Totals],[Mayo]]+PlanOficina[[#Totals],[Mayo]]+PlanEmpleado[[#Totals],[Mayo]]","v":{"v":129695,"d":"129,695.00 €"}},{"$f":"PlanFormacionYViajes[[#Totals],[Jun]]+PlanMarketing[[#Totals],[Jun]]+PlanOficina[[#Totals],[Jun]]+PlanEmpleado[[#Totals],[Jun]]","v":{"v":130495,"d":"130,495.00 €"}},{"$f":"PlanFormacionYViajes[[#Totals],[Jul]]+PlanMarketing[[#Totals],[Jul]]+PlanOficina[[#Totals],[Jul]]+PlanEmpleado[[#Totals],[Jul]]","v":{"v":134695,"d":"134,695.00 €"}},{"$f":"PlanFormacionYViajes[[#Totals],[Ago]]+PlanMarketing[[#Totals],[Ago]]+PlanOficina[[#Totals],[Ago]]+PlanEmpleado[[#Totals],[Ago]]","v":{"v":138918,"d":"138,918.00 €"}},{"$f":"PlanFormacionYViajes[[#Totals],[Sep]]+PlanMarketing[[#Totals],[Sep]]+PlanOficina[[#Totals],[Sep]]+PlanEmpleado[[#Totals],[Sep]]","v":{"v":135918,"d":"135,918.00 €"}},{"$f":"PlanFormacionYViajes[[#Totals],[Oct]]+PlanMarketing[[#Totals],[Oct]]+PlanOficina[[#Totals],[Oct]]+PlanEmpleado[[#Totals],[Oct]]","v":{"v":140918,"d":"140,918.00 €"}},{"$f":"PlanFormacionYViajes[[#Totals],[Nov]]+PlanMarketing[[#Totals],[Nov]]+PlanOficina[[#Totals],[Nov]]+PlanEmpleado[[#Totals],[Nov]]","v":{"v":136218,"d":"136,218.00 €"}},{"$f":"PlanFormacionYViajes[[#Totals],[Dic]]+PlanMarketing[[#Totals],[Dic]]+PlanOficina[[#Totals],[Dic]]+PlanEmpleado[[#Totals],[Dic]]","v":{"v":140018,"d":"140,018.00 €"}},{"$f":"PlanFormacionYViajes[[#Totals],[AÑO]]+PlanMarketing[[#Totals],[AÑO]]+PlanOficina[[#Totals],[AÑO]]+PlanEmpleado[[#Totals],[AÑO]]","v":{"v":1609630,"d":"1,609,630.00 €"}}]
[null,"Gastos planificados TOTALES",{"$f":"SUM($C$36:C36)","v":{"v":131420,"d":"131,420.00 €"}},{"$f":"SUM($C$36:D36)","v":{"v":258240,"d":"258,240.00 €"}},{"$f":"SUM($C$36:E36)","v":{"v":385060,"d":"385,060.00 €"}},{"$f":"SUM($C$36:F36)","v":{"v":522755,"d":"522,755.00 €"}},{"$f":"SUM($C$36:G36)","v":{"v":652450,"d":"652,450.00 €"}},{"$f":"SUM($C$36:H36)","v":{"v":782945,"d":"782,945.00 €"}},{"$f":"SUM($C$36:I36)","v":{"v":917640,"d":"917,640.00 €"}},{"$f":"SUM($C$36:J36)","v":{"v":1056558,"d":"1,056,558.00 €"}},{"$f":"SUM($C$36:K36)","v":{"v":1192476,"d":"1,192,476.00 €"}},{"$f":"SUM($C$36:L36)","v":{"v":1333394,"d":"1,333,394.00 €"}},{"$f":"SUM($C$36:M36)","v":{"v":1469612,"d":"1,469,612.00 €"}},{"$f":"SUM($C$36:N36)","v":{"v":1609630,"d":"1,609,630.00 €"}}]

{"sheet":"GASTOS REALES","index":2,"n_rows":37,"n_cols":15,"rows_kept":37,"merged":[[0,1,2,14],[8,1,8,2],[8,3,8,4],[19,1,19,2],[28,1,28,2],[33,1,33,2]]}
[]
[]
[]
[null,"GASTOS REALES","ENE","FEB","MAR","ABR","MAY","JUN","JUL","AGO","SEP","OCT","NOV","DIC","AÑO"]
[null,"COSTES POR EMPLEADO","Ene","Feb","Mar","Abr","Mayo","Jun","Jul","Ago","Sep","Oct","Nov","Dic","AÑO"]
[null,"Salarios",{"v":85000,"d":"85,000.00 €"},{"v":85000,"d":"85,000.00 €"},{"v":85000,"d":"85,000.00 €"},{"v":88000,"d":"88,000.00 €"},{"v":88000,"d":"88,000.00 €"},{"v":88000,"d":"88,000.00 €"},{"$nulls":6},{"$f":"SUM(C6:N6)","v":{"v":519000,"d":"519,000.00 €"}}]
[null,"Beneficios",{"$f":"C6*0.27","v":{"v":22950,"d":"22,950.00 €"}},{"v":22950,"d":"22,950.00 €"},{"v":22950,"d":"22,950.00 €"},{"v":23760,"d":"23,760.00 €"},{"v":23760,"d":"23,760.00 €"},{"v":23760,"d":"23,760.00 €"},{"v":0,"d":"0.00 €"},{"v":0,"d":"0.00 €"},{"v":0,"d":"0.00 €"},{"v":0,"d":"0.00 €"},{"v":0,"d":"0.00 €"},{"v":0,"d":"0.00 €"},{"$f":"SUM(C7:N7)","v":{"v":140130,"d":"140,130.00 €"}}]
[null,"Subtotal",{"$f":"SUBTOTAL(109,RealEmpleado[Ene])","v":{"v":107950,"d":"107,950.00 €"}},{"$f":"SUBTOTAL(109,RealEmpleado[Feb])","v":{"v":107950,"d":"107,950.00 €"}},{"$f":"SUBTOTAL(109,RealEmpleado[Mar])","v":{"v":107950,"d":"107,950.00 €"}},{"$f":"SUBTOTAL(109,RealEmpleado[Abr])","v":{"v":111760,"d":"111,760.00 €"}},{"$f":"SUBTOTAL(109,RealEmpleado[Mayo])","v":{"v":111760,"d":"111,760.00 €"}},{"$f":"SUBTOTAL(109,RealEmpleado[Jun])","v":{"v":111760,"d":"111,760.00 €"}},{"$f":"SUBTOTAL(109,RealEmpleado[Jul])","v":{"v":0,"d":"0.00 €"}},{"$f":"SUBTOTAL(109,RealEmpleado[Ago])","v":{"v":0,"d":"0.00 €"}},{"$f":"SUBTOTAL(109,RealEmpleado[Sep])","v":{"v":0,"d":"0.00 €"}},{"$f":"SUBTOTAL(109,RealEmpleado[Oct])","v":{"v":0,"d":"0.00 €"}},{"$f":"SUBTOTAL(109,RealEmpleado[Nov])","v":{"v":0,"d":"0.00 €"}},{"$f":"SUBTOTAL(109,RealEmpleado[Dic])","v":{"v":0,"d":"0.00 €"}},{"$f":"SUBTOTAL(109,RealEmpleado[AÑO])","v":{"v":659130,"d":"659,130.00 €"}}]
[]
[null,"COSTES DE LA OFICINA","Ene","Feb","Mar","Abr","Mayo","Jun","Jul","Ago","Sep","Oct","Nov","Dic","AÑO"]
[null,"Alquiler de la oficina",{"v":9800,"d":"9,800.00 €"},{"v":9800,"d":"9,800.00 €"},{"v":9800,"d":"9,800.00 €"},{"v":9800,"d":"9,800.00 €"},{"v":9800,"d":"9,800.00 €"},{"v":9800,"d":"9,800.00 €"},{"$nulls":6},{"$f":"SUM(C11:N11)","v":{"v":58800,"d":"58,800.00 €"}}]
[null,"Gas",{"v":4,"d":"4.00 €"},{"v":430,"d":"430.00 €"},{"v":385,"d":"385.00 €"},{"v":230,"d":"230.00 €"},{"v":87,"d":"87.00 €"},{"v":88,"d":"88.00 €"},{"$nulls":6},{"v":1224,"d":"1,224.00 €"}]
[null,"Electricidad",{"v":288,"d":"288.00 €"},{"v":278,"d":"278.00 €"},{"v":268,"d":"268.00 €"},{"v":299,"d":"299.00 €"},{"v":306,"d":"306.00 €"},{"v":290,"d":"290.00 €"},{"$nulls":6},{"v":1729,"d":"1,729.00 €"}]
[null,"Agua",{"v":35,"d":"35.00 €"},{"v":33,"d":"33.00 €"},{"v":34,"d":"34.00 €"},{"v":36,"d":"36.00 €"},{"v":34,"d":"34.00 €"},{"v":36,"d":"36.00 €"},{"$nulls":6},{"$f":"SUM(C14:N14)","v":{"v":208,"d":"208.00 €"}}]
[null,"Teléfono",{"v":224,"d":"224.00 €"},{"v":235,"d":"235.00 €"},{"v":265,"d":"265.00 €"},{"v":245,"d":"245.00 €"},{"v":245,"d":"245.00 €"},{"v":220,"d":"220.00 €"},{"$nulls":6},{"v":1434,"d":"1,434.00 €"}]
[null,"Acceso a Internet",{"v":180,"d":"180.00 €"},{"v":180,"d":"180.00 €"},{"v":180,"d":"180.00 €"},{"v":180,"d":"180.00 €"},{"v":180,"d":"180.00 €"},{"v":180,"d":"180.00 €"},{"$nulls":6},{"v":1080,"d":"1,080.00 €"}]
[null,"Material de oficina",{"v":256,"d":"256.00 €"},{"v":142,"d":"142.00 €"},{"v":160,"d":"160.00 €"},{"v":221,"d":"221.00 €"},{"v":256,"d":"256.00 €"},{"v":240,"d":"240.00 €"},{"$nulls":6},{"v":1275,"d":"1,275.00 €"}]
[null,"Seguridad",{"v":600,"d":"600.00 €"},{"v":600,"d":"600.00 €"},{"v":600,"d":"600.00 €"},{"v":600,"d":"600.00 €"},{"v":600,"d":"600.00 €"},{"v":600,"d":"600.00 €"},{"$nulls":6},{"v":3600,"d":"3,600.00 €"}]
[null,"Subtotal",{"$f":"SUBTOTAL(109,RealOficina[Ene])","v":{"v":11387,"d":"11,387.00 €"}},{"$f":"SUBTOTAL(109,RealOficina[Feb])","v":{"v":11698,"d":"11,698.00 €"}},{"$f":"SUBTOTAL(109,RealOficina[Mar])","v":{"v":11692,"d":"11,692.00 €"}},{"$f":"SUBTOTAL(109,RealOficina[Abr])","v":{"v":11611,"d":"11,611.00 €"}},{"$f":"SUBTOTAL(109,RealOficina[Mayo])","v":{"v":11508,"d":"11,508.00 €"}},{"$f":"SUBTOTAL(109,RealOficina[Jun])","v":{"v":11454,"d":"11,454.00 €"}},{"$f":"SUBTOTAL(109,RealOficina[Jul])","v":{"v":0,"d":"0.00 €"}},{"$f":"SUBTOTAL(109,RealOficina[Ago])","v":{"v":0,"d":"0.00 €"}},{"$f":"SUBTOTAL(109,RealOficina[Sep])","v":{"v":0,"d":"0.00 €"}},{"$f":"SUBTOTAL(109,RealOficina[Oct])","v":{"v":0,"d":"0.00 €"}},{"$f":"SUBTOTAL(109,RealOficina[Nov])","v":{"v":0,"d":"0.00 €"}},{"$f":"SUBTOTAL(109,RealOficina[Dic])","v":{"v":0,"d":"0.00 €"}},{"$f":"SUBTOTAL(109,RealOficina[AÑO])","v":{"v":69350,"d":"69,350.00 €"}}]
[]
[null,"COSTES DE MARKETING","Ene","Feb","Mar","Abr","Mayo","Jun","Jul","Ago","Sep","Oct","Nov","Dic","AÑO"]
[null,"Hospedaje del sitio web",{"v":500,"d":"500.00 €"},{"v":500,"d":"500.00 €"},{"v":500,"d":"500.00 €"},{"v":500,"d":"500.00 €"},{"v":500,"d":"500.00 €"},{"v":500,"d":"500.00 €"},{"$nulls":6},{"$f":"SUM(C22:N22)","v":{"v":3000,"d":"3,000.00 €"}}]
[null,"Actualizaciones del sitio web",{"v":200,"d":"200.00 €"},{"v":200,"d":"200.00 €"},{"v":200,"d":"200.00 €"},{"v":200,"d":"200.00 €"},{"v":200,"d":"200.00 €"},{"v":1500,"d":"1,500.00 €"},{"$nulls":6},{"v":2500,"d":"2,500.00 €"}]
[null,"Preparación de material",{"v":4800,"d":"4,800.00 €"},{"v":0,"d":"0.00 €"},{"v":0,"d":"0.00 €"},{"v":5500,"d":"5,500.00 €"},{"v":0,"d":"0.00 €"},{"v":0,"d":"0.00 €"},{"$nulls":6},{"v":10300,"d":"10,300.00 €"}]
[null,"Impresión de material",{"v":100,"d":"100.00 €"},{"v":500,"d":"500.00 €"},{"v":100,"d":"100.00 €"},{"v":100,"d":"100.00 €"},{"v":600,"d":"600.00 €"},{"v":180,"d":"180.00 €"},{"$nulls":6},{"v":1580,"d":"1,580.00 €"}]
[null,"Eventos de marketing",{"v":1800,"d":"1,800.00 €"},{"v":2200,"d":"2,200.00 €"},{"v":2200,"d":"2,200.00 €"},{"v":4700,"d":"4,700.00 €"},{"v":1500,"d":"1,500.00 €"},{"v":2300,"d":"2,300.00 €"},{"$nulls":6},{"v":14700,"d":"14,700.00 €"}]
[null,"Gastos varios",{"v":145,"d":"145.00 €"},{"v":156,"d":"156.00 €"},{"v":123,"d":"123.00 €"},{"v":223,"d":"223.00 €"},{"v":187,"d":"187.00 €"},{"v":245,"d":"245.00 €"},{"$nulls":6},{"v":1079,"d":"1,079.00 €"}]
[null,"Subtotal",{"$f":"SUBTOTAL(109,RealMarketing[Ene])","v":{"v":7545,"d":"7,545.00 €"}},{"$f":"SUBTOTAL(109,RealMarketing[Feb])","v":{"v":3556,"d":"3,556.00 €"}},{"$f":"SUBTOTAL(109,RealMarketing[Mar])","v":{"v":3123,"d":"3,123.00 €"}},{"$f":"SUBTOTAL(109,RealMarketing[Abr])","v":{"v":11223,"d":"11,223.00 €"}},{"$f":"SUBTOTAL(109,RealMarketing[Mayo])","v":{"v":2987,"d":"2,987.00 €"}},{"$f":"SUBTOTAL(109,RealMarketing[Jun])","v":{"v":4725,"d":"4,725.00 €"}},{"$f":"SUBTOTAL(109,RealMarketing[Jul])","v":{"v":0,"d":"0.00 €"}},{"$f":"SUBTOTAL(109,RealMarketing[Ago])","v":{"v":0,"d":"0.00 €"}},{"$f":"SUBTOTAL(109,RealMarketing[Sep])","v":{"v":0,"d":"0.00 €"}},{"$f":"SUBTOTAL(109,RealMarketing[Oct])","v":{"v":0,"d":"0.00 €"}},{"$f":"SUBTOTAL(109,RealMarketing[Nov])","v":{"v":0,"d":"0.00 €"}},{"$f":"SUBTOTAL(109,RealMarketing[Dic])","v":{"v":0,"d":"0.00 €"}},{"$f":"SUBTOTAL(109,RealMarketing[AÑO])","v":{"v":33159,"d":"33,159.00 €"}}]
[]
[null,"COSTES DE FORMACIÓN","Ene","Feb","Mar","Abr","Mayo","Jun","Jul","Ago","Sep","Oct","Nov","Dic","AÑO"]
[null,"Cursos de aprendizaje",{"v":1600,"d":"1,600.00 €"},{"v":2400,"d":"2,400.00 €"},{"v":1400,"d":"1,400.00 €"},{"v":1600,"d":"1,600.00 €"},{"v":1200,"d":"1,200.00 €"},{"v":2800,"d":"2,800.00 €"},{"$nulls":6},{"$f":"SUM(C31:N31)","v":{"v":11000,"d":"11,000.00 €"}}]
[null,"Costos de viajes de aprendizaje",{"v":1200,"d":"1,200.00 €"},{"v":2200,"d":"2,200.00 €"},{"v":1400,"d":"1,400.00 €"},{"v":1200,"d":"1,200.00 €"},{"v":800,"d":"800.00 €"},{"v":3500,"d":"3,500.00 €"},{"$nulls":6},{"$f":"SUM(C32:N32)","v":{"v":10300,"d":"10,300.00 €"}}]
[null,"Subtotal",{"$f":"SUBTOTAL(109,RealFormacionYViajes[Ene])","v":{"v":2800,"d":"2,800.00 €"}},{"$f":"SUBTOTAL(109,RealFormacionYViajes[Feb])","v":{"v":4600,"d":"4,600.00 €"}},{"$f":"SUBTOTAL(109,RealFormacionYViajes[Mar])","v":{"v":2800,"d":"2,800.00 €"}},{"$f":"SUBTOTAL(109,RealFormacionYViajes[Abr])","v":{"v":2800,"d":"2,800.00 €"}},{"$f":"SUBTOTAL(109,RealFormacionYViajes[Mayo])","v":{"v":2000,"d":"2,000.00 €"}},{"$f":"SUBTOTAL(109,RealFormacionYViajes[Jun])","v":{"v":6300,"d":"6,300.00 €"}},{"$f":"SUBTOTAL(109,RealFormacionYViajes[Jul])","v":{"v":0,"d":"0.00 €"}},{"$f":"SUBTOTAL(109,RealFormacionYViajes[Ago])","v":{"v":0,"d":"0.00 €"}},{"$f":"SUBTOTAL(109,RealFormacionYViajes[Sep])","v":{"v":0,"d":"0.00 €"}},{"$f":"SUBTOTAL(109,RealFormacionYViajes[Oct])","v":{"v":0,"d":"0.00 €"}},{"$f":"SUBTOTAL(109,RealFormacionYViajes[Nov])","v":{"v":0,"d":"0.00 €"}},{"$f":"SUBTOTAL(109,RealFormacionYViajes[Dic])","v":{"v":0,"d":"0.00 €"}},{"$f":"SUBTOTAL(109,RealFormacionYViajes[AÑO])","v":{"v":21300,"d":"21,300.00 €"}}]
[]
[null,"GASTOS TOTALES REALES","Ene","Feb","Mar","Abr","May","Jun","Jul","Ago","Sep","Oct","Nov","Dic","Año"]
[null,"Gastos reales mensuales",{"$f":"RealFormacionYViajes[[#Totals],[Ene]]+RealMarketing[[#Totals],[Ene]]+RealOficina[[#Totals],[Ene]]+RealEmpleado[[#Totals],[Ene]]","v":{"v":129682,"d":"129,682.00 €"}},{"$f":"RealFormacionYViajes[[#Totals],[Feb]]+RealMarketing[[#Totals],[Feb]]+RealOficina[[#Totals],[Feb]]+RealEmpleado[[#Totals],[Feb]]","v":{"v":127804,"d":"127,804.00 €"}},{"$f":"RealFormacionYViajes[[#Totals],[Mar]]+RealMarketing[[#Totals],[Mar]]+RealOficina[[#Totals],[Mar]]+RealEmpleado[[#Totals],[Mar]]","v":{"v":125565,"d":"125,565.00 €"}},{"$f":"RealFormacionYViajes[[#Totals],[Abr]]+RealMarketing[[#Totals],[Abr]]+RealOficina[[#Totals],[Abr]]+RealEmpleado[[#Totals],[Abr]]","v":{"v":137394,"d":"137,394.00 €"}},{"$f":"RealFormacionYViajes[[#Totals],[Mayo]]+RealMarketing[[#Totals],[Mayo]]+RealOficina[[#Totals],[Mayo]]+RealEmpleado[[#Totals],[Mayo]]","v":{"v":128255,"d":"128,255.00 €"}},{"$f":"RealFormacionYViajes[[#Totals],[Jun]]+RealMarketing[[#Totals],[Jun]]+RealOficina[[#Totals],[Jun]]+RealEmpleado[[#Totals],[Jun]]","v":{"v":134239,"d":"134,239.00 €"}},{"$f":"RealFormacionYViajes[[#Totals],[Jul]]+RealMarketing[[#Totals],[Jul]]+RealOficina[[#Totals],[Jul]]+RealEmpleado[[#Totals],[Jul]]","v":{"v":0,"d":"0.00 €"}},{"$f":"RealFormacionYViajes[[#Totals],[Ago]]+RealMarketing[[#Totals],[Ago]]+RealOficina[[#Totals],[Ago]]+RealEmpleado[[#Totals],[Ago]]","v":{"v":0,"d":"0.00 €"}},{"$f":"RealFormacionYViajes[[#Totals],[Sep]]+RealMarketing[[#Totals],[Sep]]+RealOficina[[#Totals],[Sep]]+RealEmpleado[[#Totals],[Sep]]","v":{"v":0,"d":"0.00 €"}},{"$f":"RealFormacionYViajes[[#Totals],[Oct]]+RealMarketing[[#Totals],[Oct]]+RealOficina[[#Totals],[Oct]]+RealEmpleado[[#Totals],[Oct]]","v":{"v":0,"d":"0.00 €"}},{"$f":"RealFormacionYViajes[[#Totals],[Nov]]+RealMarketing[[#Totals],[Nov]]+RealOficina[[#Totals],[Nov]]+RealEmpleado[[#Totals],[Nov]]","v":{"v":0,"d":"0.00 €"}},{"$f":"RealFormacionYViajes[[#Totals],[Dic]]+RealMarketing[[#Totals],[Dic]]+RealOficina[[#Totals],[Dic]]+RealEmpleado[[#Totals],[Dic]]","v":{"v":0,"d":"0.00 €"}},{"$f":"RealFormacionYViajes[[#Totals],[AÑO]]+RealMarketing[[#Totals],[AÑO]]+RealOficina[[#Totals],[AÑO]]+RealEmpleado[[#Totals],[AÑO]]","v":{"v":782939,"d":"782,939.00 €"}}]
[null,"Gastos reales TOTALES",{"$f":"SUM($C$36:C36)","v":{"v":129682,"d":"129,682.00 €"}},{"$f":"SUM($C$36:D36)","v":{"v":257486,"d":"257,486.00 €"}},{"$f":"SUM($C$36:E36)","v":{"v":383051,"d":"383,051.00 €"}},{"$f":"SUM($C$36:F36)","v":{"v":520445,"d":"520,445.00 €"}},{"$f":"SUM($C$36:G36)","v":{"v":648700,"d":"648,700.00 €"}},{"$f":"SUM($C$36:H36)","v":{"v":782939,"d":"782,939.00 €"}},{"$f":"SUM($C$36:I36)","v":{"v":782939,"d":"782,939.00 €"}},{"$f":"SUM($C$36:J36)","v":{"v":782939,"d":"782,939.00 €"}},{"$f":"SUM($C$36:K36)","v":{"v":782939,"d":"782,939.00 €"}},{"$f":"SUM($C$36:L36)","v":{"v":782939,"d":"782,939.00 €"}},{"$f":"SUM($C$36:M36)","v":{"v":782939,"d":"782,939.00 €"}},{"$f":"SUM($C$36:N36)","v":{"v":782939,"d":"782,939.00 €"}}]

{"sheet":"DESVIACIONES DE GASTOS","index":3,"n_rows":37,"n_cols":15,"rows_kept":37,"merged":[[0,1,2,14],[8,1,8,2],[19,1,19,2],[28,1,28,2],[33,1,33,2]]}
[]
[]
[]
[null,"DESVIACIONES DE GASTO","ENE","FEB","MAR","ABR","MAY","JUN","JUL","AGO","SEP","OCT","NOV","DIC","AÑO"]
[null,"COSTES POR EMPLEADO","Ene","Feb","Mar","Abr","Mayo","Jun","Jul","Ago","Sep","Oct","Nov","Dic","AÑO"]
[null,"Salarios",{"$f":"INDEX(PlanEmpleado[],MATCH(INDEX(DesviacionesEmpleados[],ROW()-ROW(DesviacionesEmpleados[[#Headers],[Ene]]),1),INDEX(PlanEmpleado[],,1),0),MATCH(DesviacionesEmpleados[[#Headers],[Ene]],PlanEmpleado[#Headers],0))-INDEX(RealEmpleado[],MATCH(INDEX(DesviacionesEmpleados[],ROW()-ROW(DesviacionesEmpleados[[#Headers],[Ene]]),1),INDEX(PlanEmpleado[],,1),0),MATCH(DesviacionesEmpleados[[#Headers],[Ene]],RealEmpleado[#Headers],0))","v":{"v":0,"d":"0.00 €"}},{"$f":"INDEX(PlanEmpleado[],MATCH(INDEX(DesviacionesEmpleados[],ROW()-ROW(DesviacionesEmpleados[[#Headers],[Feb]]),1),INDEX(PlanEmpleado[],,1),0),MATCH(DesviacionesEmpleados[[#Headers],[Feb]],PlanEmpleado[#Headers],0))-INDEX(RealEmpleado[],MATCH(INDEX(DesviacionesEmpleados[],ROW()-ROW(DesviacionesEmpleados[[#Headers],[Feb]]),1),INDEX(PlanEmpleado[],,1),0),MATCH(DesviacionesEmpleados[[#Headers],[Feb]],RealEmpleado[#Headers],0))","v":{"v":0,"d":"0.00 €"}},{"$f":"INDEX(PlanEmpleado[],MATCH(INDEX(DesviacionesEmpleados[],ROW()-ROW(DesviacionesEmpleados[[#Headers],[Mar]]),1),INDEX(PlanEmpleado[],,1),0),MATCH(DesviacionesEmpleados[[#Headers],[Mar]],PlanEmpleado[#Headers],0))-INDEX(RealEmpleado[],MATCH(INDEX(DesviacionesEmpleados[],ROW()-ROW(DesviacionesEmpleados[[#Headers],[Mar]]),1),INDEX(PlanEmpleado[],,1),0),MATCH(DesviacionesEmpleados[[#Headers],[Mar]],RealEmpleado[#Headers],0))","v":{"v":0,"d":"0.00 €"}},{"$f":"INDEX(PlanEmpleado[],MATCH(INDEX(DesviacionesEmpleados[],ROW()-ROW(DesviacionesEmpleados[[#Headers],[Abr]]),1),INDEX(PlanEmpleado[],,1),0),MATCH(DesviacionesEmpleados[[#Headers],[Abr]],PlanEmpleado[#Headers],0))-INDEX(RealEmpleado[],MATCH(INDEX(DesviacionesEmpleados[],ROW()-ROW(DesviacionesEmpleados[[#Headers],[Abr]]),1),INDEX(PlanEmpleado[],,1),0),MATCH(DesviacionesEmpleados[[#Headers],[Abr]],RealEmpleado[#Headers],0))","v":{"v":-500,"d":"-500.00 €"}},{"$f":"INDEX(PlanEmpleado[],MATCH(INDEX(DesviacionesEmpleados[],ROW()-ROW(DesviacionesEmpleados[[#Headers],[Mayo]]),1),INDEX(PlanEmpleado[],,1),0),MATCH(DesviacionesEmpleados[[#Headers],[Mayo]],PlanEmpleado[#Headers],0))-INDEX(RealEmpleado[],MATCH(INDEX(DesviacionesEmpleados[],ROW()-ROW(DesviacionesEmpleados[[#Headers],[Mayo]]),1),INDEX(PlanEmpleado[],,1),0),MATCH(DesviacionesEmpleados[[#Headers],[Mayo]],RealEmpleado[#Headers],0))","v":{"v":-500,"d":"-500.00 €"}},{"$f":"INDEX(PlanEmpleado[],MATCH(INDEX(DesviacionesEmpleados[],ROW()-ROW(DesviacionesEmpleados[[#Headers],[Jun]]),1),INDEX(PlanEmpleado[],,1),0),MATCH(DesviacionesEmpleados[[#Headers],[Jun]],PlanEmpleado[#Headers],0))-INDEX(RealEmpleado[],MATCH(INDEX(DesviacionesEmpleados[],ROW()-ROW(DesviacionesEmpleados[[#Headers],[Jun]]),1),INDEX(PlanEmpleado[],,1),0),MATCH(DesviacionesEmpleados[[#Headers],[Jun]],RealEmpleado[#Headers],0))","v":{"v":-500,"d":"-500.00 €"}},{"$f":"INDEX(PlanEmpleado[],MATCH(INDEX(DesviacionesEmpleados[],ROW()-ROW(DesviacionesEmpleados[[#Headers],[Jul]]),1),INDEX(PlanEmpleado[],,1),0),MATCH(DesviacionesEmpleados[[#Headers],[Jul]],PlanEmpleado[#Headers],0))-INDEX(RealEmpleado[],MATCH(INDEX(DesviacionesEmpleados[],ROW()-ROW(DesviacionesEmpleados[[#Headers],[Jul]]),1),INDEX(PlanEmpleado[],,1),0),MATCH(DesviacionesEmpleados[[#Headers],[Jul]],RealEmpleado[#Headers],0))","v":{"v":87500,"d":"87,500.00 €"}},{"$f":"INDEX(PlanEmpleado[],MATCH(INDEX(DesviacionesEmpleados[],ROW()-ROW(DesviacionesEmpleados[[#Headers],[Ago]]),1),INDEX(PlanEmpleado[],,1),0),MATCH(DesviacionesEmpleados[[#Headers],[Ago]],PlanEmpleado[#Headers],0))-INDEX(RealEmpleado[],MATCH(INDEX(DesviacionesEmpleados[],ROW()-ROW(DesviacionesEmpleados[[#Headers],[Ago]]),1),INDEX(PlanEmpleado[],,1),0),MATCH(DesviacionesEmpleados[[#Headers],[Ago]],RealEmpleado[#Headers],0))","v":{"v":92400,"d":"92,400.00 €"}},{"$f":"INDEX(PlanEmpleado[],MATCH(INDEX(DesviacionesEmpleados[],ROW()-ROW(DesviacionesEmpleados[[#Headers],[Sep]]),1),INDEX(PlanEmpleado[],,1),0),MATCH(DesviacionesEmpleados[[#Headers],[Sep]],PlanEmpleado[#Headers],0))-INDEX(RealEmpleado[],MATCH(INDEX(DesviacionesEmpleados[],ROW()-ROW(DesviacionesEmpleados[[#Headers],[Sep]]),1),INDEX(PlanEmpleado[],,1),0),MATCH(DesviacionesEmpleados[[#Headers],[Sep]],RealEmpleado[#Headers],0))","v":{"v":92400,"d":"92,400.00 €"}},{"$f":"INDEX(PlanEmpleado[],MATCH(INDEX(DesviacionesEmpleados[],ROW()-ROW(DesviacionesEmpleados[[#Headers],[Oct]]),1),INDEX(PlanEmpleado[],,1),0),MATCH(DesviacionesEmpleados[[#Headers],[Oct]],PlanEmpleado[#Headers],0))-INDEX(RealEmpleado[],MATCH(INDEX(DesviacionesEmpleados[],ROW()-ROW(DesviacionesEmpleados[[#Headers],[Oct]]),1),INDEX(PlanEmpleado[],,1),0),MATCH(DesviacionesEmpleados[[#Headers],[Oct]],RealEmpleado[#Headers],0))","v":{"v":92400,"d":"92,400.00 €"}},{"$f":"INDEX(PlanEmpleado[],MATCH(INDEX(DesviacionesEmpleados[],ROW()-ROW(DesviacionesEmpleados[[#Headers],[Nov]]),1),INDEX(PlanEmpleado[],,1),0),MATCH(DesviacionesEmpleados[[#Headers],[Nov]],PlanEmpleado[#Headers],0))-INDEX(RealEmpleado[],MATCH(INDEX(DesviacionesEmpleados[],ROW()-ROW(DesviacionesEmpleados[[#Headers],[Nov]]),1),INDEX(PlanEmpleado[],,1),0),MATCH(DesviacionesEmpleados[[#Headers],[Nov]],RealEmpleado[#Headers],0))","v":{"v":92400,"d":"92,400.00 €"}},{"$f":"INDEX(PlanEmpleado[],MATCH(INDEX(DesviacionesEmpleados[],ROW()-ROW(DesviacionesEmpleados[[#Headers],[Dic]]),1),INDEX(PlanEmpleado[],,1),0),MATCH(DesviacionesEmpleados[[#Headers],[Dic]],PlanEmpleado[#Headers],0))-INDEX(RealEmpleado[],MATCH(INDEX(DesviacionesEmpleados[],ROW()-ROW(DesviacionesEmpleados[[#Headers],[Dic]]),1),INDEX(PlanEmpleado[],,1),0),MATCH(DesviacionesEmpleados[[#Headers],[Dic]],RealEmpleado[#Headers],0))","v":{"v":92400,"d":"92,400.00 €"}},{"$f":"SUM(DesviacionesEmpleados[[#This Row],[Ene]:[Dic]])","v":{"v":548000,"d":"548,000.00 €"}}]
[null,"Beneficios",{"$f":"INDEX(PlanEmpleado[],MATCH(INDEX(DesviacionesEmpleados[],ROW()-ROW(DesviacionesEmpleados[[#Headers],[Ene]]),1),INDEX(PlanEmpleado[],,1),0),MATCH(DesviacionesEmpleados[[#Headers],[Ene]],PlanEmpleado[#Headers],0))-INDEX(RealEmpleado[],MATCH(INDEX(DesviacionesEmpleados[],ROW()-ROW(DesviacionesEmpleados[[#Headers],[Ene]]),1),INDEX(PlanEmpleado[],,1),0),MATCH(DesviacionesEmpleados[[#Headers],[Ene]],RealEmpleado[#Headers],0))","v":{"v":0,"d":"0.00 €"}},{"$f":"INDEX(PlanEmpleado[],MATCH(INDEX(DesviacionesEmpleados[],ROW()-ROW(DesviacionesEmpleados[[#Headers],[Feb]]),1),INDEX(PlanEmpleado[],,1),0),MATCH(DesviacionesEmpleados[[#Headers],[Feb]],PlanEmpleado[#Headers],0))-INDEX(RealEmpleado[],MATCH(INDEX(DesviacionesEmpleados[],ROW()-ROW(DesviacionesEmpleados[[#Headers],[Feb]]),1),INDEX(PlanEmpleado[],,1),0),MATCH(DesviacionesEmpleados[[#Headers],[Feb]],RealEmpleado[#Headers],0))","v":{"v":0,"d":"0.00 €"}},{"$f":"INDEX(PlanEmpleado[],MATCH(INDEX(DesviacionesEmpleados[],ROW()-ROW(DesviacionesEmpleados[[#Headers],[Mar]]),1),INDEX(PlanEmpleado[],,1),0),MATCH(DesviacionesEmpleados[[#Headers],[Mar]],PlanEmpleado[#Headers],0))-INDEX(RealEmpleado[],MATCH(INDEX(DesviacionesEmpleados[],ROW()-ROW(DesviacionesEmpleados[[#Headers],[Mar]]),1),INDEX(PlanEmpleado[],,1),0),MATCH(DesviacionesEmpleados[[#Headers],[Mar]],RealEmpleado[#Headers],0))","v":{"v":0,"d":"0.00 €"}},{"$f":"INDEX(PlanEmpleado[],MATCH(INDEX(DesviacionesEmpleados[],ROW()-ROW(DesviacionesEmpleados[[#Headers],[Abr]]),1),INDEX(PlanEmpleado[],,1),0),MATCH(DesviacionesEmpleados[[#Headers],[Abr]],PlanEmpleado[#Headers],0))-INDEX(RealEmpleado[],MATCH(INDEX(DesviacionesEmpleados[],ROW()-ROW(DesviacionesEmpleados[[#Headers],[Abr]]),1),INDEX(PlanEmpleado[],,1),0),MATCH(DesviacionesEmpleados[[#Headers],[Abr]],RealEmpleado[#Headers],0))","v":{"v":-135,"d":"-135.00 €"}},{"$f":"INDEX(PlanEmpleado[],MATCH(INDEX(DesviacionesEmpleados[],ROW()-ROW(DesviacionesEmpleados[[#Headers],[Mayo]]),1),INDEX(PlanEmpleado[],,1),0),MATCH(DesviacionesEmpleados[[#Headers],[Mayo]],PlanEmpleado[#Headers],0))-INDEX(RealEmpleado[],MATCH(INDEX(DesviacionesEmpleados[],ROW()-ROW(DesviacionesEmpleados[[#Headers],[Mayo]]),1),INDEX(PlanEmpleado[],,1),0),MATCH(DesviacionesEmpleados[[#Headers],[Mayo]],RealEmpleado[#Headers],0))","v":{"v":-135,"d":"-135.00 €"}},{"$f":"INDEX(PlanEmpleado[],MATCH(INDEX(DesviacionesEmpleados[],ROW()-ROW(DesviacionesEmpleados[[#Headers],[Jun]]),1),INDEX(PlanEmpleado[],,1),0),MATCH(DesviacionesEmpleados[[#Headers],[Jun]],PlanEmpleado[#Headers],0))-INDEX(RealEmpleado[],MATCH(INDEX(DesviacionesEmpleados[],ROW()-ROW(DesviacionesEmpleados[[#Headers],[Jun]]),1),INDEX(PlanEmpleado[],,1),0),MATCH(DesviacionesEmpleados[[#Headers],[Jun]],RealEmpleado[#Headers],0))","v":{"v":-135,"d":"-135.00 €"}},{"$f":"INDEX(PlanEmpleado[],MATCH(INDEX(DesviacionesEmpleados[],ROW()-ROW(DesviacionesEmpleados[[#Headers],[Jul]]),1),INDEX(PlanEmpleado[],,1),0),MATCH(DesviacionesEmpleados[[#Headers],[Jul]],PlanEmpleado[#Headers],0))-INDEX(RealEmpleado[],MATCH(INDEX(DesviacionesEmpleados[],ROW()-ROW(DesviacionesEmpleados[[#Headers],[Jul]]),1),INDEX(PlanEmpleado[],,1),0),MATCH(DesviacionesEmpleados[[#Headers],[Jul]],RealEmpleado[#Headers],0))","v":{"v":23625,"d":"23,625.00 €"}},{"$f":"INDEX(PlanEmpleado[],MATCH(INDEX(DesviacionesEmpleados[],ROW()-ROW(DesviacionesEmpleados[[#Headers],[Ago]]),1),INDEX(PlanEmpleado[],,1),0),MATCH(DesviacionesEmpleados[[#Headers],[Ago]],PlanEmpleado[#Headers],0))-INDEX(RealEmpleado[],MATCH(INDEX(DesviacionesEmpleados[],ROW()-ROW(DesviacionesEmpleados[[#Headers],[Ago]]),1),INDEX(PlanEmpleado[],,1),0),MATCH(DesviacionesEmpleados[[#Headers],[Ago]],RealEmpleado[#Headers],0))","v":{"v":24948,"d":"24,948.00 €"}},{"$f":"INDEX(PlanEmpleado[],MATCH(INDEX(DesviacionesEmpleados[],ROW()-ROW(DesviacionesEmpleados[[#Headers],[Sep]]),1),INDEX(PlanEmpleado[],,1),0),MATCH(DesviacionesEmpleados[[#Headers],[Sep]],PlanEmpleado[#Headers],0))-INDEX(RealEmpleado[],MATCH(INDEX(DesviacionesEmpleados[],ROW()-ROW(DesviacionesEmpleados[[#Headers],[Sep]]),1),INDEX(PlanEmpleado[],,1),0),MATCH(DesviacionesEmpleados[[#Headers],[Sep]],RealEmpleado[#Headers],0))","v":{"v":24948,"d":"24,948.00 €"}},{"$f":"INDEX(PlanEmpleado[],MATCH(INDEX(DesviacionesEmpleados[],ROW()-ROW(DesviacionesEmpleados[[#Headers],[Oct]]),1),INDEX(PlanEmpleado[],,1),0),MATCH(DesviacionesEmpleados[[#Headers],[Oct]],PlanEmpleado[#Headers],0))-INDEX(RealEmpleado[],MATCH(INDEX(DesviacionesEmpleados[],ROW()-ROW(DesviacionesEmpleados[[#Headers],[Oct]]),1),INDEX(PlanEmpleado[],,1),0),MATCH(DesviacionesEmpleados[[#Headers],[Oct]],RealEmpleado[#Headers],0))","v":{"v":24948,"d":"24,948.00 €"}},{"$f":"INDEX(PlanEmpleado[],MATCH(INDEX(DesviacionesEmpleados[],ROW()-ROW(DesviacionesEmpleados[[#Headers],[Nov]]),1),INDEX(PlanEmpleado[],,1),0),MATCH(DesviacionesEmpleados[[#Headers],[Nov]],PlanEmpleado[#Headers],0))-INDEX(RealEmpleado[],MATCH(INDEX(DesviacionesEmpleados[],ROW()-ROW(DesviacionesEmpleados[[#Headers],[Nov]]),1),INDEX(PlanEmpleado[],,1),0),MATCH(DesviacionesEmpleados[[#Headers],[Nov]],RealEmpleado[#Headers],0))","v":{"v":24948,"d":"24,948.00 €"}},{"$f":"INDEX(PlanEmpleado[],MATCH(INDEX(DesviacionesEmpleados[],ROW()-ROW(DesviacionesEmpleados[[#Headers],[Dic]]),1),INDEX(PlanEmpleado[],,1),0),MATCH(DesviacionesEmpleados[[#Headers],[Dic]],PlanEmpleado[#Headers],0))-INDEX(RealEmpleado[],MATCH(INDEX(DesviacionesEmpleados[],ROW()-ROW(DesviacionesEmpleados[[#Headers],[Dic]]),1),INDEX(PlanEmpleado[],,1),0),MATCH(DesviacionesEmpleados[[#Headers],[Dic]],RealEmpleado[#Headers],0))","v":{"v":24948,"d":"24,948.00 €"}},{"$f":"SUM(DesviacionesEmpleados[[#This Row],[Ene]:[Dic]])","v":{"v":147960,"d":"147,960.00 €"}}]
[null,"Subtotal",{"$f":"SUBTOTAL(109,DesviacionesEmpleados[Ene])","v":{"v":0,"d":"0.00 €"}},{"$f":"SUBTOTAL(109,DesviacionesEmpleados[Feb])","v":{"v":0,"d":"0.00 €"}},{"$f":"SUBTOTAL(109,DesviacionesEmpleados[Mar])","v":{"v":0,"d":"0.00 €"}},{"$f":"SUBTOTAL(109,DesviacionesEmpleados[Abr])","v":{"v":-635,"d":"-635.00 €"}},{"$f":"SUBTOTAL(109,DesviacionesEmpleados[Mayo])","v":{"v":-635,"d":"-635.00 €"}},{"$f":"SUBTOTAL(109,DesviacionesEmpleados[Jun])","v":{"v":-635,"d":"-635.00 €"}},{"$f":"SUBTOTAL(109,DesviacionesEmpleados[Jul])","v":{"v":111125,"d":"111,125.00 €"}},{"$f":"SUBTOTAL(109,DesviacionesEmpleados[Ago])","v":{"v":117348,"d":"117,348.00 €"}},{"$f":"SUBTOTAL(109,DesviacionesEmpleados[Sep])","v":{"v":117348,"d":"117,348.00 €"}},{"$f":"SUBTOTAL(109,DesviacionesEmpleados[Oct])","v":{"v":117348,"d":"117,348.00 €"}},{"$f":"SUBTOTAL(109,DesviacionesEmpleados[Nov])","v":{"v":117348,"d":"117,348.00 €"}},{"$f":"SUBTOTAL(109,DesviacionesEmpleados[Dic])","v":{"v":117348,"d":"117,348.00 €"}},{"$f":"SUBTOTAL(109,DesviacionesEmpleados[AÑO])","v":{"v":695960,"d":"695,960.00 €"}}]
[]
[null,"COSTES DE LA OFICINA","Ene","Feb","Mar","Abr","Mayo","Jun","Jul","Ago","Sep","Oct","Nov","Dic","AÑO"]
[null,"Alquiler de la oficina",{"$f":"INDEX(PlanOficina[],MATCH(INDEX(DesviacionesOficina[],ROW()-ROW(DesviacionesOficina[[#Headers],[Ene]]),1),INDEX(PlanOficina[],,1),0),MATCH(DesviacionesOficina[[#Headers],[Ene]],PlanOficina[#Headers],0))-INDEX(RealOficina[],MATCH(INDEX(DesviacionesOficina[],ROW()-ROW(DesviacionesOficina[[#Headers],[Ene]]),1),INDEX(PlanOficina[],,1),0),MATCH(DesviacionesOficina[[#Headers],[Ene]],RealOficina[#Headers],0))","v":{"v":0,"d":"0.00 €"}},{"$f":"INDEX(PlanOficina[],MATCH(INDEX(DesviacionesOficina[],ROW()-ROW(DesviacionesOficina[[#Headers],[Feb]]),1),INDEX(PlanOficina[],,1),0),MATCH(DesviacionesOficina[[#Headers],[Feb]],PlanOficina[#Headers],0))-INDEX(RealOficina[],MATCH(INDEX(DesviacionesOficina[],ROW()-ROW(DesviacionesOficina[[#Headers],[Feb]]),1),INDEX(PlanOficina[],,1),0),MATCH(DesviacionesOficina[[#Headers],[Feb]],RealOficina[#Headers],0))","v":{"v":0,"d":"0.00 €"}},{"$f":"INDEX(PlanOficina[],MATCH(INDEX(DesviacionesOficina[],ROW()-ROW(DesviacionesOficina[[#Headers],[Mar]]),1),INDEX(PlanOficina[],,1),0),MATCH(DesviacionesOficina[[#Headers],[Mar]],PlanOficina[#Headers],0))-INDEX(RealOficina[],MATCH(INDEX(DesviacionesOficina[],ROW()-ROW(DesviacionesOficina[[#Headers],[Mar]]),1),INDEX(PlanOficina[],,1),0),MATCH(DesviacionesOficina[[#Headers],[Mar]],RealOficina[#Headers],0))","v":{"v":0,"d":"0.00 €"}},{"$f":"INDEX(PlanOficina[],MATCH(INDEX(DesviacionesOficina[],ROW()-ROW(DesviacionesOficina[[#Headers],[Abr]]),1),INDEX(PlanOficina[],,1),0),MATCH(DesviacionesOficina[[#Headers],[Abr]],PlanOficina[#Headers],0))-INDEX(RealOficina[],MATCH(INDEX(DesviacionesOficina[],ROW()-ROW(DesviacionesOficina[[#Headers],[Abr]]),1),INDEX(PlanOficina[],,1),0),MATCH(DesviacionesOficina[[#Headers],[Abr]],RealOficina[#Headers],0))","v":{"v":0,"d":"0.00 €"}},{"$f":"INDEX(PlanOficina[],MATCH(INDEX(DesviacionesOficina[],ROW()-ROW(DesviacionesOficina[[#Headers],[Mayo]]),1),INDEX(PlanOficina[],,1),0),MATCH(DesviacionesOficina[[#Headers],[Mayo]],PlanOficina[#Headers],0))-INDEX(RealOficina[],MATCH(INDEX(DesviacionesOficina[],ROW()-ROW(DesviacionesOficina[[#Headers],[Mayo]]),1),INDEX(PlanOficina[],,1),0),MATCH(DesviacionesOficina[[#Headers],[Mayo]],RealOficina[#Headers],0))","v":{"v":0,"d":"0.00 €"}},{"$f":"INDEX(PlanOficina[],MATCH(INDEX(DesviacionesOficina[],ROW()-ROW(DesviacionesOficina[[#Headers],[Jun]]),1),INDEX(PlanOficina[],,1),0),MATCH(DesviacionesOficina[[#Headers],[Jun]],PlanOficina[#Headers],0))-INDEX(RealOficina[],MATCH(INDEX(DesviacionesOficina[],ROW()-ROW(DesviacionesOficina[[#Headers],[Jun]]),1),INDEX(PlanOficina[],,1),0),MATCH(DesviacionesOficina[[#Headers],[Jun]],RealOficina[#Headers],0))","v":{"v":0,"d":"0.00 €"}},{"$f":"INDEX(PlanOficina[],MATCH(INDEX(DesviacionesOficina[],ROW()-ROW(DesviacionesOficina[[#Headers],[Jul]]),1),INDEX(PlanOficina[],,1),0),MATCH(DesviacionesOficina[[#Headers],[Jul]],PlanOficina[#Headers],0))-INDEX(RealOficina[],MATCH(INDEX(DesviacionesOficina[],ROW()-ROW(DesviacionesOficina[[#Headers],[Jul]]),1),INDEX(PlanOficina[],,1),0),MATCH(DesviacionesOficina[[#Headers],[Jul]],RealOficina[#Headers],0))","v":{"v":9800,"d":"9,800.00 €"}},{"$f":"INDEX(PlanOficina[],MATCH(INDEX(DesviacionesOficina[],ROW()-ROW(DesviacionesOficina[[#Headers],[Ago]]),1),INDEX(PlanOficina[],,1),0),MATCH(DesviacionesOficina[[#Headers],[Ago]],PlanOficina[#Headers],0))-INDEX(RealOficina[],MATCH(INDEX(DesviacionesOficina[],ROW()-ROW(DesviacionesOficina[[#Headers],[Ago]]),1),INDEX(PlanOficina[],,1),0),MATCH(DesviacionesOficina[[#Headers],[Ago]],RealOficina[#Headers],0))","v":{"v":9800,"d":"9,800.00 €"}},{"$f":"INDEX(PlanOficina[],MATCH(INDEX(DesviacionesOficina[],ROW()-ROW(DesviacionesOficina[[#Headers],[Sep]]),1),INDEX(PlanOficina[],,1),0),MATCH(DesviacionesOficina[[#Headers],[Sep]],PlanOficina[#Headers],0))-INDEX(RealOficina[],MATCH(INDEX(DesviacionesOficina[],ROW()-ROW(DesviacionesOficina[[#Headers],[Sep]]),1),INDEX(PlanOficina[],,1),0),MATCH(DesviacionesOficina[[#Headers],[Sep]],RealOficina[#Headers],0))","v":{"v":9800,"d":"9,800.00 €"}},{"$f":"INDEX(PlanOficina[],MATCH(INDEX(DesviacionesOficina[],ROW()-ROW(DesviacionesOficina[[#Headers],[Oct]]),1),INDEX(PlanOficina[],,1),0),MATCH(DesviacionesOficina[[#Headers],[Oct]],PlanOficina[#Headers],0))-INDEX(RealOficina[],MATCH(INDEX(DesviacionesOficina[],ROW()-ROW(DesviacionesOficina[[#Headers],[Oct]]),1),INDEX(PlanOficina[],,1),0),MATCH(DesviacionesOficina[[#Headers],[Oct]],RealOficina[#Headers],0))","v":{"v":9800,"d":"9,800.00 €"}},{"$f":"INDEX(PlanOficina[],MATCH(INDEX(DesviacionesOficina[],ROW()-ROW(DesviacionesOficina[[#Headers],[Nov]]),1),INDEX(PlanOficina[],,1),0),MATCH(DesviacionesOficina[[#Headers],[Nov]],PlanOficina[#Headers],0))-INDEX(RealOficina[],MATCH(INDEX(DesviacionesOficina[],ROW()-ROW(DesviacionesOficina[[#Headers],[Nov]]),1),INDEX(PlanOficina[],,1),0),MATCH(DesviacionesOficina[[#Headers],[Nov]],RealOficina[#Headers],0))","v":{"v":9800,"d":"9,800.00 €"}},{"$f":"INDEX(PlanOficina[],MATCH(INDEX(DesviacionesOficina[],ROW()-ROW(DesviacionesOficina[[#Headers],[Dic]]),1),INDEX(PlanOficina[],,1),0),MATCH(DesviacionesOficina[[#Headers],[Dic]],PlanOficina[#Headers],0))-INDEX(RealOficina[],MATCH(INDEX(DesviacionesOficina[],ROW()-ROW(DesviacionesOficina[[#Headers],[Dic]]),1),INDEX(PlanOficina[],,1),0),MATCH(DesviacionesOficina[[#Headers],[Dic]],RealOficina[#Headers],0))","v":{"v":9800,"d":"9,800.00 €"}},{"$f":"SUM(DesviacionesOficina[[#This Row],[Ene]:[Dic]])","v":{"v":58800,"d":"58,800.00 €"}}]
[null,"Gas",{"$f":"INDEX(PlanOficina[],MATCH(INDEX(DesviacionesOficina[],ROW()-ROW(DesviacionesOficina[[#Headers],[Ene]]),1),INDEX(PlanOficina[],,1),0),MATCH(DesviacionesOficina[[#Headers],[Ene]],PlanOficina[#Headers],0))-INDEX(RealOficina[],MATCH(INDEX(DesviacionesOficina[],ROW()-ROW(DesviacionesOficina[[#Headers],[Ene]]),1),INDEX(PlanOficina[],,1),0),MATCH(DesviacionesOficina[[#Headers],[Ene]],RealOficina[#Headers],0))","v":{"v":-4,"d":"-4.00 €"}},{"$f":"INDEX(PlanOficina[],MATCH(INDEX(DesviacionesOficina[],ROW()-ROW(DesviacionesOficina[[#Headers],[Feb]]),1),INDEX(PlanOficina[],,1),0),MATCH(DesviacionesOficina[[#Headers],[Feb]],PlanOficina[#Headers],0))-INDEX(RealOficina[],MATCH(INDEX(DesviacionesOficina[],ROW()-ROW(DesviacionesOficina[[#Headers],[Feb]]),1),INDEX(PlanOficina[],,1),0),MATCH(DesviacionesOficina[[#Headers],[Feb]],RealOficina[#Headers],0))","v":{"v":-30,"d":"-30.00 €"}},{"$f":"INDEX(PlanOficina[],MATCH(INDEX(DesviacionesOficina[],ROW()-ROW(DesviacionesOficina[[#Headers],[Mar]]),1),INDEX(PlanOficina[],,1),0),MATCH(DesviacionesOficina[[#Headers],[Mar]],PlanOficina[#Headers],0))-INDEX(RealOficina[],MATCH(INDEX(DesviacionesOficina[],ROW()-ROW(DesviacionesOficina[[#Headers],[Mar]]),1),INDEX(PlanOficina[],,1),0),MATCH(DesviacionesOficina[[#Headers],[Mar]],RealOficina[#Headers],0))","v":{"v":15,"d":"15.00 €"}},{"$f":"INDEX(PlanOficina[],MATCH(INDEX(DesviacionesOficina[],ROW()-ROW(DesviacionesOficina[[#Headers],[Abr]]),1),INDEX(PlanOficina[],,1),0),MATCH(DesviacionesOficina[[#Headers],[Abr]],PlanOficina[#Headers],0))-INDEX(RealOficina[],MATCH(INDEX(DesviacionesOficina[],ROW()-ROW(DesviacionesOficina[[#Headers],[Abr]]),1),INDEX(PlanOficina[],,1),0),MATCH(DesviacionesOficina[[#Headers],[Abr]],RealOficina[#Headers],0))","v":{"v":-130,"d":"-130.00 €"}},{"$f":"INDEX(PlanOficina[],MATCH(INDEX(DesviacionesOficina[],ROW()-ROW(DesviacionesOficina[[#Headers],[Mayo]]),1),INDEX(PlanOficina[],,1),0),MATCH(DesviacionesOficina[[#Headers],[Mayo]],PlanOficina[#Headers],0))-INDEX(RealOficina[],MATCH(INDEX(DesviacionesOficina[],ROW()-ROW(DesviacionesOficina[[#Headers],[Mayo]]),1),INDEX(PlanOficina[],,1),0),MATCH(DesviacionesOficina[[#Headers],[Mayo]],RealOficina[#Headers],0))","v":{"v":13,"d":"13.00 €"}},{"$f":"INDEX(PlanOficina[],MATCH(INDEX(DesviacionesOficina[],ROW()-ROW(DesviacionesOficina[[#Headers],[Jun]]),1),INDEX(PlanOficina[],,1),0),MATCH(DesviacionesOficina[[#Headers],[Jun]],PlanOficina[#Headers],0))-INDEX(RealOficina[],MATCH(INDEX(DesviacionesOficina[],ROW()-ROW(DesviacionesOficina[[#Headers],[Jun]]),1),INDEX(PlanOficina[],,1),0),MATCH(DesviacionesOficina[[#Headers],[Jun]],RealOficina[#Headers],0))","v":{"v":12,"d":"12.00 €"}},{"$f":"INDEX(PlanOficina[],MATCH(INDEX(DesviacionesOficina[],ROW()-ROW(DesviacionesOficina[[#Headers],[Jul]]),1),INDEX(PlanOficina[],,1),0),MATCH(DesviacionesOficina[[#Headers],[Jul]],PlanOficina[#Headers],0))-INDEX(RealOficina[],MATCH(INDEX(DesviacionesOficina[],ROW()-ROW(DesviacionesOficina[[#Headers],[Jul]]),1),INDEX(PlanOficina[],,1),0),MATCH(DesviacionesOficina[[#Headers],[Jul]],RealOficina[#Headers],0))","v":{"v":100,"d":"100.00 €"}},{"$f":"INDEX(PlanOficina[],MATCH(INDEX(DesviacionesOficina[],ROW()-ROW(DesviacionesOficina[[#Headers],[Ago]]),1),INDEX(PlanOficina[],,1),0),MATCH(DesviacionesOficina[[#Headers],[Ago]],PlanOficina[#Headers],0))-INDEX(RealOficina[],MATCH(INDEX(DesviacionesOficina[],ROW()-ROW(DesviacionesOficina[[#Headers],[Ago]]),1),INDEX(PlanOficina[],,1),0),MATCH(DesviacionesOficina[[#Headers],[Ago]],RealOficina[#Headers],0))","v":{"v":100,"d":"100.00 €"}},{"$f":"INDEX(PlanOficina[],MATCH(INDEX(DesviacionesOficina[],ROW()-ROW(DesviacionesOficina[[#Headers],[Sep]]),1),INDEX(PlanOficina[],,1),0),MATCH(DesviacionesOficina[[#Headers],[Sep]],PlanOficina[#Headers],0))-INDEX(RealOficina[],MATCH(INDEX(DesviacionesOficina[],ROW()-ROW(DesviacionesOficina[[#Headers],[Sep]]),1),INDEX(PlanOficina[],,1),0),MATCH(DesviacionesOficina[[#Headers],[Sep]],RealOficina[#Headers],0))","v":{"v":100,"d":"100.00 €"}},{"$f":"INDEX(PlanOficina[],MATCH(INDEX(DesviacionesOficina[],ROW()-ROW(DesviacionesOficina[[#Headers],[Oct]]),1),INDEX(PlanOficina[],,1),0),MATCH(DesviacionesOficina[[#Headers],[Oct]],PlanOficina[#Headers],0))-INDEX(RealOficina[],MATCH(INDEX(DesviacionesOficina[],ROW()-ROW(DesviacionesOficina[[#Headers],[Oct]]),1),INDEX(PlanOficina[],,1),0),MATCH(DesviacionesOficina[[#Headers],[Oct]],RealOficina[#Headers],0))","v":{"v":100,"d":"100.00 €"}},{"$f":"INDEX(PlanOficina[],MATCH(INDEX(DesviacionesOficina[],ROW()-ROW(DesviacionesOficina[[#Headers],[Nov]]),1),INDEX(PlanOficina[],,1),0),MATCH(DesviacionesOficina[[#Headers],[Nov]],PlanOficina[#Headers],0))-INDEX(RealOficina[],MATCH(INDEX(DesviacionesOficina[],ROW()-ROW(DesviacionesOficina[[#Headers],[Nov]]),1),INDEX(PlanOficina[],,1),0),MATCH(DesviacionesOficina[[#Headers],[Nov]],RealOficina[#Headers],0))","v":{"v":400,"d":"400.00 €"}},{"$f":"INDEX(PlanOficina[],MATCH(INDEX(DesviacionesOficina[],ROW()-ROW(DesviacionesOficina[[#Headers],[Dic]]),1),INDEX(PlanOficina[],,1),0),MATCH(DesviacionesOficina[[#Headers],[Dic]],PlanOficina[#Headers],0))-INDEX(RealOficina[],MATCH(INDEX(DesviacionesOficina[],ROW()-ROW(DesviacionesOficina[[#Headers],[Dic]]),1),INDEX(PlanOficina[],,1),0),MATCH(DesviacionesOficina[[#Headers],[Dic]],RealOficina[#Headers],0))","v":{"v":400,"d":"400.00 €"}},{"$f":"SUM(DesviacionesOficina[[#This Row],[Ene]:[Dic]])","v":{"v":1076,"d":"1,076.00 €"}}]
[null,"Electricidad",{"$f":"INDEX(PlanOficina[],MATCH(INDEX(DesviacionesOficina[],ROW()-ROW(DesviacionesOficina[[#Headers],[Ene]]),1),INDEX(PlanOficina[],,1),0),MATCH(DesviacionesOficina[[#Headers],[Ene]],PlanOficina[#Headers],0))-INDEX(RealOficina[],MATCH(INDEX(DesviacionesOficina[],ROW()-ROW(DesviacionesOficina[[#Headers],[Ene]]),1),INDEX(PlanOficina[],,1),0),MATCH(DesviacionesOficina[[#Headers],[Ene]],RealOficina[#Headers],0))","v":{"v":12,"d":"12.00 €"}},{"$f":"INDEX(PlanOficina[],MATCH(INDEX(DesviacionesOficina[],ROW()-ROW(DesviacionesOficina[[#Headers],[Feb]]),1),INDEX(PlanOficina[],,1),0),MATCH(DesviacionesOficina[[#Headers],[Feb]],PlanOficina[#Headers],0))-INDEX(RealOficina[],MATCH(INDEX(DesviacionesOficina[],ROW()-ROW(DesviacionesOficina[[#Headers],[Feb]]),1),INDEX(PlanOficina[],,1),0),MATCH(DesviacionesOficina[[#Headers],[Feb]],RealOficina[#Headers],0))","v":{"v":22,"d":"22.00 €"}},{"$f":"INDEX(PlanOficina[],MATCH(INDEX(DesviacionesOficina[],ROW()-ROW(DesviacionesOficina[[#Headers],[Mar]]),1),INDEX(PlanOficina[],,1),0),MATCH(DesviacionesOficina[[#Headers],[Mar]],PlanOficina[#Headers],0))-INDEX(RealOficina[],MATCH(INDEX(DesviacionesOficina[],ROW()-ROW(DesviacionesOficina[[#Headers],[Mar]]),1),INDEX(PlanOficina[],,1),0),MATCH(DesviacionesOficina[[#Headers],[Mar]],RealOficina[#Headers],0))","v":{"v":32,"d":"32.00 €"}},{"$f":"INDEX(PlanOficina[],MATCH(INDEX(DesviacionesOficina[],ROW()-ROW(DesviacionesOficina[[#Headers],[Abr]]),1),INDEX(PlanOficina[],,1),0),MATCH(DesviacionesOficina[[#Headers],[Abr]],PlanOficina[#Headers],0))-INDEX(RealOficina[],MATCH(INDEX(DesviacionesOficina[],ROW()-ROW(DesviacionesOficina[[#Headers],[Abr]]),1),INDEX(PlanOficina[],,1),0),MATCH(DesviacionesOficina[[#Headers],[Abr]],RealOficina[#Headers],0))","v":{"v":1,"d":"1.00 €"}},{"$f":"INDEX(PlanOficina[],MATCH(INDEX(DesviacionesOficina[],ROW()-ROW(DesviacionesOficina[[#Headers],[Mayo]]),1),INDEX(PlanOficina[],,1),0),MATCH(DesviacionesOficina[[#Headers],[Mayo]],PlanOficina[#Headers],0))-INDEX(RealOficina[],MATCH(INDEX(DesviacionesOficina[],ROW()-ROW(DesviacionesOficina[[#Headers],[Mayo]]),1),INDEX(PlanOficina[],,1),0),MATCH(DesviacionesOficina[[#Headers],[Mayo]],RealOficina[#Headers],0))","v":{"v":-6,"d":"-6.00 €"}},{"$f":"INDEX(PlanOficina[],MATCH(INDEX(DesviacionesOficina[],ROW()-ROW(DesviacionesOficina[[#Headers],[Jun]]),1),INDEX(PlanOficina[],,1),0),MATCH(DesviacionesOficina[[#Headers],[Jun]],PlanOficina[#Headers],0))-INDEX(RealOficina[],MATCH(INDEX(DesviacionesOficina[],ROW()-ROW(DesviacionesOficina[[#Headers],[Jun]]),1),INDEX(PlanOficina[],,1),0),MATCH(DesviacionesOficina[[#Headers],[Jun]],RealOficina[#Headers],0))","v":{"v":10,"d":"10.00 €"}},{"$f":"INDEX(PlanOficina[],MATCH(INDEX(DesviacionesOficina[],ROW()-ROW(DesviacionesOficina[[#Headers],[Jul]]),1),INDEX(PlanOficina[],,1),0),MATCH(DesviacionesOficina[[#Headers],[Jul]],PlanOficina[#Headers],0))-INDEX(RealOficina[],MATCH(INDEX(DesviacionesOficina[],ROW()-ROW(DesviacionesOficina[[#Headers],[Jul]]),1),INDEX(PlanOficina[],,1),0),MATCH(DesviacionesOficina[[#Headers],[Jul]],RealOficina[#Headers],0))","v":{"v":300,"d":"300.00 €"}},{"$f":"INDEX(PlanOficina[],MATCH(INDEX(DesviacionesOficina[],ROW()-ROW(DesviacionesOficina[[#Headers],[Ago]]),1),INDEX(PlanOficina[],,1),0),MATCH(DesviacionesOficina[[#Headers],[Ago]],PlanOficina[#Headers],0))-INDEX(RealOficina[],MATCH(INDEX(DesviacionesOficina[],ROW()-ROW(DesviacionesOficina[[#Headers],[Ago]]),1),INDEX(PlanOficina[],,1),0),MATCH(DesviacionesOficina[[#Headers],[Ago]],RealOficina[#Headers],0))","v":{"v":300,"d":"300.00 €"}},{"$f":"INDEX(PlanOficina[],MATCH(INDEX(DesviacionesOficina[],ROW()-ROW(DesviacionesOficina[[#Headers],[Sep]]),1),INDEX(PlanOficina[],,1),0),MATCH(DesviacionesOficina[[#Headers],[Sep]],PlanOficina[#Headers],0))-INDEX(RealOficina[],MATCH(INDEX(DesviacionesOficina[],ROW()-ROW(DesviacionesOficina[[#Headers],[Sep]]),1),INDEX(PlanOficina[],,1),0),MATCH(DesviacionesOficina[[#Headers],[Sep]],RealOficina[#Headers],0))","v":{"v":300,"d":"300.00 €"}},{"$f":"INDEX(PlanOficina[],MATCH(INDEX(DesviacionesOficina[],ROW()-ROW(DesviacionesOficina[[#Headers],[Oct]]),1),INDEX(PlanOficina[],,1),0),MATCH(DesviacionesOficina[[#Headers],[Oct]],PlanOficina[#Headers],0))-INDEX(RealOficina[],MATCH(INDEX(DesviacionesOficina[],ROW()-ROW(DesviacionesOficina[[#Headers],[Oct]]),1),INDEX(PlanOficina[],,1),0),MATCH(DesviacionesOficina[[#Headers],[Oct]],RealOficina[#Headers],0))","v":{"v":300,"d":"300.00 €"}},{"$f":"INDEX(PlanOficina[],MATCH(INDEX(DesviacionesOficina[],ROW()-ROW(DesviacionesOficina[[#Headers],[Nov]]),1),INDEX(PlanOficina[],,1),0),MATCH(DesviacionesOficina[[#Headers],[Nov]],PlanOficina[#Headers],0))-INDEX(RealOficina[],MATCH(INDEX(DesviacionesOficina[],ROW()-ROW(DesviacionesOficina[[#Headers],[Nov]]),1),INDEX(PlanOficina[],,1),0),MATCH(DesviacionesOficina[[#Headers],[Nov]],RealOficina[#Headers],0))","v":{"v":300,"d":"300.00 €"}},{"$f":"INDEX(PlanOficina[],MATCH(INDEX(DesviacionesOficina[],ROW()-ROW(DesviacionesOficina[[#Headers],[Dic]]),1),INDEX(PlanOficina[],,1),0),MATCH(DesviacionesOficina[[#Headers],[Dic]],PlanOficina[#Headers],0))-INDEX(RealOficina[],MATCH(INDEX(DesviacionesOficina[],ROW()-ROW(DesviacionesOficina[[#Headers],[Dic]]),1),INDEX(PlanOficina[],,1),0),MATCH(DesviacionesOficina[[#Headers],[Dic]],RealOficina[#Headers],0))","v":{"v":300,"d":"300.00 €"}},{"$f":"SUM(DesviacionesOficina[[#This Row],[Ene]:[Dic]])","v":{"v":1871,"d":"1,871.00 €"}}]
[null,"Agua",{"$f":"INDEX(PlanOficina[],MATCH(INDEX(DesviacionesOficina[],ROW()-ROW(DesviacionesOficina[[#Headers],[Ene]]),1),INDEX(PlanOficina[],,1),0),MATCH(DesviacionesOficina[[#Headers],[Ene]],PlanOficina[#Headers],0))-INDEX(RealOficina[],MATCH(INDEX(DesviacionesOficina[],ROW()-ROW(DesviacionesOficina[[#Headers],[Ene]]),1),INDEX(PlanOficina[],,1),0),MATCH(DesviacionesOficina[[#Headers],[Ene]],RealOficina[#Headers],0))","v":{"v":5,"d":"5.00 €"}},{"$f":"INDEX(PlanOficina[],MATCH(INDEX(DesviacionesOficina[],ROW()-ROW(DesviacionesOficina[[#Headers],[Feb]]),1),INDEX(PlanOficina[],,1),0),MATCH(DesviacionesOficina[[#Headers],[Feb]],PlanOficina[#Headers],0))-INDEX(RealOficina[],MATCH(INDEX(DesviacionesOficina[],ROW()-ROW(DesviacionesOficina[[#Headers],[Feb]]),1),INDEX(PlanOficina[],,1),0),MATCH(DesviacionesOficina[[#Headers],[Feb]],RealOficina[#Headers],0))","v":{"v":7,"d":"7.00 €"}},{"$f":"INDEX(PlanOficina[],MATCH(INDEX(DesviacionesOficina[],ROW()-ROW(DesviacionesOficina[[#Headers],[Mar]]),1),INDEX(PlanOficina[],,1),0),MATCH(DesviacionesOficina[[#Headers],[Mar]],PlanOficina[#Headers],0))-INDEX(RealOficina[],MATCH(INDEX(DesviacionesOficina[],ROW()-ROW(DesviacionesOficina[[#Headers],[Mar]]),1),INDEX(PlanOficina[],,1),0),MATCH(DesviacionesOficina[[#Headers],[Mar]],RealOficina[#Headers],0))","v":{"v":6,"d":"6.00 €"}},{"$f":"INDEX(PlanOficina[],MATCH(INDEX(DesviacionesOficina[],ROW()-ROW(DesviacionesOficina[[#Headers],[Abr]]),1),INDEX(PlanOficina[],,1),0),MATCH(DesviacionesOficina[[#Headers],[Abr]],PlanOficina[#Headers],0))-INDEX(RealOficina[],MATCH(INDEX(DesviacionesOficina[],ROW()-ROW(DesviacionesOficina[[#Headers],[Abr]]),1),INDEX(PlanOficina[],,1),0),MATCH(DesviacionesOficina[[#Headers],[Abr]],RealOficina[#Headers],0))","v":{"v":4,"d":"4.00 €"}},{"$f":"INDEX(PlanOficina[],MATCH(INDEX(DesviacionesOficina[],ROW()-ROW(DesviacionesOficina[[#Headers],[Mayo]]),1),INDEX(PlanOficina[],,1),0),MATCH(DesviacionesOficina[[#Headers],[Mayo]],PlanOficina[#Headers],0))-INDEX(RealOficina[],MATCH(INDEX(DesviacionesOficina[],ROW()-ROW(DesviacionesOficina[[#Headers],[Mayo]]),1),INDEX(PlanOficina[],,1),0),MATCH(DesviacionesOficina[[#Headers],[Mayo]],RealOficina[#Headers],0))","v":{"v":6,"d":"6.00 €"}},{"$f":"INDEX(PlanOficina[],MATCH(INDEX(DesviacionesOficina[],ROW()-ROW(DesviacionesOficina[[#Headers],[Jun]]),1),INDEX(PlanOficina[],,1),0),MATCH(DesviacionesOficina[[#Headers],[Jun]],PlanOficina[#Headers],0))-INDEX(RealOficina[],MATCH(INDEX(DesviacionesOficina[],ROW()-ROW(DesviacionesOficina[[#Headers],[Jun]]),1),INDEX(PlanOficina[],,1),0),MATCH(DesviacionesOficina[[#Headers],[Jun]],RealOficina[#Headers],0))","v":{"v":4,"d":"4.00 €"}},{"$f":"INDEX(PlanOficina[],MATCH(INDEX(DesviacionesOficina[],ROW()-ROW(DesviacionesOficina[[#Headers],[Jul]]),1),INDEX(PlanOficina[],,1),0),MATCH(DesviacionesOficina[[#Headers],[Jul]],PlanOficina[#Headers],0))-INDEX(RealOficina[],MATCH(INDEX(DesviacionesOficina[],ROW()-ROW(DesviacionesOficina[[#Headers],[Jul]]),1),INDEX(PlanOficina[],,1),0),MATCH(DesviacionesOficina[[#Headers],[Jul]],RealOficina[#Headers],0))","v":{"v":40,"d":"40.00 €"}},{"$f":"INDEX(PlanOficina[],MATCH(INDEX(DesviacionesOficina[],ROW()-ROW(DesviacionesOficina[[#Headers],[Ago]]),1),INDEX(PlanOficina[],,1),0),MATCH(DesviacionesOficina[[#Headers],[Ago]],PlanOficina[#Headers],0))-INDEX(RealOficina[],MATCH(INDEX(DesviacionesOficina[],ROW()-ROW(DesviacionesOficina[[#Headers],[Ago]]),1),INDEX(PlanOficina[],,1),0),MATCH(DesviacionesOficina[[#Headers],[Ago]],RealOficina[#Headers],0))","v":{"v":40,"d":"40.00 €"}},{"$f":"INDEX(PlanOficina[],MATCH(INDEX(DesviacionesOficina[],ROW()-ROW(DesviacionesOficina[[#Headers],[Sep]]),1),INDEX(PlanOficina[],,1),0),MATCH(DesviacionesOficina[[#Headers],[Sep]],PlanOficina[#Headers],0))-INDEX(RealOficina[],MATCH(INDEX(DesviacionesOficina[],ROW()-ROW(DesviacionesOficina[[#Headers],[Sep]]),1),INDEX(PlanOficina[],,1),0),MATCH(DesviacionesOficina[[#Headers],[Sep]],RealOficina[#Headers],0))","v":{"v":40,"d":"40.00 €"}},{"$f":"INDEX(PlanOficina[],MATCH(INDEX(DesviacionesOficina[],ROW()-ROW(DesviacionesOficina[[#Headers],[Oct]]),1),INDEX(PlanOficina[],,1),0),MATCH(DesviacionesOficina[[#Headers],[Oct]],PlanOficina[#Headers],0))-INDEX(RealOficina[],MATCH(INDEX(DesviacionesOficina[],ROW()-ROW(DesviacionesOficina[[#Headers],[Oct]]),1),INDEX(PlanOficina[],,1),0),MATCH(DesviacionesOficina[[#Headers],[Oct]],RealOficina[#Headers],0))","v":{"v":40,"d":"40.00 €"}},{"$f":"INDEX(PlanOficina[],MATCH(INDEX(DesviacionesOficina[],ROW()-ROW(DesviacionesOficina[[#Headers],[Nov]]),1),INDEX(PlanOficina[],,1),0),MATCH(DesviacionesOficina[[#Headers],[Nov]],PlanOficina[#Headers],0))-INDEX(RealOficina[],MATCH(INDEX(DesviacionesOficina[],ROW()-ROW(DesviacionesOficina[[#Headers],[Nov]]),1),INDEX(PlanOficina[],,1),0),MATCH(DesviacionesOficina[[#Headers],[Nov]],RealOficina[#Headers],0))","v":{"v":40,"d":"40.00 €"}},{"$f":"INDEX(PlanOficina[],MATCH(INDEX(DesviacionesOficina[],ROW()-ROW(DesviacionesOficina[[#Headers],[Dic]]),1),INDEX(PlanOficina[],,1),0),MATCH(DesviacionesOficina[[#Headers],[Dic]],PlanOficina[#Headers],0))-INDEX(RealOficina[],MATCH(INDEX(DesviacionesOficina[],ROW()-ROW(DesviacionesOficina[[#Headers],[Dic]]),1),INDEX(PlanOficina[],,1),0),MATCH(DesviacionesOficina[[#Headers],[Dic]],RealOficina[#Headers],0))","v":{"v":40,"d":"40.00 €"}},{"$f":"SUM(DesviacionesOficina[[#This Row],[Ene]:[Dic]])","v":{"v":272,"d":"272.00 €"}}]
[null,"Teléfono",{"$f":"INDEX(PlanOficina[],MATCH(INDEX(DesviacionesOficina[],ROW()-ROW(DesviacionesOficina[[#Headers],[Ene]]),1),INDEX(PlanOficina[],,1),0),MATCH(DesviacionesOficina[[#Headers],[Ene]],PlanOficina[#Headers],0))-INDEX(RealOficina[],MATCH(INDEX(DesviacionesOficina[],ROW()-ROW(DesviacionesOficina[[#Headers],[Ene]]),1),INDEX(PlanOficina[],,1),0),MATCH(DesviacionesOficina[[#Headers],[Ene]],RealOficina[#Headers],0))","v":{"v":26,"d":"26.00 €"}},{"$f":"INDEX(PlanOficina[],MATCH(INDEX(DesviacionesOficina[],ROW()-ROW(DesviacionesOficina[[#Headers],[Feb]]),1),INDEX(PlanOficina[],,1),0),MATCH(DesviacionesOficina[[#Headers],[Feb]],PlanOficina[#Headers],0))-INDEX(RealOficina[],MATCH(INDEX(DesviacionesOficina[],ROW()-ROW(DesviacionesOficina[[#Headers],[Feb]]),1),INDEX(PlanOficina[],,1),0),MATCH(DesviacionesOficina[[#Headers],[Feb]],RealOficina[#Headers],0))","v":{"v":15,"d":"15.00 €"}},{"$f":"INDEX(PlanOficina[],MATCH(INDEX(DesviacionesOficina[],ROW()-ROW(DesviacionesOficina[[#Headers],[Mar]]),1),INDEX(PlanOficina[],,1),0),MATCH(DesviacionesOficina[[#Headers],[Mar]],PlanOficina[#Headers],0))-INDEX(RealOficina[],MATCH(INDEX(DesviacionesOficina[],ROW()-ROW(DesviacionesOficina[[#Headers],[Mar]]),1),INDEX(PlanOficina[],,1),0),MATCH(DesviacionesOficina[[#Headers],[Mar]],RealOficina[#Headers],0))","v":{"v":-15,"d":"-15.00 €"}},{"$f":"INDEX(PlanOficina[],MATCH(INDEX(DesviacionesOficina[],ROW()-ROW(DesviacionesOficina[[#Headers],[Abr]]),1),INDEX(PlanOficina[],,1),0),MATCH(DesviacionesOficina[[#Headers],[Abr]],PlanOficina[#Headers],0))-INDEX(RealOficina[],MATCH(INDEX(DesviacionesOficina[],ROW()-ROW(DesviacionesOficina[[#Headers],[Abr]]),1),INDEX(PlanOficina[],,1),0),MATCH(DesviacionesOficina[[#Headers],[Abr]],RealOficina[#Headers],0))","v":{"v":5,"d":"5.00 €"}},{"$f":"INDEX(PlanOficina[],MATCH(INDEX(DesviacionesOficina[],ROW()-ROW(DesviacionesOficina[[#Headers],[Mayo]]),1),INDEX(PlanOficina[],,1),0),MATCH(DesviacionesOficina[[#Headers],[Mayo]],PlanOficina[#Headers],0))-INDEX(RealOficina[],MATCH(INDEX(DesviacionesOficina[],ROW()-ROW(DesviacionesOficina[[#Headers],[Mayo]]),1),INDEX(PlanOficina[],,1),0),MATCH(DesviacionesOficina[[#Headers],[Mayo]],RealOficina[#Headers],0))","v":{"v":5,"d":"5.00 €"}},{"$f":"INDEX(PlanOficina[],MATCH(INDEX(DesviacionesOficina[],ROW()-ROW(DesviacionesOficina[[#Headers],[Jun]]),1),INDEX(PlanOficina[],,1),0),MATCH(DesviacionesOficina[[#Headers],[Jun]],PlanOficina[#Headers],0))-INDEX(RealOficina[],MATCH(INDEX(DesviacionesOficina[],ROW()-ROW(DesviacionesOficina[[#Headers],[Jun]]),1),INDEX(PlanOficina[],,1),0),MATCH(DesviacionesOficina[[#Headers],[Jun]],RealOficina[#Headers],0))","v":{"v":30,"d":"30.00 €"}},{"$f":"INDEX(PlanOficina[],MATCH(INDEX(DesviacionesOficina[],ROW()-ROW(DesviacionesOficina[[#Headers],[Jul]]),1),INDEX(PlanOficina[],,1),0),MATCH(DesviacionesOficina[[#Headers],[Jul]],PlanOficina[#Headers],0))-INDEX(RealOficina[],MATCH(INDEX(DesviacionesOficina[],ROW()-ROW(DesviacionesOficina[[#Headers],[Jul]]),1),INDEX(PlanOficina[],,1),0),MATCH(DesviacionesOficina[[#Headers],[Jul]],RealOficina[#Headers],0))","v":{"v":250,"d":"250.00 €"}},{"$f":"INDEX(PlanOficina[],MATCH(INDEX(DesviacionesOficina[],ROW()-ROW(DesviacionesOficina[[#Headers],[Ago]]),1),INDEX(PlanOficina[],,1),0),MATCH(DesviacionesOficina[[#Headers],[Ago]],PlanOficina[#Headers],0))-INDEX(RealOficina[],MATCH(INDEX(DesviacionesOficina[],ROW()-ROW(DesviacionesOficina[[#Headers],[Ago]]),1),INDEX(PlanOficina[],,1),0),MATCH(DesviacionesOficina[[#Headers],[Ago]],RealOficina[#Headers],0))","v":{"v":250,"d":"250.00 €"}},{"$f":"INDEX(PlanOficina[],MATCH(INDEX(DesviacionesOficina[],ROW()-ROW(DesviacionesOficina[[#Headers],[Sep]]),1),INDEX(PlanOficina[],,1),0),MATCH(DesviacionesOficina[[#Headers],[Sep]],PlanOficina[#Headers],0))-INDEX(RealOficina[],MATCH(INDEX(DesviacionesOficina[],ROW()-ROW(DesviacionesOficina[[#Headers],[Sep]]),1),INDEX(PlanOficina[],,1),0),MATCH(DesviacionesOficina[[#Headers],[Sep]],RealOficina[#Headers],0))","v":{"v":250,"d":"250.00 €"}},{"$f":"INDEX(PlanOficina[],MATCH(INDEX(DesviacionesOficina[],ROW()-ROW(DesviacionesOficina[[#Headers],[Oct]]),1),INDEX(PlanOficina[],,1),0),MATCH(DesviacionesOficina[[#Headers],[Oct]],PlanOficina[#Headers],0))-INDEX(RealOficina[],MATCH(INDEX(DesviacionesOficina[],ROW()-ROW(DesviacionesOficina[[#Headers],[Oct]]),1),INDEX(PlanOficina[],,1),0),MATCH(DesviacionesOficina[[#Headers],[Oct]],RealOficina[#Headers],0))","v":{"v":250,"d":"250.00 €"}},{"$f":"INDEX(PlanOficina[],MATCH(INDEX(DesviacionesOficina[],ROW()-ROW(DesviacionesOficina[[#Headers],[Nov]]),1),INDEX(PlanOficina[],,1),0),MATCH(DesviacionesOficina[[#Headers],[Nov]],PlanOficina[#Headers],0))-INDEX(RealOficina[],MATCH(INDEX(DesviacionesOficina[],ROW()-ROW(DesviacionesOficina[[#Headers],[Nov]]),1),INDEX(PlanOficina[],,1),0),MATCH(DesviacionesOficina[[#Headers],[Nov]],RealOficina[#Headers],0))","v":{"v":250,"d":"250.00 €"}},{"$f":"INDEX(PlanOficina[],MATCH(INDEX(DesviacionesOficina[],ROW()-ROW(DesviacionesOficina[[#Headers],[Dic]]),1),INDEX(PlanOficina[],,1),0),MATCH(DesviacionesOficina[[#Headers],[Dic]],PlanOficina[#Headers],0))-INDEX(RealOficina[],MATCH(INDEX(DesviacionesOficina[],ROW()-ROW(DesviacionesOficina[[#Headers],[Dic]]),1),INDEX(PlanOficina[],,1),0),MATCH(DesviacionesOficina[[#Headers],[Dic]],RealOficina[#Headers],0))","v":{"v":250,"d":"250.00 €"}},{"$f":"SUM(DesviacionesOficina[[#This Row],[Ene]:[Dic]])","v":{"v":1566,"d":"1,566.00 €"}}]
[null,"Acceso a Internet",{"$f":"INDEX(PlanOficina[],MATCH(INDEX(DesviacionesOficina[],ROW()-ROW(DesviacionesOficina[[#Headers],[Ene]]),1),INDEX(PlanOficina[],,1),0),MATCH(DesviacionesOficina[[#Headers],[Ene]],PlanOficina[#Headers],0))-INDEX(RealOficina[],MATCH(INDEX(DesviacionesOficina[],ROW()-ROW(DesviacionesOficina[[#Headers],[Ene]]),1),INDEX(PlanOficina[],,1),0),MATCH(DesviacionesOficina[[#Headers],[Ene]],RealOficina[#Headers],0))","v":{"v":0,"d":"0.00 €"}},{"$f":"INDEX(PlanOficina[],MATCH(INDEX(DesviacionesOficina[],ROW()-ROW(DesviacionesOficina[[#Headers],[Feb]]),1),INDEX(PlanOficina[],,1),0),MATCH(DesviacionesOficina[[#Headers],[Feb]],PlanOficina[#Headers],0))-INDEX(RealOficina[],MATCH(INDEX(DesviacionesOficina[],ROW()-ROW(DesviacionesOficina[[#Headers],[Feb]]),1),INDEX(PlanOficina[],,1),0),MATCH(DesviacionesOficina[[#Headers],[Feb]],RealOficina[#Headers],0))","v":{"v":0,"d":"0.00 €"}},{"$f":"INDEX(PlanOficina[],MATCH(INDEX(DesviacionesOficina[],ROW()-ROW(DesviacionesOficina[[#Headers],[Mar]]),1),INDEX(PlanOficina[],,1),0),MATCH(DesviacionesOficina[[#Headers],[Mar]],PlanOficina[#Headers],0))-INDEX(RealOficina[],MATCH(INDEX(DesviacionesOficina[],ROW()-ROW(DesviacionesOficina[[#Headers],[Mar]]),1),INDEX(PlanOficina[],,1),0),MATCH(DesviacionesOficina[[#Headers],[Mar]],RealOficina[#Headers],0))","v":{"v":0,"d":"0.00 €"}},{"$f":"INDEX(PlanOficina[],MATCH(INDEX(DesviacionesOficina[],ROW()-ROW(DesviacionesOficina[[#Headers],[Abr]]),1),INDEX(PlanOficina[],,1),0),MATCH(DesviacionesOficina[[#Headers],[Abr]],PlanOficina[#Headers],0))-INDEX(RealOficina[],MATCH(INDEX(DesviacionesOficina[],ROW()-ROW(DesviacionesOficina[[#Headers],[Abr]]),1),INDEX(PlanOficina[],,1),0),MATCH(DesviacionesOficina[[#Headers],[Abr]],RealOficina[#Headers],0))","v":{"v":0,"d":"0.00 €"}},{"$f":"INDEX(PlanOficina[],MATCH(INDEX(DesviacionesOficina[],ROW()-ROW(DesviacionesOficina[[#Headers],[Mayo]]),1),INDEX(PlanOficina[],,1),0),MATCH(DesviacionesOficina[[#Headers],[Mayo]],PlanOficina[#Headers],0))-INDEX(RealOficina[],MATCH(INDEX(DesviacionesOficina[],ROW()-ROW(DesviacionesOficina[[#Headers],[Mayo]]),1),INDEX(PlanOficina[],,1),0),MATCH(DesviacionesOficina[[#Headers],[Mayo]],RealOficina[#Headers],0))","v":{"v":0,"d":"0.00 €"}},{"$f":"INDEX(PlanOficina[],MATCH(INDEX(DesviacionesOficina[],ROW()-ROW(DesviacionesOficina[[#Headers],[Jun]]),1),INDEX(PlanOficina[],,1),0),MATCH(DesviacionesOficina[[#Headers],[Jun]],PlanOficina[#Headers],0))-INDEX(RealOficina[],MATCH(INDEX(DesviacionesOficina[],ROW()-ROW(DesviacionesOficina[[#Headers],[Jun]]),1),INDEX(PlanOficina[],,1),0),MATCH(DesviacionesOficina[[#Headers],[Jun]],RealOficina[#Headers],0))","v":{"v":0,"d":"0.00 €"}},{"$f":"INDEX(PlanOficina[],MATCH(INDEX(DesviacionesOficina[],ROW()-ROW(DesviacionesOficina[[#Headers],[Jul]]),1),INDEX(PlanOficina[],,1),0),MATCH(DesviacionesOficina[[#Headers],[Jul]],PlanOficina[#Headers],0))-INDEX(RealOficina[],MATCH(INDEX(DesviacionesOficina[],ROW()-ROW(DesviacionesOficina[[#Headers],[Jul]]),1),INDEX(PlanOficina[],,1),0),MATCH(DesviacionesOficina[[#Headers],[Jul]],RealOficina[#Headers],0))","v":{"v":180,"d":"180.00 €"}},{"$f":"INDEX(PlanOficina[],MATCH(INDEX(DesviacionesOficina[],ROW()-ROW(DesviacionesOficina[[#Headers],[Ago]]),1),INDEX(PlanOficina[],,1),0),MATCH(DesviacionesOficina[[#Headers],[Ago]],PlanOficina[#Headers],0))-INDEX(RealOficina[],MATCH(INDEX(DesviacionesOficina[],ROW()-ROW(DesviacionesOficina[[#Headers],[Ago]]),1),INDEX(PlanOficina[],,1),0),MATCH(DesviacionesOficina[[#Headers],[Ago]],RealOficina[#Headers],0))","v":{"v":180,"d":"180.00 €"}},{"$f":"INDEX(PlanOficina[],MATCH(INDEX(DesviacionesOficina[],ROW()-ROW(DesviacionesOficina[[#Headers],[Sep]]),1),INDEX(PlanOficina[],,1),0),MATCH(DesviacionesOficina[[#Headers],[Sep]],PlanOficina[#Headers],0))-INDEX(RealOficina[],MATCH(INDEX(DesviacionesOficina[],ROW()-ROW(DesviacionesOficina[[#Headers],[Sep]]),1),INDEX(PlanOficina[],,1),0),MATCH(DesviacionesOficina[[#Headers],[Sep]],RealOficina[#Headers],0))","v":{"v":180,"d":"180.00 €"}},{"$f":"INDEX(PlanOficina[],MATCH(INDEX(DesviacionesOficina[],ROW()-ROW(DesviacionesOficina[[#Headers],[Oct]]),1),INDEX(PlanOficina[],,1),0),MATCH(DesviacionesOficina[[#Headers],[Oct]],PlanOficina[#Headers],0))-INDEX(RealOficina[],MATCH(INDEX(DesviacionesOficina[],ROW()-ROW(DesviacionesOficina[[#Headers],[Oct]]),1),INDEX(PlanOficina[],,1),0),MATCH(DesviacionesOficina[[#Headers],[Oct]],RealOficina[#Headers],0))","v":{"v":180,"d":"180.00 €"}},{"$f":"INDEX(PlanOficina[],MATCH(INDEX(DesviacionesOficina[],ROW()-ROW(DesviacionesOficina[[#Headers],[Nov]]),1),INDEX(PlanOficina[],,1),0),MATCH(DesviacionesOficina[[#Headers],[Nov]],PlanOficina[#Headers],0))-INDEX(RealOficina[],MATCH(INDEX(DesviacionesOficina[],ROW()-ROW(DesviacionesOficina[[#Headers],[Nov]]),1),INDEX(PlanOficina[],,1),0),MATCH(DesviacionesOficina[[#Headers],[Nov]],RealOficina[#Headers],0))","v":{"v":180,"d":"180.00 €"}},{"$f":"INDEX(PlanOficina[],MATCH(INDEX(DesviacionesOficina[],ROW()-ROW(DesviacionesOficina[[#Headers],[Dic]]),1),INDEX(PlanOficina[],,1),0),MATCH(DesviacionesOficina[[#Headers],[Dic]],PlanOficina[#Headers],0))-INDEX(RealOficina[],MATCH(INDEX(DesviacionesOficina[],ROW()-ROW(DesviacionesOficina[[#Headers],[Dic]]),1),INDEX(PlanOficina[],,1),0),MATCH(DesviacionesOficina[[#Headers],[Dic]],RealOficina[#Headers],0))","v":{"v":180,"d":"180.00 €"}},{"$f":"SUM(DesviacionesOficina[[#This Row],[Ene]:[Dic]])","v":{"v":1080,"d":"1,080.00 €"}}]
[null,"Material de oficina",{"$f":"INDEX(PlanOficina[],MATCH(INDEX(DesviacionesOficina[],ROW()-ROW(DesviacionesOficina[[#Headers],[Ene]]),1),INDEX(PlanOficina[],,1),0),MATCH(DesviacionesOficina[[#Headers],[Ene]],PlanOficina[#Headers],0))-INDEX(RealOficina[],MATCH(INDEX(DesviacionesOficina[],ROW()-ROW(DesviacionesOficina[[#Headers],[Ene]]),1),INDEX(PlanOficina[],,1),0),MATCH(DesviacionesOficina[[#Headers],[Ene]],RealOficina[#Headers],0))","v":{"v":-56,"d":"-56.00 €"}},{"$f":"INDEX(PlanOficina[],MATCH(INDEX(DesviacionesOficina[],ROW()-ROW(DesviacionesOficina[[#Headers],[Feb]]),1),INDEX(PlanOficina[],,1),0),MATCH(DesviacionesOficina[[#Headers],[Feb]],PlanOficina[#Headers],0))-INDEX(RealOficina[],MATCH(INDEX(DesviacionesOficina[],ROW()-ROW(DesviacionesOficina[[#Headers],[Feb]]),1),INDEX(PlanOficina[],,1),0),MATCH(DesviacionesOficina[[#Headers],[Feb]],RealOficina[#Headers],0))","v":{"v":58,"d":"58.00 €"}},{"$f":"INDEX(PlanOficina[],MATCH(INDEX(DesviacionesOficina[],ROW()-ROW(DesviacionesOficina[[#Headers],[Mar]]),1),INDEX(PlanOficina[],,1),0),MATCH(DesviacionesOficina[[#Headers],[Mar]],PlanOficina[#Headers],0))-INDEX(RealOficina[],MATCH(INDEX(DesviacionesOficina[],ROW()-ROW(DesviacionesOficina[[#Headers],[Mar]]),1),INDEX(PlanOficina[],,1),0),MATCH(DesviacionesOficina[[#Headers],[Mar]],RealOficina[#Headers],0))","v":{"v":40,"d":"40.00 €"}},{"$f":"INDEX(PlanOficina[],MATCH(INDEX(DesviacionesOficina[],ROW()-ROW(DesviacionesOficina[[#Headers],[Abr]]),1),INDEX(PlanOficina[],,1),0),MATCH(DesviacionesOficina[[#Headers],[Abr]],PlanOficina[#Headers],0))-INDEX(RealOficina[],MATCH(INDEX(DesviacionesOficina[],ROW()-ROW(DesviacionesOficina[[#Headers],[Abr]]),1),INDEX(PlanOficina[],,1),0),MATCH(DesviacionesOficina[[#Headers],[Abr]],RealOficina[#Headers],0))","v":{"v":-21,"d":"-21.00 €"}},{"$f":"INDEX(PlanOficina[],MATCH(INDEX(DesviacionesOficina[],ROW()-ROW(DesviacionesOficina[[#Headers],[Mayo]]),1),INDEX(PlanOficina[],,1),0),MATCH(DesviacionesOficina[[#Headers],[Mayo]],PlanOficina[#Headers],0))-INDEX(RealOficina[],MATCH(INDEX(DesviacionesOficina[],ROW()-ROW(DesviacionesOficina[[#Headers],[Mayo]]),1),INDEX(PlanOficina[],,1),0),MATCH(DesviacionesOficina[[#Headers],[Mayo]],RealOficina[#Headers],0))","v":{"v":-56,"d":"-56.00 €"}},{"$f":"INDEX(PlanOficina[],MATCH(INDEX(DesviacionesOficina[],ROW()-ROW(DesviacionesOficina[[#Headers],[Jun]]),1),INDEX(PlanOficina[],,1),0),MATCH(DesviacionesOficina[[#Headers],[Jun]],PlanOficina[#Headers],0))-INDEX(RealOficina[],MATCH(INDEX(DesviacionesOficina[],ROW()-ROW(DesviacionesOficina[[#Headers],[Jun]]),1),INDEX(PlanOficina[],,1),0),MATCH(DesviacionesOficina[[#Headers],[Jun]],RealOficina[#Headers],0))","v":{"v":-40,"d":"-40.00 €"}},{"$f":"INDEX(PlanOficina[],MATCH(INDEX(DesviacionesOficina[],ROW()-ROW(DesviacionesOficina[[#Headers],[Jul]]),1),INDEX(PlanOficina[],,1),0),MATCH(DesviacionesOficina[[#Headers],[Jul]],PlanOficina[#Headers],0))-INDEX(RealOficina[],MATCH(INDEX(DesviacionesOficina[],ROW()-ROW(DesviacionesOficina[[#Headers],[Jul]]),1),INDEX(PlanOficina[],,1),0),MATCH(DesviacionesOficina[[#Headers],[Jul]],RealOficina[#Headers],0))","v":{"v":200,"d":"200.00 €"}},{"$f":"INDEX(PlanOficina[],MATCH(INDEX(DesviacionesOficina[],ROW()-ROW(DesviacionesOficina[[#Headers],[Ago]]),1),INDEX(PlanOficina[],,1),0),MATCH(DesviacionesOficina[[#Headers],[Ago]],PlanOficina[#Headers],0))-INDEX(RealOficina[],MATCH(INDEX(DesviacionesOficina[],ROW()-ROW(DesviacionesOficina[[#Headers],[Ago]]),1),INDEX(PlanOficina[],,1),0),MATCH(DesviacionesOficina[[#Headers],[Ago]],RealOficina[#Headers],0))","v":{"v":200,"d":"200.00 €"}},{"$f":"INDEX(PlanOficina[],MATCH(INDEX(DesviacionesOficina[],ROW()-ROW(DesviacionesOficina[[#Headers],[Sep]]),1),INDEX(PlanOficina[],,1),0),MATCH(DesviacionesOficina[[#Headers],[Sep]],PlanOficina[#Headers],0))-INDEX(RealOficina[],MATCH(INDEX(DesviacionesOficina[],ROW()-ROW(DesviacionesOficina[[#Headers],[Sep]]),1),INDEX(PlanOficina[],,1),0),MATCH(DesviacionesOficina[[#Headers],[Sep]],RealOficina[#Headers],0))","v":{"v":200,"d":"200.00 €"}},{"$f":"INDEX(PlanOficina[],MATCH(INDEX(DesviacionesOficina[],ROW()-ROW(DesviacionesOficina[[#Headers],[Oct]]),1),INDEX(PlanOficina[],,1),0),MATCH(DesviacionesOficina[[#Headers],[Oct]],PlanOficina[#Headers],0))-INDEX(RealOficina[],MATCH(INDEX(DesviacionesOficina[],ROW()-ROW(DesviacionesOficina[[#Headers],[Oct]]),1),INDEX(PlanOficina[],,1),0),MATCH(DesviacionesOficina[[#Headers],[Oct]],RealOficina[#Headers],0))","v":{"v":200,"d":"200.00 €"}},{"$f":"INDEX(PlanOficina[],MATCH(INDEX(DesviacionesOficina[],ROW()-ROW(DesviacionesOficina[[#Headers],[Nov]]),1),INDEX(PlanOficina[],,1),0),MATCH(DesviacionesOficina[[#Headers],[Nov]],PlanOficina[#Headers],0))-INDEX(RealOficina[],MATCH(INDEX(DesviacionesOficina[],ROW()-ROW(DesviacionesOficina[[#Headers],[Nov]]),1),INDEX(PlanOficina[],,1),0),MATCH(DesviacionesOficina[[#Headers],[Nov]],RealOficina[#Headers],0))","v":{"v":200,"d":"200.00 €"}},{"$f":"INDEX(PlanOficina[],MATCH(INDEX(DesviacionesOficina[],ROW()-ROW(DesviacionesOficina[[#Headers],[Dic]]),1),INDEX(PlanOficina[],,1),0),MATCH(DesviacionesOficina[[#Headers],[Dic]],PlanOficina[#Headers],0))-INDEX(RealOficina[],MATCH(INDEX(DesviacionesOficina[],ROW()-ROW(DesviacionesOficina[[#Headers],[Dic]]),1),INDEX(PlanOficina[],,1),0),MATCH(DesviacionesOficina[[#Headers],[Dic]],RealOficina[#Headers],0))","v":{"v":200,"d":"200.00 €"}},{"$f":"SUM(DesviacionesOficina[[#This Row],[Ene]:[Dic]])","v":{"v":1125,"d":"1,125.00 €"}}]
[null,"Seguridad",{"$f":"INDEX(PlanOficina[],MATCH(INDEX(DesviacionesOficina[],ROW()-ROW(DesviacionesOficina[[#Headers],[Ene]]),1),INDEX(PlanOficina[],,1),0),MATCH(DesviacionesOficina[[#Headers],[Ene]],PlanOficina[#Headers],0))-INDEX(RealOficina[],MATCH(INDEX(DesviacionesOficina[],ROW()-ROW(DesviacionesOficina[[#Headers],[Ene]]),1),INDEX(PlanOficina[],,1),0),MATCH(DesviacionesOficina[[#Headers],[Ene]],RealOficina[#Headers],0))","v":{"v":0,"d":"0.00 €"}},{"$f":"INDEX(PlanOficina[],MATCH(INDEX(DesviacionesOficina[],ROW()-ROW(DesviacionesOficina[[#Headers],[Feb]]),1),INDEX(PlanOficina[],,1),0),MATCH(DesviacionesOficina[[#Headers],[Feb]],PlanOficina[#Headers],0))-INDEX(RealOficina[],MATCH(INDEX(DesviacionesOficina[],ROW()-ROW(DesviacionesOficina[[#Headers],[Feb]]),1),INDEX(PlanOficina[],,1),0),MATCH(DesviacionesOficina[[#Headers],[Feb]],RealOficina[#Headers],0))","v":{"v":0,"d":"0.00 €"}},{"$f":"INDEX(PlanOficina[],MATCH(INDEX(DesviacionesOficina[],ROW()-ROW(DesviacionesOficina[[#Headers],[Mar]]),1),INDEX(PlanOficina[],,1),0),MATCH(DesviacionesOficina[[#Headers],[Mar]],PlanOficina[#Headers],0))-INDEX(RealOficina[],MATCH(INDEX(DesviacionesOficina[],ROW()-ROW(DesviacionesOficina[[#Headers],[Mar]]),1),INDEX(PlanOficina[],,1),0),MATCH(DesviacionesOficina[[#Headers],[Mar]],RealOficina[#Headers],0))","v":{"v":0,"d":"0.00 €"}},{"$f":"INDEX(PlanOficina[],MATCH(INDEX(DesviacionesOficina[],ROW()-ROW(DesviacionesOficina[[#Headers],[Abr]]),1),INDEX(PlanOficina[],,1),0),MATCH(DesviacionesOficina[[#Headers],[Abr]],PlanOficina[#Headers],0))-INDEX(RealOficina[],MATCH(INDEX(DesviacionesOficina[],ROW()-ROW(DesviacionesOficina[[#Headers],[Abr]]),1),INDEX(PlanOficina[],,1),0),MATCH(DesviacionesOficina[[#Headers],[Abr]],RealOficina[#Headers],0))","v":{"v":0,"d":"0.00 €"}},{"$f":"INDEX(PlanOficina[],MATCH(INDEX(DesviacionesOficina[],ROW()-ROW(DesviacionesOficina[[#Headers],[Mayo]]),1),INDEX(PlanOficina[],,1),0),MATCH(DesviacionesOficina[[#Headers],[Mayo]],PlanOficina[#Headers],0))-INDEX(RealOficina[],MATCH(INDEX(DesviacionesOficina[],ROW()-ROW(DesviacionesOficina[[#Headers],[Mayo]]),1),INDEX(PlanOficina[],,1),0),MATCH(DesviacionesOficina[[#Headers],[Mayo]],RealOficina[#Headers],0))","v":{"v":0,"d":"0.00 €"}},{"$f":"INDEX(PlanOficina[],MATCH(INDEX(DesviacionesOficina[],ROW()-ROW(DesviacionesOficina[[#Headers],[Jun]]),1),INDEX(PlanOficina[],,1),0),MATCH(DesviacionesOficina[[#Headers],[Jun]],PlanOficina[#Headers],0))-INDEX(RealOficina[],MATCH(INDEX(DesviacionesOficina[],ROW()-ROW(DesviacionesOficina[[#Headers],[Jun]]),1),INDEX(PlanOficina[],,1),0),MATCH(DesviacionesOficina[[#Headers],[Jun]],RealOficina[#Headers],0))","v":{"v":0,"d":"0.00 €"}},{"$f":"INDEX(PlanOficina[],MATCH(INDEX(DesviacionesOficina[],ROW()-ROW(DesviacionesOficina[[#Headers],[Jul]]),1),INDEX(PlanOficina[],,1),0),MATCH(DesviacionesOficina[[#Headers],[Jul]],PlanOficina[#Headers],0))-INDEX(RealOficina[],MATCH(INDEX(DesviacionesOficina[],ROW()-ROW(DesviacionesOficina[[#Headers],[Jul]]),1),INDEX(PlanOficina[],,1),0),MATCH(DesviacionesOficina[[#Headers],[Jul]],RealOficina[#Headers],0))","v":{"v":600,"d":"600.00 €"}},{"$f":"INDEX(PlanOficina[],MATCH(INDEX(DesviacionesOficina[],ROW()-ROW(DesviacionesOficina[[#Headers],[Ago]]),1),INDEX(PlanOficina[],,1),0),MATCH(DesviacionesOficina[[#Headers],[Ago]],PlanOficina[#Headers],0))-INDEX(RealOficina[],MATCH(INDEX(DesviacionesOficina[],ROW()-ROW(DesviacionesOficina[[#Headers],[Ago]]),1),INDEX(PlanOficina[],,1),0),MATCH(DesviacionesOficina[[#Headers],[Ago]],RealOficina[#Headers],0))","v":{"v":600,"d":"600.00 €"}},{"$f":"INDEX(PlanOficina[],MATCH(INDEX(DesviacionesOficina[],ROW()-ROW(DesviacionesOficina[[#Headers],[Sep]]),1),INDEX(PlanOficina[],,1),0),MATCH(DesviacionesOficina[[#Headers],[Sep]],PlanOficina[#Headers],0))-INDEX(RealOficina[],MATCH(INDEX(DesviacionesOficina[],ROW()-ROW(DesviacionesOficina[[#Headers],[Sep]]),1),INDEX(PlanOficina[],,1),0),MATCH(DesviacionesOficina[[#Headers],[Sep]],RealOficina[#Headers],0))","v":{"v":600,"d":"600.00 €"}},{"$f":"INDEX(PlanOficina[],MATCH(INDEX(DesviacionesOficina[],ROW()-ROW(DesviacionesOficina[[#Headers],[Oct]]),1),INDEX(PlanOficina[],,1),0),MATCH(DesviacionesOficina[[#Headers],[Oct]],PlanOficina[#Headers],0))-INDEX(RealOficina[],MATCH(INDEX(DesviacionesOficina[],ROW()-ROW(DesviacionesOficina[[#Headers],[Oct]]),1),INDEX(PlanOficina[],,1),0),MATCH(DesviacionesOficina[[#Headers],[Oct]],RealOficina[#Headers],0))","v":{"v":600,"d":"600.00 €"}},{"$f":"INDEX(PlanOficina[],MATCH(INDEX(DesviacionesOficina[],ROW()-ROW(DesviacionesOficina[[#Headers],[Nov]]),1),INDEX(PlanOficina[],,1),0),MATCH(DesviacionesOficina[[#Headers],[Nov]],PlanOficina[#Headers],0))-INDEX(RealOficina[],MATCH(INDEX(DesviacionesOficina[],ROW()-ROW(DesviacionesOficina[[#Headers],[Nov]]),1),INDEX(PlanOficina[],,1),0),MATCH(DesviacionesOficina[[#Headers],[Nov]],RealOficina[#Headers],0))","v":{"v":600,"d":"600.00 €"}},{"$f":"INDEX(PlanOficina[],MATCH(INDEX(DesviacionesOficina[],ROW()-ROW(DesviacionesOficina[[#Headers],[Dic]]),1),INDEX(PlanOficina[],,1),0),MATCH(DesviacionesOficina[[#Headers],[Dic]],PlanOficina[#Headers],0))-INDEX(RealOficina[],MATCH(INDEX(DesviacionesOficina[],ROW()-ROW(DesviacionesOficina[[#Headers],[Dic]]),1),INDEX(PlanOficina[],,1),0),MATCH(DesviacionesOficina[[#Headers],[Dic]],RealOficina[#Headers],0))","v":{"v":600,"d":"600.00 €"}},{"$f":"SUM(DesviacionesOficina[[#This Row],[Ene]:[Dic]])","v":{"v":3600,"d":"3,600.00 €"}}]
[null,"Subtotal",{"$f":"SUBTOTAL(109,DesviacionesOficina[Ene])","v":{"v":-17,"d":"-17.00 €"}},{"$f":"SUBTOTAL(109,DesviacionesOficina[Feb])","v":{"v":72,"d":"72.00 €"}},{"$f":"SUBTOTAL(109,DesviacionesOficina[Mar])","v":{"v":78,"d":"78.00 €"}},{"$f":"SUBTOTAL(109,DesviacionesOficina[Abr])","v":{"v":-141,"d":"-141.00 €"}},{"$f":"SUBTOTAL(109,DesviacionesOficina[Mayo])","v":{"v":-38,"d":"-38.00 €"}},{"$f":"SUBTOTAL(109,DesviacionesOficina[Jun])","v":{"v":16,"d":"16.00 €"}},{"$f":"SUBTOTAL(109,DesviacionesOficina[Jul])","v":{"v":11470,"d":"11,470.00 €"}},{"$f":"SUBTOTAL(109,DesviacionesOficina[Ago])","v":{"v":11470,"d":"11,470.00 €"}},{"$f":"SUBTOTAL(109,DesviacionesOficina[Sep])","v":{"v":11470,"d":"11,470.00 €"}},{"$f":"SUBTOTAL(109,DesviacionesOficina[Oct])","v":{"v":11470,"d":"11,470.00 €"}},{"$f":"SUBTOTAL(109,DesviacionesOficina[Nov])","v":{"v":11770,"d":"11,770.00 €"}},{"$f":"SUBTOTAL(109,DesviacionesOficina[Dic])","v":{"v":11770,"d":"11,770.00 €"}},{"$f":"SUBTOTAL(109,DesviacionesOficina[AÑO])","v":{"v":69390,"d":"69,390.00 €"}}]
[]
[null,"COSTES DE MARKETING","Ene","Feb","Mar","Abr","Mayo","Jun","Jul","Ago","Sep","Oct","Nov","Dic","AÑO"]
[null,"Hospedaje del sitio web",{"$f":"INDEX(PlanMarketing[],MATCH(INDEX(DesviacionesMarketing[],ROW()-ROW(DesviacionesMarketing[[#Headers],[Ene]]),1),INDEX(PlanMarketing[],,1),0),MATCH(DesviacionesMarketing[[#Headers],[Ene]],PlanMarketing[#Headers],0))-INDEX(RealMarketing[],MATCH(INDEX(DesviacionesMarketing[],ROW()-ROW(DesviacionesMarketing[[#Headers],[Ene]]),1),INDEX(PlanMarketing[],,1),0),MATCH(DesviacionesMarketing[[#Headers],[Ene]],RealMarketing[#Headers],0))","v":{"v":0,"d":"0.00 €"}},{"$f":"INDEX(PlanMarketing[],MATCH(INDEX(DesviacionesMarketing[],ROW()-ROW(DesviacionesMarketing[[#Headers],[Feb]]),1),INDEX(PlanMarketing[],,1),0),MATCH(DesviacionesMarketing[[#Headers],[Feb]],PlanMarketing[#Headers],0))-INDEX(RealMarketing[],MATCH(INDEX(DesviacionesMarketing[],ROW()-ROW(DesviacionesMarketing[[#Headers],[Feb]]),1),INDEX(PlanMarketing[],,1),0),MATCH(DesviacionesMarketing[[#Headers],[Feb]],RealMarketing[#Headers],0))","v":{"v":0,"d":"0.00 €"}},{"$f":"INDEX(PlanMarketing[],MATCH(INDEX(DesviacionesMarketing[],ROW()-ROW(DesviacionesMarketing[[#Headers],[Mar]]),1),INDEX(PlanMarketing[],,1),0),MATCH(DesviacionesMarketing[[#Headers],[Mar]],PlanMarketing[#Headers],0))-INDEX(RealMarketing[],MATCH(INDEX(DesviacionesMarketing[],ROW()-ROW(DesviacionesMarketing[[#Headers],[Mar]]),1),INDEX(PlanMarketing[],,1),0),MATCH(DesviacionesMarketing[[#Headers],[Mar]],RealMarketing[#Headers],0))","v":{"v":0,"d":"0.00 €"}},{"$f":"INDEX(PlanMarketing[],MATCH(INDEX(DesviacionesMarketing[],ROW()-ROW(DesviacionesMarketing[[#Headers],[Abr]]),1),INDEX(PlanMarketing[],,1),0),MATCH(DesviacionesMarketing[[#Headers],[Abr]],PlanMarketing[#Headers],0))-INDEX(RealMarketing[],MATCH(INDEX(DesviacionesMarketing[],ROW()-ROW(DesviacionesMarketing[[#Headers],[Abr]]),1),INDEX(PlanMarketing[],,1),0),MATCH(DesviacionesMarketing[[#Headers],[Abr]],RealMarketing[#Headers],0))","v":{"v":0,"d":"0.00 €"}},{"$f":"INDEX(PlanMarketing[],MATCH(INDEX(DesviacionesMarketing[],ROW()-ROW(DesviacionesMarketing[[#Headers],[Mayo]]),1),INDEX(PlanMarketing[],,1),0),MATCH(DesviacionesMarketing[[#Headers],[Mayo]],PlanMarketing[#Headers],0))-INDEX(RealMarketing[],MATCH(INDEX(DesviacionesMarketing[],ROW()-ROW(DesviacionesMarketing[[#Headers],[Mayo]]),1),INDEX(PlanMarketing[],,1),0),MATCH(DesviacionesMarketing[[#Headers],[Mayo]],RealMarketing[#Headers],0))","v":{"v":0,"d":"0.00 €"}},{"$f":"INDEX(PlanMarketing[],MATCH(INDEX(DesviacionesMarketing[],ROW()-ROW(DesviacionesMarketing[[#Headers],[Jun]]),1),INDEX(PlanMarketing[],,1),0),MATCH(DesviacionesMarketing[[#Headers],[Jun]],PlanMarketing[#Headers],0))-INDEX(RealMarketing[],MATCH(INDEX(DesviacionesMarketing[],ROW()-ROW(DesviacionesMarketing[[#Headers],[Jun]]),1),INDEX(PlanMarketing[],,1),0),MATCH(DesviacionesMarketing[[#Headers],[Jun]],RealMarketing[#Headers],0))","v":{"v":0,"d":"0.00 €"}},{"$f":"INDEX(PlanMarketing[],MATCH(INDEX(DesviacionesMarketing[],ROW()-ROW(DesviacionesMarketing[[#Headers],[Jul]]),1),INDEX(PlanMarketing[],,1),0),MATCH(DesviacionesMarketing[[#Headers],[Jul]],PlanMarketing[#Headers],0))-INDEX(RealMarketing[],MATCH(INDEX(DesviacionesMarketing[],ROW()-ROW(DesviacionesMarketing[[#Headers],[Jul]]),1),INDEX(PlanMarketing[],,1),0),MATCH(DesviacionesMarketing[[#Headers],[Jul]],RealMarketing[#Headers],0))","v":{"v":500,"d":"500.00 €"}},{"$f":"INDEX(PlanMarketing[],MATCH(INDEX(DesviacionesMarketing[],ROW()-ROW(DesviacionesMarketing[[#Headers],[Ago]]),1),INDEX(PlanMarketing[],,1),0),MATCH(DesviacionesMarketing[[#Headers],[Ago]],PlanMarketing[#Headers],0))-INDEX(RealMarketing[],MATCH(INDEX(DesviacionesMarketing[],ROW()-ROW(DesviacionesMarketing[[#Headers],[Ago]]),1),INDEX(PlanMarketing[],,1),0),MATCH(DesviacionesMarketing[[#Headers],[Ago]],RealMarketing[#Headers],0))","v":{"v":500,"d":"500.00 €"}},{"$f":"INDEX(PlanMarketing[],MATCH(INDEX(DesviacionesMarketing[],ROW()-ROW(DesviacionesMarketing[[#Headers],[Sep]]),1),INDEX(PlanMarketing[],,1),0),MATCH(DesviacionesMarketing[[#Headers],[Sep]],PlanMarketing[#Headers],0))-INDEX(RealMarketing[],MATCH(INDEX(DesviacionesMarketing[],ROW()-ROW(DesviacionesMarketing[[#Headers],[Sep]]),1),INDEX(PlanMarketing[],,1),0),MATCH(DesviacionesMarketing[[#Headers],[Sep]],RealMarketing[#Headers],0))","v":{"v":500,"d":"500.00 €"}},{"$f":"INDEX(PlanMarketing[],MATCH(INDEX(DesviacionesMarketing[],ROW()-ROW(DesviacionesMarketing[[#Headers],[Oct]]),1),INDEX(PlanMarketing[],,1),0),MATCH(DesviacionesMarketing[[#Headers],[Oct]],PlanMarketing[#Headers],0))-INDEX(RealMarketing[],MATCH(INDEX(DesviacionesMarketing[],ROW()-ROW(DesviacionesMarketing[[#Headers],[Oct]]),1),INDEX(PlanMarketing[],,1),0),MATCH(DesviacionesMarketing[[#Headers],[Oct]],RealMarketing[#Headers],0))","v":{"v":500,"d":"500.00 €"}},{"$f":"INDEX(PlanMarketing[],MATCH(INDEX(DesviacionesMarketing[],ROW()-ROW(DesviacionesMarketing[[#Headers],[Nov]]),1),INDEX(PlanMarketing[],,1),0),MATCH(DesviacionesMarketing[[#Headers],[Nov]],PlanMarketing[#Headers],0))-INDEX(RealMarketing[],MATCH(INDEX(DesviacionesMarketing[],ROW()-ROW(DesviacionesMarketing[[#Headers],[Nov]]),1),INDEX(PlanMarketing[],,1),0),MATCH(DesviacionesMarketing[[#Headers],[Nov]],RealMarketing[#Headers],0))","v":{"v":500,"d":"500.00 €"}},{"$f":"INDEX(PlanMarketing[],MATCH(INDEX(DesviacionesMarketing[],ROW()-ROW(DesviacionesMarketing[[#Headers],[Dic]]),1),INDEX(PlanMarketing[],,1),0),MATCH(DesviacionesMarketing[[#Headers],[Dic]],PlanMarketing[#Headers],0))-INDEX(RealMarketing[],MATCH(INDEX(DesviacionesMarketing[],ROW()-ROW(DesviacionesMarketing[[#Headers],[Dic]]),1),INDEX(PlanMarketing[],,1),0),MATCH(DesviacionesMarketing[[#Headers],[Dic]],RealMarketing[#Headers],0))","v":{"v":500,"d":"500.00 €"}},{"$f":"SUM(DesviacionesMarketing[[#This Row],[Ene]:[Dic]])","v":{"v":3000,"d":"3,000.00 €"}}]
[null,"Actualizaciones del sitio web",{"$f":"INDEX(PlanMarketing[],MATCH(INDEX(DesviacionesMarketing[],ROW()-ROW(DesviacionesMarketing[[#Headers],[Ene]]),1),INDEX(PlanMarketing[],,1),0),MATCH(DesviacionesMarketing[[#Headers],[Ene]],PlanMarketing[#Headers],0))-INDEX(RealMarketing[],MATCH(INDEX(DesviacionesMarketing[],ROW()-ROW(DesviacionesMarketing[[#Headers],[Ene]]),1),INDEX(PlanMarketing[],,1),0),MATCH(DesviacionesMarketing[[#Headers],[Ene]],RealMarketing[#Headers],0))","v":{"v":0,"d":"0.00 €"}},{"$f":"INDEX(PlanMarketing[],MATCH(INDEX(DesviacionesMarketing[],ROW()-ROW(DesviacionesMarketing[[#Headers],[Feb]]),1),INDEX(PlanMarketing[],,1),0),MATCH(DesviacionesMarketing[[#Headers],[Feb]],PlanMarketing[#Headers],0))-INDEX(RealMarketing[],MATCH(INDEX(DesviacionesMarketing[],ROW()-ROW(DesviacionesMarketing[[#Headers],[Feb]]),1),INDEX(PlanMarketing[],,1),0),MATCH(DesviacionesMarketing[[#Headers],[Feb]],RealMarketing[#Headers],0))","v":{"v":0,"d":"0.00 €"}},{"$f":"INDEX(PlanMarketing[],MATCH(INDEX(DesviacionesMarketing[],ROW()-ROW(DesviacionesMarketing[[#Headers],[Mar]]),1),INDEX(PlanMarketing[],,1),0),MATCH(DesviacionesMarketing[[#Headers],[Mar]],PlanMarketing[#Headers],0))-INDEX(RealMarketing[],MATCH(INDEX(DesviacionesMarketing[],ROW()-ROW(DesviacionesMarketing[[#Headers],[Mar]]),1),INDEX(PlanMarketing[],,1),0),MATCH(DesviacionesMarketing[[#Headers],[Mar]],RealMarketing[#Headers],0))","v":{"v":0,"d":"0.00 €"}},{"$f":"INDEX(PlanMarketing[],MATCH(INDEX(DesviacionesMarketing[],ROW()-ROW(DesviacionesMarketing[[#Headers],[Abr]]),1),INDEX(PlanMarketing[],,1),0),MATCH(DesviacionesMarketing[[#Headers],[Abr]],PlanMarketing[#Headers],0))-INDEX(RealMarketing[],MATCH(INDEX(DesviacionesMarketing[],ROW()-ROW(DesviacionesMarketing[[#Headers],[Abr]]),1),INDEX(PlanMarketing[],,1),0),MATCH(DesviacionesMarketing[[#Headers],[Abr]],RealMarketing[#Headers],0))","v":{"v":0,"d":"0.00 €"}},{"$f":"INDEX(PlanMarketing[],MATCH(INDEX(DesviacionesMarketing[],ROW()-ROW(DesviacionesMarketing[[#Headers],[Mayo]]),1),INDEX(PlanMarketing[],,1),0),MATCH(DesviacionesMarketing[[#Headers],[Mayo]],PlanMarketing[#Headers],0))-INDEX(RealMarketing[],MATCH(INDEX(DesviacionesMarketing[],ROW()-ROW(DesviacionesMarketing[[#Headers],[Mayo]]),1),INDEX(PlanMarketing[],,1),0),MATCH(DesviacionesMarketing[[#Headers],[Mayo]],RealMarketing[#Headers],0))","v":{"v":0,"d":"0.00 €"}},{"$f":"INDEX(PlanMarketing[],MATCH(INDEX(DesviacionesMarketing[],ROW()-ROW(DesviacionesMarketing[[#Headers],[Jun]]),1),INDEX(PlanMarketing[],,1),0),MATCH(DesviacionesMarketing[[#Headers],[Jun]],PlanMarketing[#Headers],0))-INDEX(RealMarketing[],MATCH(INDEX(DesviacionesMarketing[],ROW()-ROW(DesviacionesMarketing[[#Headers],[Jun]]),1),INDEX(PlanMarketing[],,1),0),MATCH(DesviacionesMarketing[[#Headers],[Jun]],RealMarketing[#Headers],0))","v":{"v":-500,"d":"-500.00 €"}},{"$f":"INDEX(PlanMarketing[],MATCH(INDEX(DesviacionesMarketing[],ROW()-ROW(DesviacionesMarketing[[#Headers],[Jul]]),1),INDEX(PlanMarketing[],,1),0),MATCH(DesviacionesMarketing[[#Headers],[Jul]],PlanMarketing[#Headers],0))-INDEX(RealMarketing[],MATCH(INDEX(DesviacionesMarketing[],ROW()-ROW(DesviacionesMarketing[[#Headers],[Jul]]),1),INDEX(PlanMarketing[],,1),0),MATCH(DesviacionesMarketing[[#Headers],[Jul]],RealMarketing[#Headers],0))","v":{"v":200,"d":"200.00 €"}},{"$f":"INDEX(PlanMarketing[],MATCH(INDEX(DesviacionesMarketing[],ROW()-ROW(DesviacionesMarketing[[#Headers],[Ago]]),1),INDEX(PlanMarketing[],,1),0),MATCH(DesviacionesMarketing[[#Headers],[Ago]],PlanMarketing[#Headers],0))-INDEX(RealMarketing[],MATCH(INDEX(DesviacionesMarketing[],ROW()-ROW(DesviacionesMarketing[[#Headers],[Ago]]),1),INDEX(PlanMarketing[],,1),0),MATCH(DesviacionesMarketing[[#Headers],[Ago]],RealMarketing[#Headers],0))","v":{"v":200,"d":"200.00 €"}},{"$f":"INDEX(PlanMarketing[],MATCH(INDEX(DesviacionesMarketing[],ROW()-ROW(DesviacionesMarketing[[#Headers],[Sep]]),1),INDEX(PlanMarketing[],,1),0),MATCH(DesviacionesMarketing[[#Headers],[Sep]],PlanMarketing[#Headers],0))-INDEX(RealMarketing[],MATCH(INDEX(DesviacionesMarketing[],ROW()-ROW(DesviacionesMarketing[[#Headers],[Sep]]),1),INDEX(PlanMarketing[],,1),0),MATCH(DesviacionesMarketing[[#Headers],[Sep]],RealMarketing[#Headers],0))","v":{"v":200,"d":"200.00 €"}},{"$f":"INDEX(PlanMarketing[],MATCH(INDEX(DesviacionesMarketing[],ROW()-ROW(DesviacionesMarketing[[#Headers],[Oct]]),1),INDEX(PlanMarketing[],,1),0),MATCH(DesviacionesMarketing[[#Headers],[Oct]],PlanMarketing[#Headers],0))-INDEX(RealMarketing[],MATCH(INDEX(DesviacionesMarketing[],ROW()-ROW(DesviacionesMarketing[[#Headers],[Oct]]),1),INDEX(PlanMarketing[],,1),0),MATCH(DesviacionesMarketing[[#Headers],[Oct]],RealMarketing[#Headers],0))","v":{"v":200,"d":"200.00 €"}},{"$f":"INDEX(PlanMarketing[],MATCH(INDEX(DesviacionesMarketing[],ROW()-ROW(DesviacionesMarketing[[#Headers],[Nov]]),1),INDEX(PlanMarketing[],,1),0),MATCH(DesviacionesMarketing[[#Headers],[Nov]],PlanMarketing[#Headers],0))-INDEX(RealMarketing[],MATCH(INDEX(DesviacionesMarketing[],ROW()-ROW(DesviacionesMarketing[[#Headers],[Nov]]),1),INDEX(PlanMarketing[],,1),0),MATCH(DesviacionesMarketing[[#Headers],[Nov]],RealMarketing[#Headers],0))","v":{"v":200,"d":"200.00 €"}},{"$f":"INDEX(PlanMarketing[],MATCH(INDEX(DesviacionesMarketing[],ROW()-ROW(DesviacionesMarketing[[#Headers],[Dic]]),1),INDEX(PlanMarketing[],,1),0),MATCH(DesviacionesMarketing[[#Headers],[Dic]],PlanMarketing[#Headers],0))-INDEX(RealMarketing[],MATCH(INDEX(DesviacionesMarketing[],ROW()-ROW(DesviacionesMarketing[[#Headers],[Dic]]),1),INDEX(PlanMarketing[],,1),0),MATCH(DesviacionesMarketing[[#Headers],[Dic]],RealMarketing[#Headers],0))","v":{"v":1000,"d":"1,000.00 €"}},{"$f":"SUM(DesviacionesMarketing[[#This Row],[Ene]:[Dic]])","v":{"v":1500,"d":"1,500.00 €"}}]
[null,"Preparación de material",{"$f":"INDEX(PlanMarketing[],MATCH(INDEX(DesviacionesMarketing[],ROW()-ROW(DesviacionesMarketing[[#Headers],[Ene]]),1),INDEX(PlanMarketing[],,1),0),MATCH(DesviacionesMarketing[[#Headers],[Ene]],PlanMarketing[#Headers],0))-INDEX(RealMarketing[],MATCH(INDEX(DesviacionesMarketing[],ROW()-ROW(DesviacionesMarketing[[#Headers],[Ene]]),1),INDEX(PlanMarketing[],,1),0),MATCH(DesviacionesMarketing[[#Headers],[Ene]],RealMarketing[#Headers],0))","v":{"v":200,"d":"200.00 €"}},{"$f":"INDEX(PlanMarketing[],MATCH(INDEX(DesviacionesMarketing[],ROW()-ROW(DesviacionesMarketing[[#Headers],[Feb]]),1),INDEX(PlanMarketing[],,1),0),MATCH(DesviacionesMarketing[[#Headers],[Feb]],PlanMarketing[#Headers],0))-INDEX(RealMarketing[],MATCH(INDEX(DesviacionesMarketing[],ROW()-ROW(DesviacionesMarketing[[#Headers],[Feb]]),1),INDEX(PlanMarketing[],,1),0),MATCH(DesviacionesMarketing[[#Headers],[Feb]],RealMarketing[#Headers],0))","v":{"v":0,"d":"0.00 €"}},{"$f":"INDEX(PlanMarketing[],MATCH(INDEX(DesviacionesMarketing[],ROW()-ROW(DesviacionesMarketing[[#Headers],[Mar]]),1),INDEX(PlanMarketing[],,1),0),MATCH(DesviacionesMarketing[[#Headers],[Mar]],PlanMarketing[#Headers],0))-INDEX(RealMarketing[],MATCH(INDEX(DesviacionesMarketing[],ROW()-ROW(DesviacionesMarketing[[#Headers],[Mar]]),1),INDEX(PlanMarketing[],,1),0),MATCH(DesviacionesMarketing[[#Headers],[Mar]],RealMarketing[#Headers],0))","v":{"v":0,"d":"0.00 €"}},{"$f":"INDEX(PlanMarketing[],MATCH(INDEX(DesviacionesMarketing[],ROW()-ROW(DesviacionesMarketing[[#Headers],[Abr]]),1),INDEX(PlanMarketing[],,1),0),MATCH(DesviacionesMarketing[[#Headers],[Abr]],PlanMarketing[#Headers],0))-INDEX(RealMarketing[],MATCH(INDEX(DesviacionesMarketing[],ROW()-ROW(DesviacionesMarketing[[#Headers],[Abr]]),1),INDEX(PlanMarketing[],,1),0),MATCH(DesviacionesMarketing[[#Headers],[Abr]],RealMarketing[#Headers],0))","v":{"v":-500,"d":"-500.00 €"}},{"$f":"INDEX(PlanMarketing[],MATCH(INDEX(DesviacionesMarketing[],ROW()-ROW(DesviacionesMarketing[[#Headers],[Mayo]]),1),INDEX(PlanMarketing[],,1),0),MATCH(DesviacionesMarketing[[#Headers],[Mayo]],PlanMarketing[#Headers],0))-INDEX(RealMarketing[],MATCH(INDEX(DesviacionesMarketing[],ROW()-ROW(DesviacionesMarketing[[#Headers],[Mayo]]),1),INDEX(PlanMarketing[],,1),0),MATCH(DesviacionesMarketing[[#Headers],[Mayo]],RealMarketing[#Headers],0))","v":{"v":0,"d":"0.00 €"}},{"$f":"INDEX(PlanMarketing[],MATCH(INDEX(DesviacionesMarketing[],ROW()-ROW(DesviacionesMarketing[[#Headers],[Jun]]),1),INDEX(PlanMarketing[],,1),0),MATCH(DesviacionesMarketing[[#Headers],[Jun]],PlanMarketing[#Headers],0))-INDEX(RealMarketing[],MATCH(INDEX(DesviacionesMarketing[],ROW()-ROW(DesviacionesMarketing[[#Headers],[Jun]]),1),INDEX(PlanMarketing[],,1),0),MATCH(DesviacionesMarketing[[#Headers],[Jun]],RealMarketing[#Headers],0))","v":{"v":0,"d":"0.00 €"}},{"$f":"INDEX(PlanMarketing[],MATCH(INDEX(DesviacionesMarketing[],ROW()-ROW(DesviacionesMarketing[[#Headers],[Jul]]),1),INDEX(PlanMarketing[],,1),0),MATCH(DesviacionesMarketing[[#Headers],[Jul]],PlanMarketing[#Headers],0))-INDEX(RealMarketing[],MATCH(INDEX(DesviacionesMarketing[],ROW()-ROW(DesviacionesMarketing[[#Headers],[Jul]]),1),INDEX(PlanMarketing[],,1),0),MATCH(DesviacionesMarketing[[#Headers],[Jul]],RealMarketing[#Headers],0))","v":{"v":5000,"d":"5,000.00 €"}},{"$f":"INDEX(PlanMarketing[],MATCH(INDEX(DesviacionesMarketing[],ROW()-ROW(DesviacionesMarketing[[#Headers],[Ago]]),1),INDEX(PlanMarketing[],,1),0),MATCH(DesviacionesMarketing[[#Headers],[Ago]],PlanMarketing[#Headers],0))-INDEX(RealMarketing[],MATCH(INDEX(DesviacionesMarketing[],ROW()-ROW(DesviacionesMarketing[[#Headers],[Ago]]),1),INDEX(PlanMarketing[],,1),0),MATCH(DesviacionesMarketing[[#Headers],[Ago]],RealMarketing[#Headers],0))","v":{"v":0,"d":"0.00 €"}},{"$f":"INDEX(PlanMarketing[],MATCH(INDEX(DesviacionesMarketing[],ROW()-ROW(DesviacionesMarketing[[#Headers],[Sep]]),1),INDEX(PlanMarketing[],,1),0),MATCH(DesviacionesMarketing[[#Headers],[Sep]],PlanMarketing[#Headers],0))-INDEX(RealMarketing[],MATCH(INDEX(DesviacionesMarketing[],ROW()-ROW(DesviacionesMarketing[[#Headers],[Sep]]),1),INDEX(PlanMarketing[],,1),0),MATCH(DesviacionesMarketing[[#Headers],[Sep]],RealMarketing[#Headers],0))","v":{"v":0,"d":"0.00 €"}},{"$f":"INDEX(PlanMarketing[],MATCH(INDEX(DesviacionesMarketing[],ROW()-ROW(DesviacionesMarketing[[#Headers],[Oct]]),1),INDEX(PlanMarketing[],,1),0),MATCH(DesviacionesMarketing[[#Headers],[Oct]],PlanMarketing[#Headers],0))-INDEX(RealMarketing[],MATCH(INDEX(DesviacionesMarketing[],ROW()-ROW(DesviacionesMarketing[[#Headers],[Oct]]),1),INDEX(PlanMarketing[],,1),0),MATCH(DesviacionesMarketing[[#Headers],[Oct]],RealMarketing[#Headers],0))","v":{"v":5000,"d":"5,000.00 €"}},{"$f":"INDEX(PlanMarketing[],MATCH(INDEX(DesviacionesMarketing[],ROW()-ROW(DesviacionesMarketing[[#Headers],[Nov]]),1),INDEX(PlanMarketing[],,1),0),MATCH(DesviacionesMarketing[[#Headers],[Nov]],PlanMarketing[#Headers],0))-INDEX(RealMarketing[],MATCH(INDEX(DesviacionesMarketing[],ROW()-ROW(DesviacionesMarketing[[#Headers],[Nov]]),1),INDEX(PlanMarketing[],,1),0),MATCH(DesviacionesMarketing[[#Headers],[Nov]],RealMarketing[#Headers],0))","v":{"v":0,"d":"0.00 €"}},{"$f":"INDEX(PlanMarketing[],MATCH(INDEX(DesviacionesMarketing[],ROW()-ROW(DesviacionesMarketing[[#Headers],[Dic]]),1),INDEX(PlanMarketing[],,1),0),MATCH(DesviacionesMarketing[[#Headers],[Dic]],PlanMarketing[#Headers],0))-INDEX(RealMarketing[],MATCH(INDEX(DesviacionesMarketing[],ROW()-ROW(DesviacionesMarketing[[#Headers],[Dic]]),1),INDEX(PlanMarketing[],,1),0),MATCH(DesviacionesMarketing[[#Headers],[Dic]],RealMarketing[#Headers],0))","v":{"v":0,"d":"0.00 €"}},{"$f":"SUM(DesviacionesMarketing[[#This Row],[Ene]:[Dic]])","v":{"v":9700,"d":"9,700.00 €"}}]
[null,"Impresión de material",{"$f":"INDEX(PlanMarketing[],MATCH(INDEX(DesviacionesMarketing[],ROW()-ROW(DesviacionesMarketing[[#Headers],[Ene]]),1),INDEX(PlanMarketing[],,1),0),MATCH(DesviacionesMarketing[[#Headers],[Ene]],PlanMarketing[#Headers],0))-INDEX(RealMarketing[],MATCH(INDEX(DesviacionesMarketing[],ROW()-ROW(DesviacionesMarketing[[#Headers],[Ene]]),1),INDEX(PlanMarketing[],,1),0),MATCH(DesviacionesMarketing[[#Headers],[Ene]],RealMarketing[#Headers],0))","v":{"v":100,"d":"100.00 €"}},{"$f":"INDEX(PlanMarketing[],MATCH(INDEX(DesviacionesMarketing[],ROW()-ROW(DesviacionesMarketing[[#Headers],[Feb]]),1),INDEX(PlanMarketing[],,1),0),MATCH(DesviacionesMarketing[[#Headers],[Feb]],PlanMarketing[#Headers],0))-INDEX(RealMarketing[],MATCH(INDEX(DesviacionesMarketing[],ROW()-ROW(DesviacionesMarketing[[#Headers],[Feb]]),1),INDEX(PlanMarketing[],,1),0),MATCH(DesviacionesMarketing[[#Headers],[Feb]],RealMarketing[#Headers],0))","v":{"v":-300,"d":"-300.00 €"}},{"$f":"INDEX(PlanMarketing[],MATCH(INDEX(DesviacionesMarketing[],ROW()-ROW(DesviacionesMarketing[[#Headers],[Mar]]),1),INDEX(PlanMarketing[],,1),0),MATCH(DesviacionesMarketing[[#Headers],[Mar]],PlanMarketing[#Headers],0))-INDEX(RealMarketing[],MATCH(INDEX(DesviacionesMarketing[],ROW()-ROW(DesviacionesMarketing[[#Headers],[Mar]]),1),INDEX(PlanMarketing[],,1),0),MATCH(DesviacionesMarketing[[#Headers],[Mar]],RealMarketing[#Headers],0))","v":{"v":100,"d":"100.00 €"}},{"$f":"INDEX(PlanMarketing[],MATCH(INDEX(DesviacionesMarketing[],ROW()-ROW(DesviacionesMarketing[[#Headers],[Abr]]),1),INDEX(PlanMarketing[],,1),0),MATCH(DesviacionesMarketing[[#Headers],[Abr]],PlanMarketing[#Headers],0))-INDEX(RealMarketing[],MATCH(INDEX(DesviacionesMarketing[],ROW()-ROW(DesviacionesMarketing[[#Headers],[Abr]]),1),INDEX(PlanMarketing[],,1),0),MATCH(DesviacionesMarketing[[#Headers],[Abr]],RealMarketing[#Headers],0))","v":{"v":100,"d":"100.00 €"}},{"$f":"INDEX(PlanMarketing[],MATCH(INDEX(DesviacionesMarketing[],ROW()-ROW(DesviacionesMarketing[[#Headers],[Mayo]]),1),INDEX(PlanMarketing[],,1),0),MATCH(DesviacionesMarketing[[#Headers],[Mayo]],PlanMarketing[#Headers],0))-INDEX(RealMarketing[],MATCH(INDEX(DesviacionesMarketing[],ROW()-ROW(DesviacionesMarketing[[#Headers],[Mayo]]),1),INDEX(PlanMarketing[],,1),0),MATCH(DesviacionesMarketing[[#Headers],[Mayo]],RealMarketing[#Headers],0))","v":{"v":-400,"d":"-400.00 €"}},{"$f":"INDEX(PlanMarketing[],MATCH(INDEX(DesviacionesMarketing[],ROW()-ROW(DesviacionesMarketing[[#Headers],[Jun]]),1),INDEX(PlanMarketing[],,1),0),MATCH(DesviacionesMarketing[[#Headers],[Jun]],PlanMarketing[#Headers],0))-INDEX(RealMarketing[],MATCH(INDEX(DesviacionesMarketing[],ROW()-ROW(DesviacionesMarketing[[#Headers],[Jun]]),1),INDEX(PlanMarketing[],,1),0),MATCH(DesviacionesMarketing[[#Headers],[Jun]],RealMarketing[#Headers],0))","v":{"v":20,"d":"20.00 €"}},{"$f":"INDEX(PlanMarketing[],MATCH(INDEX(DesviacionesMarketing[],ROW()-ROW(DesviacionesMarketing[[#Headers],[Jul]]),1),INDEX(PlanMarketing[],,1),0),MATCH(DesviacionesMarketing[[#Headers],[Jul]],PlanMarketing[#Headers],0))-INDEX(RealMarketing[],MATCH(INDEX(DesviacionesMarketing[],ROW()-ROW(DesviacionesMarketing[[#Headers],[Jul]]),1),INDEX(PlanMarketing[],,1),0),MATCH(DesviacionesMarketing[[#Headers],[Jul]],RealMarketing[#Headers],0))","v":{"v":200,"d":"200.00 €"}},{"$f":"INDEX(PlanMarketing[],MATCH(INDEX(DesviacionesMarketing[],ROW()-ROW(DesviacionesMarketing[[#Headers],[Ago]]),1),INDEX(PlanMarketing[],,1),0),MATCH(DesviacionesMarketing[[#Headers],[Ago]],PlanMarketing[#Headers],0))-INDEX(RealMarketing[],MATCH(INDEX(DesviacionesMarketing[],ROW()-ROW(DesviacionesMarketing[[#Headers],[Ago]]),1),INDEX(PlanMarketing[],,1),0),MATCH(DesviacionesMarketing[[#Headers],[Ago]],RealMarketing[#Headers],0))","v":{"v":200,"d":"200.00 €"}},{"$f":"INDEX(PlanMarketing[],MATCH(INDEX(DesviacionesMarketing[],ROW()-ROW(DesviacionesMarketing[[#Headers],[Sep]]),1),INDEX(PlanMarketing[],,1),0),MATCH(DesviacionesMarketing[[#Headers],[Sep]],PlanMarketing[#Headers],0))-INDEX(RealMarketing[],MATCH(INDEX(DesviacionesMarketing[],ROW()-ROW(DesviacionesMarketing[[#Headers],[Sep]]),1),INDEX(PlanMarketing[],,1),0),MATCH(DesviacionesMarketing[[#Headers],[Sep]],RealMarketing[#Headers],0))","v":{"v":200,"d":"200.00 €"}},{"$f":"INDEX(PlanMarketing[],MATCH(INDEX(DesviacionesMarketing[],ROW()-ROW(DesviacionesMarketing[[#Headers],[Oct]]),1),INDEX(PlanMarketing[],,1),0),MATCH(DesviacionesMarketing[[#Headers],[Oct]],PlanMarketing[#Headers],0))-INDEX(RealMarketing[],MATCH(INDEX(DesviacionesMarketing[],ROW()-ROW(DesviacionesMarketing[[#Headers],[Oct]]),1),INDEX(PlanMarketing[],,1),0),MATCH(DesviacionesMarketing[[#Headers],[Oct]],RealMarketing[#Headers],0))","v":{"v":200,"d":"200.00 €"}},{"$f":"INDEX(PlanMarketing[],MATCH(INDEX(DesviacionesMarketing[],ROW()-ROW(DesviacionesMarketing[[#Headers],[Nov]]),1),INDEX(PlanMarketing[],,1),0),MATCH(DesviacionesMarketing[[#Headers],[Nov]],PlanMarketing[#Headers],0))-INDEX(RealMarketing[],MATCH(INDEX(DesviacionesMarketing[],ROW()-ROW(DesviacionesMarketing[[#Headers],[Nov]]),1),INDEX(PlanMarketing[],,1),0),MATCH(DesviacionesMarketing[[#Headers],[Nov]],RealMarketing[#Headers],0))","v":{"v":200,"d":"200.00 €"}},{"$f":"INDEX(PlanMarketing[],MATCH(INDEX(DesviacionesMarketing[],ROW()-ROW(DesviacionesMarketing[[#Headers],[Dic]]),1),INDEX(PlanMarketing[],,1),0),MATCH(DesviacionesMarketing[[#Headers],[Dic]],PlanMarketing[#Headers],0))-INDEX(RealMarketing[],MATCH(INDEX(DesviacionesMarketing[],ROW()-ROW(DesviacionesMarketing[[#Headers],[Dic]]),1),INDEX(PlanMarketing[],,1),0),MATCH(DesviacionesMarketing[[#Headers],[Dic]],RealMarketing[#Headers],0))","v":{"v":200,"d":"200.00 €"}},{"$f":"SUM(DesviacionesMarketing[[#This Row],[Ene]:[Dic]])","v":{"v":820,"d":"820.00 €"}}]
[null,"Eventos de marketing",{"$f":"INDEX(PlanMarketing[],MATCH(INDEX(DesviacionesMarketing[],ROW()-ROW(DesviacionesMarketing[[#Headers],[Ene]]),1),INDEX(PlanMarketing[],,1),0),MATCH(DesviacionesMarketing[[#Headers],[Ene]],PlanMarketing[#Headers],0))-INDEX(RealMarketing[],MATCH(INDEX(DesviacionesMarketing[],ROW()-ROW(DesviacionesMarketing[[#Headers],[Ene]]),1),INDEX(PlanMarketing[],,1),0),MATCH(DesviacionesMarketing[[#Headers],[Ene]],RealMarketing[#Headers],0))","v":{"v":200,"d":"200.00 €"}},{"$f":"INDEX(PlanMarketing[],MATCH(INDEX(DesviacionesMarketing[],ROW()-ROW(DesviacionesMarketing[[#Headers],[Feb]]),1),INDEX(PlanMarketing[],,1),0),MATCH(DesviacionesMarketing[[#Headers],[Feb]],PlanMarketing[#Headers],0))-INDEX(RealMarketing[],MATCH(INDEX(DesviacionesMarketing[],ROW()-ROW(DesviacionesMarketing[[#Headers],[Feb]]),1),INDEX(PlanMarketing[],,1),0),MATCH(DesviacionesMarketing[[#Headers],[Feb]],RealMarketing[#Headers],0))","v":{"v":-200,"d":"-200.00 €"}},{"$f":"INDEX(PlanMarketing[],MATCH(INDEX(DesviacionesMarketing[],ROW()-ROW(DesviacionesMarketing[[#Headers],[Mar]]),1),INDEX(PlanMarketing[],,1),0),MATCH(DesviacionesMarketing[[#Headers],[Mar]],PlanMarketing[#Headers],0))-INDEX(RealMarketing[],MATCH(INDEX(DesviacionesMarketing[],ROW()-ROW(DesviacionesMarketing[[#Headers],[Mar]]),1),INDEX(PlanMarketing[],,1),0),MATCH(DesviacionesMarketing[[#Headers],[Mar]],RealMarketing[#Headers],0))","v":{"v":-200,"d":"-200.00 €"}},{"$f":"INDEX(PlanMarketing[],MATCH(INDEX(DesviacionesMarketing[],ROW()-ROW(DesviacionesMarketing[[#Headers],[Abr]]),1),INDEX(PlanMarketing[],,1),0),MATCH(DesviacionesMarketing[[#Headers],[Abr]],PlanMarketing[#Headers],0))-INDEX(RealMarketing[],MATCH(INDEX(DesviacionesMarketing[],ROW()-ROW(DesviacionesMarketing[[#Headers],[Abr]]),1),INDEX(PlanMarketing[],,1),0),MATCH(DesviacionesMarketing[[#Headers],[Abr]],RealMarketing[#Headers],0))","v":{"v":300,"d":"300.00 €"}},{"$f":"INDEX(PlanMarketing[],MATCH(INDEX(DesviacionesMarketing[],ROW()-ROW(DesviacionesMarketing[[#Headers],[Mayo]]),1),INDEX(PlanMarketing[],,1),0),MATCH(DesviacionesMarketing[[#Headers],[Mayo]],PlanMarketing[#Headers],0))-INDEX(RealMarketing[],MATCH(INDEX(DesviacionesMarketing[],ROW()-ROW(DesviacionesMarketing[[#Headers],[Mayo]]),1),INDEX(PlanMarketing[],,1),0),MATCH(DesviacionesMarketing[[#Headers],[Mayo]],RealMarketing[#Headers],0))","v":{"v":500,"d":"500.00 €"}},{"$f":"INDEX(PlanMarketing[],MATCH(INDEX(DesviacionesMarketing[],ROW()-ROW(DesviacionesMarketing[[#Headers],[Jun]]),1),INDEX(PlanMarketing[],,1),0),MATCH(DesviacionesMarketing[[#Headers],[Jun]],PlanMarketing[#Headers],0))-INDEX(RealMarketing[],MATCH(INDEX(DesviacionesMarketing[],ROW()-ROW(DesviacionesMarketing[[#Headers],[Jun]]),1),INDEX(PlanMarketing[],,1),0),MATCH(DesviacionesMarketing[[#Headers],[Jun]],RealMarketing[#Headers],0))","v":{"v":-300,"d":"-300.00 €"}},{"$f":"INDEX(PlanMarketing[],MATCH(INDEX(DesviacionesMarketing[],ROW()-ROW(DesviacionesMarketing[[#Headers],[Jul]]),1),INDEX(PlanMarketing[],,1),0),MATCH(DesviacionesMarketing[[#Headers],[Jul]],PlanMarketing[#Headers],0))-INDEX(RealMarketing[],MATCH(INDEX(DesviacionesMarketing[],ROW()-ROW(DesviacionesMarketing[[#Headers],[Jul]]),1),INDEX(PlanMarketing[],,1),0),MATCH(DesviacionesMarketing[[#Headers],[Jul]],RealMarketing[#Headers],0))","v":{"v":2000,"d":"2,000.00 €"}},{"$f":"INDEX(PlanMarketing[],MATCH(INDEX(DesviacionesMarketing[],ROW()-ROW(DesviacionesMarketing[[#Headers],[Ago]]),1),INDEX(PlanMarketing[],,1),0),MATCH(DesviacionesMarketing[[#Headers],[Ago]],PlanMarketing[#Headers],0))-INDEX(RealMarketing[],MATCH(INDEX(DesviacionesMarketing[],ROW()-ROW(DesviacionesMarketing[[#Headers],[Ago]]),1),INDEX(PlanMarketing[],,1),0),MATCH(DesviacionesMarketing[[#Headers],[Ago]],RealMarketing[#Headers],0))","v":{"v":5000,"d":"5,000.00 €"}},{"$f":"INDEX(PlanMarketing[],MATCH(INDEX(DesviacionesMarketing[],ROW()-ROW(DesviacionesMarketing[[#Headers],[Sep]]),1),INDEX(PlanMarketing[],,1),0),MATCH(DesviacionesMarketing[[#Headers],[Sep]],PlanMarketing[#Headers],0))-INDEX(RealMarketing[],MATCH(INDEX(DesviacionesMarketing[],ROW()-ROW(DesviacionesMarketing[[#Headers],[Sep]]),1),INDEX(PlanMarketing[],,1),0),MATCH(DesviacionesMarketing[[#Headers],[Sep]],RealMarketing[#Headers],0))","v":{"v":2000,"d":"2,000.00 €"}},{"$f":"INDEX(PlanMarketing[],MATCH(INDEX(DesviacionesMarketing[],ROW()-ROW(DesviacionesMarketing[[#Headers],[Oct]]),1),INDEX(PlanMarketing[],,1),0),MATCH(DesviacionesMarketing[[#Headers],[Oct]],PlanMarketing[#Headers],0))-INDEX(RealMarketing[],MATCH(INDEX(DesviacionesMarketing[],ROW()-ROW(DesviacionesMarketing[[#Headers],[Oct]]),1),INDEX(PlanMarketing[],,1),0),MATCH(DesviacionesMarketing[[#Headers],[Oct]],RealMarketing[#Headers],0))","v":{"v":2000,"d":"2,000.00 €"}},{"$f":"INDEX(PlanMarketing[],MATCH(INDEX(DesviacionesMarketing[],ROW()-ROW(DesviacionesMarketing[[#Headers],[Nov]]),1),INDEX(PlanMarketing[],,1),0),MATCH(DesviacionesMarketing[[#Headers],[Nov]],PlanMarketing[#Headers],0))-INDEX(RealMarketing[],MATCH(INDEX(DesviacionesMarketing[],ROW()-ROW(DesviacionesMarketing[[#Headers],[Nov]]),1),INDEX(PlanMarketing[],,1),0),MATCH(DesviacionesMarketing[[#Headers],[Nov]],RealMarketing[#Headers],0))","v":{"v":2000,"d":"2,000.00 €"}},{"$f":"INDEX(PlanMarketing[],MATCH(INDEX(DesviacionesMarketing[],ROW()-ROW(DesviacionesMarketing[[#Headers],[Dic]]),1),INDEX(PlanMarketing[],,1),0),MATCH(DesviacionesMarketing[[#Headers],[Dic]],PlanMarketing[#Headers],0))-INDEX(RealMarketing[],MATCH(INDEX(DesviacionesMarketing[],ROW()-ROW(DesviacionesMarketing[[#Headers],[Dic]]),1),INDEX(PlanMarketing[],,1),0),MATCH(DesviacionesMarketing[[#Headers],[Dic]],RealMarketing[#Headers],0))","v":{"v":5000,"d":"5,000.00 €"}},{"$f":"SUM(DesviacionesMarketing[[#This Row],[Ene]:[Dic]])","v":{"v":18300,"d":"18,300.00 €"}}]
[null,"Gastos varios",{"$f":"INDEX(PlanMarketing[],MATCH(INDEX(DesviacionesMarketing[],ROW()-ROW(DesviacionesMarketing[[#Headers],[Ene]]),1),INDEX(PlanMarketing[],,1),0),MATCH(DesviacionesMarketing[[#Headers],[Ene]],PlanMarketing[#Headers],0))-INDEX(RealMarketing[],MATCH(INDEX(DesviacionesMarketing[],ROW()-ROW(DesviacionesMarketing[[#Headers],[Ene]]),1),INDEX(PlanMarketing[],,1),0),MATCH(DesviacionesMarketing[[#Headers],[Ene]],RealMarketing[#Headers],0))","v":{"v":55,"d":"55.00 €"}},{"$f":"INDEX(PlanMarketing[],MATCH(INDEX(DesviacionesMarketing[],ROW()-ROW(DesviacionesMarketing[[#Headers],[Feb]]),1),INDEX(PlanMarketing[],,1),0),MATCH(DesviacionesMarketing[[#Headers],[Feb]],PlanMarketing[#Headers],0))-INDEX(RealMarketing[],MATCH(INDEX(DesviacionesMarketing[],ROW()-ROW(DesviacionesMarketing[[#Headers],[Feb]]),1),INDEX(PlanMarketing[],,1),0),MATCH(DesviacionesMarketing[[#Headers],[Feb]],RealMarketing[#Headers],0))","v":{"v":44,"d":"44.00 €"}},{"$f":"INDEX(PlanMarketing[],MATCH(INDEX(DesviacionesMarketing[],ROW()-ROW(DesviacionesMarketing[[#Headers],[Mar]]),1),INDEX(PlanMarketing[],,1),0),MATCH(DesviacionesMarketing[[#Headers],[Mar]],PlanMarketing[#Headers],0))-INDEX(RealMarketing[],MATCH(INDEX(DesviacionesMarketing[],ROW()-ROW(DesviacionesMarketing[[#Headers],[Mar]]),1),INDEX(PlanMarketing[],,1),0),MATCH(DesviacionesMarketing[[#Headers],[Mar]],RealMarketing[#Headers],0))","v":{"v":77,"d":"77.00 €"}},{"$f":"INDEX(PlanMarketing[],MATCH(INDEX(DesviacionesMarketing[],ROW()-ROW(DesviacionesMarketing[[#Headers],[Abr]]),1),INDEX(PlanMarketing[],,1),0),MATCH(DesviacionesMarketing[[#Headers],[Abr]],PlanMarketing[#Headers],0))-INDEX(RealMarketing[],MATCH(INDEX(DesviacionesMarketing[],ROW()-ROW(DesviacionesMarketing[[#Headers],[Abr]]),1),INDEX(PlanMarketing[],,1),0),MATCH(DesviacionesMarketing[[#Headers],[Abr]],RealMarketing[#Headers],0))","v":{"v":-23,"d":"-23.00 €"}},{"$f":"INDEX(PlanMarketing[],MATCH(INDEX(DesviacionesMarketing[],ROW()-ROW(DesviacionesMarketing[[#Headers],[Mayo]]),1),INDEX(PlanMarketing[],,1),0),MATCH(DesviacionesMarketing[[#Headers],[Mayo]],PlanMarketing[#Headers],0))-INDEX(RealMarketing[],MATCH(INDEX(DesviacionesMarketing[],ROW()-ROW(DesviacionesMarketing[[#Headers],[Mayo]]),1),INDEX(PlanMarketing[],,1),0),MATCH(DesviacionesMarketing[[#Headers],[Mayo]],RealMarketing[#Headers],0))","v":{"v":13,"d":"13.00 €"}},{"$f":"INDEX(PlanMarketing[],MATCH(INDEX(DesviacionesMarketing[],ROW()-ROW(DesviacionesMarketing[[#Headers],[Jun]]),1),INDEX(PlanMarketing[],,1),0),MATCH(DesviacionesMarketing[[#Headers],[Jun]],PlanMarketing[#Headers],0))-INDEX(RealMarketing[],MATCH(INDEX(DesviacionesMarketing[],ROW()-ROW(DesviacionesMarketing[[#Headers],[Jun]]),1),INDEX(PlanMarketing[],,1),0),MATCH(DesviacionesMarketing[[#Headers],[Jun]],RealMarketing[#Headers],0))","v":{"v":-45,"d":"-45.00 €"}},{"$f":"INDEX(PlanMarketing[],MATCH(INDEX(DesviacionesMarketing[],ROW()-ROW(DesviacionesMarketing[[#Headers],[Jul]]),1),INDEX(PlanMarketing[],,1),0),MATCH(DesviacionesMarketing[[#Headers],[Jul]],PlanMarketing[#Headers],0))-INDEX(RealMarketing[],MATCH(INDEX(DesviacionesMarketing[],ROW()-ROW(DesviacionesMarketing[[#Headers],[Jul]]),1),INDEX(PlanMarketing[],,1),0),MATCH(DesviacionesMarketing[[#Headers],[Jul]],RealMarketing[#Headers],0))","v":{"v":200,"d":"200.00 €"}},{"$f":"INDEX(PlanMarketing[],MATCH(INDEX(DesviacionesMarketing[],ROW()-ROW(DesviacionesMarketing[[#Headers],[Ago]]),1),INDEX(PlanMarketing[],,1),0),MATCH(DesviacionesMarketing[[#Headers],[Ago]],PlanMarketing[#Headers],0))-INDEX(RealMarketing[],MATCH(INDEX(DesviacionesMarketing[],ROW()-ROW(DesviacionesMarketing[[#Headers],[Ago]]),1),INDEX(PlanMarketing[],,1),0),MATCH(DesviacionesMarketing[[#Headers],[Ago]],RealMarketing[#Headers],0))","v":{"v":200,"d":"200.00 €"}},{"$f":"INDEX(PlanMarketing[],MATCH(INDEX(DesviacionesMarketing[],ROW()-ROW(DesviacionesMarketing[[#Headers],[Sep]]),1),INDEX(PlanMarketing[],,1),0),MATCH(DesviacionesMarketing[[#Headers],[Sep]],PlanMarketing[#Headers],0))-INDEX(RealMarketing[],MATCH(INDEX(DesviacionesMarketing[],ROW()-ROW(DesviacionesMarketing[[#Headers],[Sep]]),1),INDEX(PlanMarketing[],,1),0),MATCH(DesviacionesMarketing[[#Headers],[Sep]],RealMarketing[#Headers],0))","v":{"v":200,"d":"200.00 €"}},{"$f":"INDEX(PlanMarketing[],MATCH(INDEX(DesviacionesMarketing[],ROW()-ROW(DesviacionesMarketing[[#Headers],[Oct]]),1),INDEX(PlanMarketing[],,1),0),MATCH(DesviacionesMarketing[[#Headers],[Oct]],PlanMarketing[#Headers],0))-INDEX(RealMarketing[],MATCH(INDEX(DesviacionesMarketing[],ROW()-ROW(DesviacionesMarketing[[#Headers],[Oct]]),1),INDEX(PlanMarketing[],,1),0),MATCH(DesviacionesMarketing[[#Headers],[Oct]],RealMarketing[#Headers],0))","v":{"v":200,"d":"200.00 €"}},{"$f":"INDEX(PlanMarketing[],MATCH(INDEX(DesviacionesMarketing[],ROW()-ROW(DesviacionesMarketing[[#Headers],[Nov]]),1),INDEX(PlanMarketing[],,1),0),MATCH(DesviacionesMarketing[[#Headers],[Nov]],PlanMarketing[#Headers],0))-INDEX(RealMarketing[],MATCH(INDEX(DesviacionesMarketing[],ROW()-ROW(DesviacionesMarketing[[#Headers],[Nov]]),1),INDEX(PlanMarketing[],,1),0),MATCH(DesviacionesMarketing[[#Headers],[Nov]],RealMarketing[#Headers],0))","v":{"v":200,"d":"200.00 €"}},{"$f":"INDEX(PlanMarketing[],MATCH(INDEX(DesviacionesMarketing[],ROW()-ROW(DesviacionesMarketing[[#Headers],[Dic]]),1),INDEX(PlanMarketing[],,1),0),MATCH(DesviacionesMarketing[[#Headers],[Dic]],PlanMarketing[#Headers],0))-INDEX(RealMarketing[],MATCH(INDEX(DesviacionesMarketing[],ROW()-ROW(DesviacionesMarketing[[#Headers],[Dic]]),1),INDEX(PlanMarketing[],,1),0),MATCH(DesviacionesMarketing[[#Headers],[Dic]],RealMarketing[#Headers],0))","v":{"v":200,"d":"200.00 €"}},{"$f":"SUM(DesviacionesMarketing[[#This Row],[Ene]:[Dic]])","v":{"v":1321,"d":"1,321.00 €"}}]
[null,"Subtotal",{"$f":"SUBTOTAL(109,DesviacionesMarketing[Ene])","v":{"v":555,"d":"555.00 €"}},{"$f":"SUBTOTAL(109,DesviacionesMarketing[Feb])","v":{"v":-456,"d":"-456.00 €"}},{"$f":"SUBTOTAL(109,DesviacionesMarketing[Mar])","v":{"v":-23,"d":"-23.00 €"}},{"$f":"SUBTOTAL(109,DesviacionesMarketing[Abr])","v":{"v":-123,"d":"-123.00 €"}},{"$f":"SUBTOTAL(109,DesviacionesMarketing[Mayo])","v":{"v":113,"d":"113.00 €"}},{"$f":"SUBTOTAL(109,DesviacionesMarketing[Jun])","v":{"v":-825,"d":"-825.00 €"}},{"$f":"SUBTOTAL(109,DesviacionesMarketing[Jul])","v":{"v":8100,"d":"8,100.00 €"}},{"$f":"SUBTOTAL(109,DesviacionesMarketing[Ago])","v":{"v":6100,"d":"6,100.00 €"}},{"$f":"SUBTOTAL(109,DesviacionesMarketing[Sep])","v":{"v":3100,"d":"3,100.00 €"}},{"$f":"SUBTOTAL(109,DesviacionesMarketing[Oct])","v":{"v":8100,"d":"8,100.00 €"}},{"$f":"SUBTOTAL(109,DesviacionesMarketing[Nov])","v":{"v":3100,"d":"3,100.00 €"}},{"$f":"SUBTOTAL(109,DesviacionesMarketing[Dic])","v":{"v":6900,"d":"6,900.00 €"}},{"$f":"SUBTOTAL(109,DesviacionesMarketing[AÑO])","v":{"v":34641,"d":"34,641.00 €"}}]
[]
[null,"FORMACIÓN/VIAJES","Ene","Feb","Mar","Abr","Mayo","Jun","Jul","Ago","Sep","Oct","Nov","Dic","AÑO"]
[null,"Cursos de aprendizaje",{"$f":"INDEX(PlanFormacionYViajes[],MATCH(INDEX(DesviacionesFormacionYViajes[],ROW()-ROW(DesviacionesFormacionYViajes[[#Headers],[Ene]]),1),INDEX(PlanFormacionYViajes[],,1),0),MATCH(DesviacionesFormacionYViajes[[#Headers],[Ene]],PlanFormacionYViajes[#Headers],0))-INDEX(RealFormacionYViajes[],MATCH(INDEX(DesviacionesFormacionYViajes[],ROW()-ROW(DesviacionesFormacionYViajes[[#Headers],[Ene]]),1),INDEX(PlanFormacionYViajes[],,1),0),MATCH(DesviacionesFormacionYViajes[[#Headers],[Ene]],RealFormacionYViajes[#Headers],0))","v":{"v":400,"d":"400.00 €"}},{"$f":"INDEX(PlanFormacionYViajes[],MATCH(INDEX(DesviacionesFormacionYViajes[],ROW()-ROW(DesviacionesFormacionYViajes[[#Headers],[Feb]]),1),INDEX(PlanFormacionYViajes[],,1),0),MATCH(DesviacionesFormacionYViajes[[#Headers],[Feb]],PlanFormacionYViajes[#Headers],0))-INDEX(RealFormacionYViajes[],MATCH(INDEX(DesviacionesFormacionYViajes[],ROW()-ROW(DesviacionesFormacionYViajes[[#Headers],[Feb]]),1),INDEX(PlanFormacionYViajes[],,1),0),MATCH(DesviacionesFormacionYViajes[[#Headers],[Feb]],RealFormacionYViajes[#Headers],0))","v":{"v":-400,"d":"-400.00 €"}},{"$f":"INDEX(PlanFormacionYViajes[],MATCH(INDEX(DesviacionesFormacionYViajes[],ROW()-ROW(DesviacionesFormacionYViajes[[#Headers],[Mar]]),1),INDEX(PlanFormacionYViajes[],,1),0),MATCH(DesviacionesFormacionYViajes[[#Headers],[Mar]],PlanFormacionYViajes[#Headers],0))-INDEX(RealFormacionYViajes[],MATCH(INDEX(DesviacionesFormacionYViajes[],ROW()-ROW(DesviacionesFormacionYViajes[[#Headers],[Mar]]),1),INDEX(PlanFormacionYViajes[],,1),0),MATCH(DesviacionesFormacionYViajes[[#Headers],[Mar]],RealFormacionYViajes[#Headers],0))","v":{"v":600,"d":"600.00 €"}},{"$f":"INDEX(PlanFormacionYViajes[],MATCH(INDEX(DesviacionesFormacionYViajes[],ROW()-ROW(DesviacionesFormacionYViajes[[#Headers],[Abr]]),1),INDEX(PlanFormacionYViajes[],,1),0),MATCH(DesviacionesFormacionYViajes[[#Headers],[Abr]],PlanFormacionYViajes[#Headers],0))-INDEX(RealFormacionYViajes[],MATCH(INDEX(DesviacionesFormacionYViajes[],ROW()-ROW(DesviacionesFormacionYViajes[[#Headers],[Abr]]),1),INDEX(PlanFormacionYViajes[],,1),0),MATCH(DesviacionesFormacionYViajes[[#Headers],[Abr]],RealFormacionYViajes[#Headers],0))","v":{"v":400,"d":"400.00 €"}},{"$f":"INDEX(PlanFormacionYViajes[],MATCH(INDEX(DesviacionesFormacionYViajes[],ROW()-ROW(DesviacionesFormacionYViajes[[#Headers],[Mayo]]),1),INDEX(PlanFormacionYViajes[],,1),0),MATCH(DesviacionesFormacionYViajes[[#Headers],[Mayo]],PlanFormacionYViajes[#Headers],0))-INDEX(RealFormacionYViajes[],MATCH(INDEX(DesviacionesFormacionYViajes[],ROW()-ROW(DesviacionesFormacionYViajes[[#Headers],[Mayo]]),1),INDEX(PlanFormacionYViajes[],,1),0),MATCH(DesviacionesFormacionYViajes[[#Headers],[Mayo]],RealFormacionYViajes[#Headers],0))","v":{"v":800,"d":"800.00 €"}},{"$f":"INDEX(PlanFormacionYViajes[],MATCH(INDEX(DesviacionesFormacionYViajes[],ROW()-ROW(DesviacionesFormacionYViajes[[#Headers],[Jun]]),1),INDEX(PlanFormacionYViajes[],,1),0),MATCH(DesviacionesFormacionYViajes[[#Headers],[Jun]],PlanFormacionYViajes[#Headers],0))-INDEX(RealFormacionYViajes[],MATCH(INDEX(DesviacionesFormacionYViajes[],ROW()-ROW(DesviacionesFormacionYViajes[[#Headers],[Jun]]),1),INDEX(PlanFormacionYViajes[],,1),0),MATCH(DesviacionesFormacionYViajes[[#Headers],[Jun]],RealFormacionYViajes[#Headers],0))","v":{"v":-800,"d":"-800.00 €"}},{"$f":"INDEX(PlanFormacionYViajes[],MATCH(INDEX(DesviacionesFormacionYViajes[],ROW()-ROW(DesviacionesFormacionYViajes[[#Headers],[Jul]]),1),INDEX(PlanFormacionYViajes[],,1),0),MATCH(DesviacionesFormacionYViajes[[#Headers],[Jul]],PlanFormacionYViajes[#Headers],0))-INDEX(RealFormacionYViajes[],MATCH(INDEX(DesviacionesFormacionYViajes[],ROW()-ROW(DesviacionesFormacionYViajes[[#Headers],[Jul]]),1),INDEX(PlanFormacionYViajes[],,1),0),MATCH(DesviacionesFormacionYViajes[[#Headers],[Jul]],RealFormacionYViajes[#Headers],0))","v":{"v":2000,"d":"2,000.00 €"}},{"$f":"INDEX(PlanFormacionYViajes[],MATCH(INDEX(DesviacionesFormacionYViajes[],ROW()-ROW(DesviacionesFormacionYViajes[[#Headers],[Ago]]),1),INDEX(PlanFormacionYViajes[],,1),0),MATCH(DesviacionesFormacionYViajes[[#Headers],[Ago]],PlanFormacionYViajes[#Headers],0))-INDEX(RealFormacionYViajes[],MATCH(INDEX(DesviacionesFormacionYViajes[],ROW()-ROW(DesviacionesFormacionYViajes[[#Headers],[Ago]]),1),INDEX(PlanFormacionYViajes[],,1),0),MATCH(DesviacionesFormacionYViajes[[#Headers],[Ago]],RealFormacionYViajes[#Headers],0))","v":{"v":2000,"d":"2,000.00 €"}},{"$f":"INDEX(PlanFormacionYViajes[],MATCH(INDEX(DesviacionesFormacionYViajes[],ROW()-ROW(DesviacionesFormacionYViajes[[#Headers],[Sep]]),1),INDEX(PlanFormacionYViajes[],,1),0),MATCH(DesviacionesFormacionYViajes[[#Headers],[Sep]],PlanFormacionYViajes[#Headers],0))-INDEX(RealFormacionYViajes[],MATCH(INDEX(DesviacionesFormacionYViajes[],ROW()-ROW(DesviacionesFormacionYViajes[[#Headers],[Sep]]),1),INDEX(PlanFormacionYViajes[],,1),0),MATCH(DesviacionesFormacionYViajes[[#Headers],[Sep]],RealFormacionYViajes[#Headers],0))","v":{"v":2000,"d":"2,000.00 €"}},{"$f":"INDEX(PlanFormacionYViajes[],MATCH(INDEX(DesviacionesFormacionYViajes[],ROW()-ROW(DesviacionesFormacionYViajes[[#Headers],[Oct]]),1),INDEX(PlanFormacionYViajes[],,1),0),MATCH(DesviacionesFormacionYViajes[[#Headers],[Oct]],PlanFormacionYViajes[#Headers],0))-INDEX(RealFormacionYViajes[],MATCH(INDEX(DesviacionesFormacionYViajes[],ROW()-ROW(DesviacionesFormacionYViajes[[#Headers],[Oct]]),1),INDEX(PlanFormacionYViajes[],,1),0),MATCH(DesviacionesFormacionYViajes[[#Headers],[Oct]],RealFormacionYViajes[#Headers],0))","v":{"v":2000,"d":"2,000.00 €"}},{"$f":"INDEX(PlanFormacionYViajes[],MATCH(INDEX(DesviacionesFormacionYViajes[],ROW()-ROW(DesviacionesFormacionYViajes[[#Headers],[Nov]]),1),INDEX(PlanFormacionYViajes[],,1),0),MATCH(DesviacionesFormacionYViajes[[#Headers],[Nov]],PlanFormacionYViajes[#Headers],0))-INDEX(RealFormacionYViajes[],MATCH(INDEX(DesviacionesFormacionYViajes[],ROW()-ROW(DesviacionesFormacionYViajes[[#Headers],[Nov]]),1),INDEX(PlanFormacionYViajes[],,1),0),MATCH(DesviacionesFormacionYViajes[[#Headers],[Nov]],RealFormacionYViajes[#Headers],0))","v":{"v":2000,"d":"2,000.00 €"}},{"$f":"INDEX(PlanFormacionYViajes[],MATCH(INDEX(DesviacionesFormacionYViajes[],ROW()-ROW(DesviacionesFormacionYViajes[[#Headers],[Dic]]),1),INDEX(PlanFormacionYViajes[],,1),0),MATCH(DesviacionesFormacionYViajes[[#Headers],[Dic]],PlanFormacionYViajes[#Headers],0))-INDEX(RealFormacionYViajes[],MATCH(INDEX(DesviacionesFormacionYViajes[],ROW()-ROW(DesviacionesFormacionYViajes[[#Headers],[Dic]]),1),INDEX(PlanFormacionYViajes[],,1),0),MATCH(DesviacionesFormacionYViajes[[#Headers],[Dic]],RealFormacionYViajes[#Headers],0))","v":{"v":2000,"d":"2,000.00 €"}},{"$f":"SUM(DesviacionesFormacionYViajes[[#This Row],[Ene]:[Dic]])","v":{"v":13000,"d":"13,000.00 €"}}]
[null,"Costos de viajes de aprendizaje",{"$f":"INDEX(PlanFormacionYViajes[],MATCH(INDEX(DesviacionesFormacionYViajes[],ROW()-ROW(DesviacionesFormacionYViajes[[#Headers],[Ene]]),1),INDEX(PlanFormacionYViajes[],,1),0),MATCH(DesviacionesFormacionYViajes[[#Headers],[Ene]],PlanFormacionYViajes[#Headers],0))-INDEX(RealFormacionYViajes[],MATCH(INDEX(DesviacionesFormacionYViajes[],ROW()-ROW(DesviacionesFormacionYViajes[[#Headers],[Ene]]),1),INDEX(PlanFormacionYViajes[],,1),0),MATCH(DesviacionesFormacionYViajes[[#Headers],[Ene]],RealFormacionYViajes[#Headers],0))","v":{"v":800,"d":"800.00 €"}},{"$f":"INDEX(PlanFormacionYViajes[],MATCH(INDEX(DesviacionesFormacionYViajes[],ROW()-ROW(DesviacionesFormacionYViajes[[#Headers],[Feb]]),1),INDEX(PlanFormacionYViajes[],,1),0),MATCH(DesviacionesFormacionYViajes[[#Headers],[Feb]],PlanFormacionYViajes[#Headers],0))-INDEX(RealFormacionYViajes[],MATCH(INDEX(DesviacionesFormacionYViajes[],ROW()-ROW(DesviacionesFormacionYViajes[[#Headers],[Feb]]),1),INDEX(PlanFormacionYViajes[],,1),0),MATCH(DesviacionesFormacionYViajes[[#Headers],[Feb]],RealFormacionYViajes[#Headers],0))","v":{"v":-200,"d":"-200.00 €"}},{"$f":"INDEX(PlanFormacionYViajes[],MATCH(INDEX(DesviacionesFormacionYViajes[],ROW()-ROW(DesviacionesFormacionYViajes[[#Headers],[Mar]]),1),INDEX(PlanFormacionYViajes[],,1),0),MATCH(DesviacionesFormacionYViajes[[#Headers],[Mar]],PlanFormacionYViajes[#Headers],0))-INDEX(RealFormacionYViajes[],MATCH(INDEX(DesviacionesFormacionYViajes[],ROW()-ROW(DesviacionesFormacionYViajes[[#Headers],[Mar]]),1),INDEX(PlanFormacionYViajes[],,1),0),MATCH(DesviacionesFormacionYViajes[[#Headers],[Mar]],RealFormacionYViajes[#Headers],0))","v":{"v":600,"d":"600.00 €"}},{"$f":"INDEX(PlanFormacionYViajes[],MATCH(INDEX(DesviacionesFormacionYViajes[],ROW()-ROW(DesviacionesFormacionYViajes[[#Headers],[Abr]]),1),INDEX(PlanFormacionYViajes[],,1),0),MATCH(DesviacionesFormacionYViajes[[#Headers],[Abr]],PlanFormacionYViajes[#Headers],0))-INDEX(RealFormacionYViajes[],MATCH(INDEX(DesviacionesFormacionYViajes[],ROW()-ROW(DesviacionesFormacionYViajes[[#Headers],[Abr]]),1),INDEX(PlanFormacionYViajes[],,1),0),MATCH(DesviacionesFormacionYViajes[[#Headers],[Abr]],RealFormacionYViajes[#Headers],0))","v":{"v":800,"d":"800.00 €"}},{"$f":"INDEX(PlanFormacionYViajes[],MATCH(INDEX(DesviacionesFormacionYViajes[],ROW()-ROW(DesviacionesFormacionYViajes[[#Headers],[Mayo]]),1),INDEX(PlanFormacionYViajes[],,1),0),MATCH(DesviacionesFormacionYViajes[[#Headers],[Mayo]],PlanFormacionYViajes[#Headers],0))-INDEX(RealFormacionYViajes[],MATCH(INDEX(DesviacionesFormacionYViajes[],ROW()-ROW(DesviacionesFormacionYViajes[[#Headers],[Mayo]]),1),INDEX(PlanFormacionYViajes[],,1),0),MATCH(DesviacionesFormacionYViajes[[#Headers],[Mayo]],RealFormacionYViajes[#Headers],0))","v":{"v":1200,"d":"1,200.00 €"}},{"$f":"INDEX(PlanFormacionYViajes[],MATCH(INDEX(DesviacionesFormacionYViajes[],ROW()-ROW(DesviacionesFormacionYViajes[[#Headers],[Jun]]),1),INDEX(PlanFormacionYViajes[],,1),0),MATCH(DesviacionesFormacionYViajes[[#Headers],[Jun]],PlanFormacionYViajes[#Headers],0))-INDEX(RealFormacionYViajes[],MATCH(INDEX(DesviacionesFormacionYViajes[],ROW()-ROW(DesviacionesFormacionYViajes[[#Headers],[Jun]]),1),INDEX(PlanFormacionYViajes[],,1),0),MATCH(DesviacionesFormacionYViajes[[#Headers],[Jun]],RealFormacionYViajes[#Headers],0))","v":{"v":-1500,"d":"-1,500.00 €"}},{"$f":"INDEX(PlanFormacionYViajes[],MATCH(INDEX(DesviacionesFormacionYViajes[],ROW()-ROW(DesviacionesFormacionYViajes[[#Headers],[Jul]]),1),INDEX(PlanFormacionYViajes[],,1),0),MATCH(DesviacionesFormacionYViajes[[#Headers],[Jul]],PlanFormacionYViajes[#Headers],0))-INDEX(RealFormacionYViajes[],MATCH(INDEX(DesviacionesFormacionYViajes[],ROW()-ROW(DesviacionesFormacionYViajes[[#Headers],[Jul]]),1),INDEX(PlanFormacionYViajes[],,1),0),MATCH(DesviacionesFormacionYViajes[[#Headers],[Jul]],RealFormacionYViajes[#Headers],0))","v":{"v":2000,"d":"2,000.00 €"}},{"$f":"INDEX(PlanFormacionYViajes[],MATCH(INDEX(DesviacionesFormacionYViajes[],ROW()-ROW(DesviacionesFormacionYViajes[[#Headers],[Ago]]),1),INDEX(PlanFormacionYViajes[],,1),0),MATCH(DesviacionesFormacionYViajes[[#Headers],[Ago]],PlanFormacionYViajes[#Headers],0))-INDEX(RealFormacionYViajes[],MATCH(INDEX(DesviacionesFormacionYViajes[],ROW()-ROW(DesviacionesFormacionYViajes[[#Headers],[Ago]]),1),INDEX(PlanFormacionYViajes[],,1),0),MATCH(DesviacionesFormacionYViajes[[#Headers],[Ago]],RealFormacionYViajes[#Headers],0))","v":{"v":2000,"d":"2,000.00 €"}},{"$f":"INDEX(PlanFormacionYViajes[],MATCH(INDEX(DesviacionesFormacionYViajes[],ROW()-ROW(DesviacionesFormacionYViajes[[#Headers],[Sep]]),1),INDEX(PlanFormacionYViajes[],,1),0),MATCH(DesviacionesFormacionYViajes[[#Headers],[Sep]],PlanFormacionYViajes[#Headers],0))-INDEX(RealFormacionYViajes[],MATCH(INDEX(DesviacionesFormacionYViajes[],ROW()-ROW(DesviacionesFormacionYViajes[[#Headers],[Sep]]),1),INDEX(PlanFormacionYViajes[],,1),0),MATCH(DesviacionesFormacionYViajes[[#Headers],[Sep]],RealFormacionYViajes[#Headers],0))","v":{"v":2000,"d":"2,000.00 €"}},{"$f":"INDEX(PlanFormacionYViajes[],MATCH(INDEX(DesviacionesFormacionYViajes[],ROW()-ROW(DesviacionesFormacionYViajes[[#Headers],[Oct]]),1),INDEX(PlanFormacionYViajes[],,1),0),MATCH(DesviacionesFormacionYViajes[[#Headers],[Oct]],PlanFormacionYViajes[#Headers],0))-INDEX(RealFormacionYViajes[],MATCH(INDEX(DesviacionesFormacionYViajes[],ROW()-ROW(DesviacionesFormacionYViajes[[#Headers],[Oct]]),1),INDEX(PlanFormacionYViajes[],,1),0),MATCH(DesviacionesFormacionYViajes[[#Headers],[Oct]],RealFormacionYViajes[#Headers],0))","v":{"v":2000,"d":"2,000.00 €"}},{"$f":"INDEX(PlanFormacionYViajes[],MATCH(INDEX(DesviacionesFormacionYViajes[],ROW()-ROW(DesviacionesFormacionYViajes[[#Headers],[Nov]]),1),INDEX(PlanFormacionYViajes[],,1),0),MATCH(DesviacionesFormacionYViajes[[#Headers],[Nov]],PlanFormacionYViajes[#Headers],0))-INDEX(RealFormacionYViajes[],MATCH(INDEX(DesviacionesFormacionYViajes[],ROW()-ROW(DesviacionesFormacionYViajes[[#Headers],[Nov]]),1),INDEX(PlanFormacionYViajes[],,1),0),MATCH(DesviacionesFormacionYViajes[[#Headers],[Nov]],RealFormacionYViajes[#Headers],0))","v":{"v":2000,"d":"2,000.00 €"}},{"$f":"INDEX(PlanFormacionYViajes[],MATCH(INDEX(DesviacionesFormacionYViajes[],ROW()-ROW(DesviacionesFormacionYViajes[[#Headers],[Dic]]),1),INDEX(PlanFormacionYViajes[],,1),0),MATCH(DesviacionesFormacionYViajes[[#Headers],[Dic]],PlanFormacionYViajes[#Headers],0))-INDEX(RealFormacionYViajes[],MATCH(INDEX(DesviacionesFormacionYViajes[],ROW()-ROW(DesviacionesFormacionYViajes[[#Headers],[Dic]]),1),INDEX(PlanFormacionYViajes[],,1),0),MATCH(DesviacionesFormacionYViajes[[#Headers],[Dic]],RealFormacionYViajes[#Headers],0))","v":{"v":2000,"d":"2,000.00 €"}},{"$f":"SUM(DesviacionesFormacionYViajes[[#This Row],[Ene]:[Dic]])","v":{"v":13700,"d":"13,700.00 €"}}]
[null,"Subtotal",{"$f":"SUBTOTAL(109,DesviacionesFormacionYViajes[Ene])","v":{"v":1200,"d":"1,200.00 €"}},{"$f":"SUBTOTAL(109,DesviacionesFormacionYViajes[Feb])","v":{"v":-600,"d":"-600.00 €"}},{"$f":"SUBTOTAL(109,DesviacionesFormacionYViajes[Mar])","v":{"v":1200,"d":"1,200.00 €"}},{"$f":"SUBTOTAL(109,DesviacionesFormacionYViajes[Abr])","v":{"v":1200,"d":"1,200.00 €"}},{"$f":"SUBTOTAL(109,DesviacionesFormacionYViajes[Mayo])","v":{"v":2000,"d":"2,000.00 €"}},{"$f":"SUBTOTAL(109,DesviacionesFormacionYViajes[Jun])","v":{"v":-2300,"d":"-2,300.00 €"}},{"$f":"SUBTOTAL(109,DesviacionesFormacionYViajes[Jul])","v":{"v":4000,"d":"4,000.00 €"}},{"$f":"SUBTOTAL(109,DesviacionesFormacionYViajes[Ago])","v":{"v":4000,"d":"4,000.00 €"}},{"$f":"SUBTOTAL(109,DesviacionesFormacionYViajes[Sep])","v":{"v":4000,"d":"4,000.00 €"}},{"$f":"SUBTOTAL(109,DesviacionesFormacionYViajes[Oct])","v":{"v":4000,"d":"4,000.00 €"}},{"$f":"SUBTOTAL(109,DesviacionesFormacionYViajes[Nov])","v":{"v":4000,"d":"4,000.00 €"}},{"$f":"SUBTOTAL(109,DesviacionesFormacionYViajes[Dic])","v":{"v":4000,"d":"4,000.00 €"}},{"$f":"SUBTOTAL(109,DesviacionesFormacionYViajes[AÑO])","v":{"v":26700,"d":"26,700.00 €"}}]
[]
[null,"TOTALES","Ene","Feb","Mar","Abr","May","Jun","Jul","Ago","Sep","Oct","Nov","Dic","Año"]
[null,"Desviaciones de gastos mensuales",{"$f":"DesviacionesFormacionYViajes[[#Totals],[Ene]]+DesviacionesMarketing[[#Totals],[Ene]]+DesviacionesOficina[[#Totals],[Ene]]+DesviacionesEmpleados[[#Totals],[Ene]]","v":{"v":1738,"d":"1,738.00 €"}},{"$f":"DesviacionesFormacionYViajes[[#Totals],[Feb]]+DesviacionesMarketing[[#Totals],[Feb]]+DesviacionesOficina[[#Totals],[Feb]]+DesviacionesEmpleados[[#Totals],[Feb]]","v":{"v":-984,"d":"-984.00 €"}},{"$f":"DesviacionesFormacionYViajes[[#Totals],[Mar]]+DesviacionesMarketing[[#Totals],[Mar]]+DesviacionesOficina[[#Totals],[Mar]]+DesviacionesEmpleados[[#Totals],[Mar]]","v":{"v":1255,"d":"1,255.00 €"}},{"$f":"DesviacionesFormacionYViajes[[#Totals],[Abr]]+DesviacionesMarketing[[#Totals],[Abr]]+DesviacionesOficina[[#Totals],[Abr]]+DesviacionesEmpleados[[#Totals],[Abr]]","v":{"v":301,"d":"301.00 €"}},{"$f":"DesviacionesFormacionYViajes[[#Totals],[Mayo]]+DesviacionesMarketing[[#Totals],[Mayo]]+DesviacionesOficina[[#Totals],[Mayo]]+DesviacionesEmpleados[[#Totals],[Mayo]]","v":{"v":1440,"d":"1,440.00 €"}},{"$f":"DesviacionesFormacionYViajes[[#Totals],[Jun]]+DesviacionesMarketing[[#Totals],[Jun]]+DesviacionesOficina[[#Totals],[Jun]]+DesviacionesEmpleados[[#Totals],[Jun]]","v":{"v":-3744,"d":"-3,744.00 €"}},{"$f":"DesviacionesFormacionYViajes[[#Totals],[Jul]]+DesviacionesMarketing[[#Totals],[Jul]]+DesviacionesOficina[[#Totals],[Jul]]+DesviacionesEmpleados[[#Totals],[Jul]]","v":{"v":134695,"d":"134,695.00 €"}},{"$f":"DesviacionesFormacionYViajes[[#Totals],[Ago]]+DesviacionesMarketing[[#Totals],[Ago]]+DesviacionesOficina[[#Totals],[Ago]]+DesviacionesEmpleados[[#Totals],[Ago]]","v":{"v":138918,"d":"138,918.00 €"}},{"$f":"DesviacionesFormacionYViajes[[#Totals],[Sep]]+DesviacionesMarketing[[#Totals],[Sep]]+DesviacionesOficina[[#Totals],[Sep]]+DesviacionesEmpleados[[#Totals],[Sep]]","v":{"v":135918,"d":"135,918.00 €"}},{"$f":"DesviacionesFormacionYViajes[[#Totals],[Oct]]+DesviacionesMarketing[[#Totals],[Oct]]+DesviacionesOficina[[#Totals],[Oct]]+DesviacionesEmpleados[[#Totals],[Oct]]","v":{"v":140918,"d":"140,918.00 €"}},{"$f":"DesviacionesFormacionYViajes[[#Totals],[Nov]]+DesviacionesMarketing[[#Totals],[Nov]]+DesviacionesOficina[[#Totals],[Nov]]+DesviacionesEmpleados[[#Totals],[Nov]]","v":{"v":136218,"d":"136,218.00 €"}},{"$f":"DesviacionesFormacionYViajes[[#Totals],[Dic]]+DesviacionesMarketing[[#Totals],[Dic]]+DesviacionesOficina[[#Totals],[Dic]]+DesviacionesEmpleados[[#Totals],[Dic]]","v":{"v":140018,"d":"140,018.00 €"}},{"$f":"DesviacionesFormacionYViajes[[#Totals],[AÑO]]+DesviacionesMarketing[[#Totals],[AÑO]]+DesviacionesOficina[[#Totals],[AÑO]]+DesviacionesEmpleados[[#Totals],[AÑO]]","v":{"v":826691,"d":"826,691.00 €"}}]
[null,"Desviaciones de gastos TOTALES",{"$f":"SUM($C$36:C36)","v":{"v":1738,"d":"1,738.00 €"}},{"$f":"SUM($C$36:D36)","v":{"v":754,"d":"754.00 €"}},{"$f":"SUM($C$36:E36)","v":{"v":2009,"d":"2,009.00 €"}},{"$f":"SUM($C$36:F36)","v":{"v":2310,"d":"2,310.00 €"}},{"$f":"SUM($C$36:G36)","v":{"v":3750,"d":"3,750.00 €"}},{"$f":"SUM($C$36:H36)","v":{"v":6,"d":"6.00 €"}},{"$f":"SUM($C$36:I36)","v":{"v":134701,"d":"134,701.00 €"}},{"$f":"SUM($C$36:J36)","v":{"v":273619,"d":"273,619.00 €"}},{"$f":"SUM($C$36:K36)","v":{"v":409537,"d":"409,537.00 €"}},{"$f":"SUM($C$36:L36)","v":{"v":550455,"d":"550,455.00 €"}},{"$f":"SUM($C$36:M36)","v":{"v":686673,"d":"686,673.00 €"}},{"$f":"SUM($C$36:N36)","v":{"v":826691,"d":"826,691.00 €"}}]

{"sheet":"ANÁLISIS DE GASTOS","index":4,"n_rows":9,"n_cols":6,"rows_kept":9,"merged":[[0,1,2,5],[10,1,10,2],[10,3,10,5],[12,1,32,5]]}
[]
[]
[]
[null,"CATEGORÍA DE GASTOS","GASTOS PLANIFICADOS","GASTOS REALES","VARIACIONES DE GASTOS","PORCENTAJE DE DESVIACIÓN"]
[null,"COSTES POR EMPLEADO",{"$f":"PlanEmpleado[[#Totals],[AÑO]]","v":{"v":1355090,"d":"1,355,090.00 €"}},{"$f":"RealEmpleado[[#Totals],[AÑO]]","v":{"v":659130,"d":"659,130.00 €"}},{"$f":"C5-D5","v":{"v":695960,"d":"695,960.00 €"}},{"$f":"E5/C5","v":{"v":0.5135895032802249,"d":"51%"}}]
[null,{"$f":"'GASTOS PLANIFICADOS'!B10","v":"COSTES DE LA OFICINA"},{"$f":"PlanOficina[[#Totals],[AÑO]]","v":{"v":138740,"d":"138,740.00 €"}},{"$f":"RealOficina[[#Totals],[AÑO]]","v":{"v":69350,"d":"69,350.00 €"}},{"$f":"C6-D6","v":{"v":69390,"d":"69,390.00 €"}},{"$f":"E6/C6","v":{"v":0.5001441545336601,"d":"50%"}}]
[null,{"$f":"'GASTOS PLANIFICADOS'!B21","v":"COSTES DE MARKETING"},{"$f":"PlanMarketing[[#Totals],[AÑO]]","v":{"v":67800,"d":"67,800.00 €"}},{"$f":"RealMarketing[[#Totals],[AÑO]]","v":{"v":33159,"d":"33,159.00 €"}},{"$f":"C7-D7","v":{"v":34641,"d":"34,641.00 €"}},{"$f":"E7/C7","v":{"v":0.510929203539823,"d":"51%"}}]
[null,{"$f":"'GASTOS PLANIFICADOS'!B30","v":"FORMACIÓN/VIAJES"},{"$f":"PlanFormacionYViajes[[#Totals],[AÑO]]","v":{"v":48000,"d":"48,000.00 €"}},{"$f":"RealFormacionYViajes[[#Totals],[AÑO]]","v":{"v":21300,"d":"21,300.00 €"}},{"$f":"C8-D8","v":{"v":26700,"d":"26,700.00 €"}},{"$f":"E8/C8","v":{"v":0.55625,"d":"56%"}}]
[null,{"$f":"'GASTOS PLANIFICADOS'!B35","v":"GASTOS TOTALES PLANIFICADOS"},{"$f":"'GASTOS PLANIFICADOS'!O36","v":{"v":1609630,"d":"1,609,630.00 €"}},{"$f":"'GASTOS REALES'!O36","v":{"v":782939,"d":"782,939.00 €"}},{"$f":"C9-D9","v":{"v":826691,"d":"826,691.00 €"}},{"$f":"E9/C9","v":{"v":0.5135907009685455,"d":"51%"}}]